Workbook

Sheet Self-Assessment
F3: INDUSTRY 4.0 SELF - ASSESSMENT

Sheet Results (hidden)
C3: These are the results of the Industry 4.0 Self-Assessment
B12: OBJECTIVES
B64: PILLAR RANKING | C64: =IF(C65="","",1) -> 1 | D64: =IF(D65="","",2) -> 2 | E64: =IF(E65="","",3) -> 3 | F64: =IF(F65="","",4) -> 4 | G64: =IF(G65="","",5) -> 5
B65: PILLAR | C65: =IFERROR(VLOOKUP(1,CHOOSE({2,1},Resultados!$M$30:$M$38,Resultados!$Q$30:$Q$38),2,0),"") -> CLOUD | D65: =IFERROR(VLOOKUP(2,CHOOSE({2,1},Resultados!$M$30:$M$38,Resultados!$Q$30:$Q$38),2,0),"") -> INTERNET OF THINGS | E65: =IFERROR(VLOOKUP(3,CHOOSE({2,1},Resultados!$M$30:$M$38,Resultados!$Q$30:$Q$38),2,0),"") -> CYBERSECURITY | F65: =IFERROR(VLOOKUP(4,CHOOSE({2,1},Resultados!$M$30:$M$38,Resultados!$Q$30:$Q$38),2,0),"") -> BIG DATA | G65: =IFERROR(VLOOKUP(5,CHOOSE({2,1},Resultados!$M$30:$M$38,Resultados!$Q$30:$Q$38),2,0),"") -> SIMULATION
B66: IMPACT | C66: =IFERROR(VLOOKUP(C$65,Resultados!$M$30:$N$38,2,FALSE),"") -> 0.0253031746 | D66: =IFERROR(VLOOKUP(D$65,Resultados!$M$30:$N$38,2,FALSE),"") -> 0.02157047619 | E66: =IFERROR(VLOOKUP(E$65,Resultados!$M$30:$N$38,2,FALSE),"") -> 0.01982222222 | F66: =IFERROR(VLOOKUP(F$65,Resultados!$M$30:$N$38,2,FALSE),"") -> 0.01861825397 | G66: =IFERROR(VLOOKUP(G$65,Resultados!$M$30:$N$38,2,FALSE),"") -> 0.01676412698
B67: CURRENT LEVEL | C67: =IFERROR(VLOOKUP(C$65,Resultados!$A$2:$M$10,2,FALSE),"") -> Level 2: Repeatable, Opportunistic | D67: =IFERROR(VLOOKUP(D$65,Resultados!$A$2:$M$10,2,FALSE),"") -> Level 2: Tentative | E67: =IFERROR(VLOOKUP(E$65,Resultados!$A$2:$M$10,2,FALSE),"") -> Level 4: Managed | F67: =IFERROR(VLOOKUP(F$65,Resultados!$A$2:$M$10,2,FALSE),"") -> Level 1: Primitive | G67: =IFERROR(VLOOKUP(G$65,Resultados!$A$2:$M$10,2,FALSE),"") -> Level 2: Managed
B68: NEXT STEPS | C68: =IFERROR(VLOOKUP(C$65,Resultados!$A$2:$M$10,13,FALSE),"") -> • Define an specific processes for cloud adoption • An approach has been decided upon and is applied opportunistically • May exist redundant or overlapping approaches • Informally defined or exist as "shelfware" • Initial benefits realized from leveraged infrastructure | D68: =IFERROR(VLOOKUP(D$65,Resultados!$A$2:$M$10,13,FALSE),"") -> • Implement a platfomr to connect the devices (e.g. AllJoyn,) • Units have to be inter-communicated (KAA, ThingsSpeak, ) • Start to create protocols, even lightweight ones (e.g. MQTT, XMPP, Zigbee) • Wearables, Contiki OS, etc. | E68: =IFERROR(VLOOKUP(E$65,Resultados!$A$2:$M$10,13,FALSE),"") -> • Leaders and orgs promote awareness; citizens aware of cybersecurity issues • Formal info sharing/analysis, internal and external to community; formal local fusion and metrics, initial external efforts • Autonomous cyber exercises with assessments of formal info sharing/local fusion; exercises involve live play/metrics assessments • Integrate cyber in COOP; mentor externals on COOP integration; formal blended incident response and recovery | F68: =IFERROR(VLOOKUP(F$65,Resultados!$A$2:$M$10,13,FALSE),"") -> • Manage existing data elements and find the capacity constrains • Siloed data store • Focused on bits • Inactive approach • "Don't fix until it breaks" • Inefficient data • Lack of data control • Restricted access | G68: =IFERROR(VLOOKUP(G$65,Resultados!$A$2:$M$10,13,FALSE),"") -> • Characterize the process for the projects, often reactive • Written but always formatted (Consistent templates in Excel or Word) • Has to be ccessible. Security and version control are essential. • May use RM tool • Key projects need to use integration, others may not • Some linkage to other processes •Structure does not need to be formal • External training is recommended • People should start to "belive" in the process
B69: ="Same Area ("&Resultados!R29&")" -> Same Area (0) | C69: =IF(C$65="","",VLOOKUP(Results!C$65,Resultados!$M$30:$T$38,6,FALSE)) ->  | D69: =IF(D$65="","",VLOOKUP(Results!D$65,Resultados!$M$30:$T$38,6,FALSE)) ->  | E69: =IF(E$65="","",VLOOKUP(Results!E$65,Resultados!$M$30:$T$38,6,FALSE)) ->  | F69: =IF(F$65="","",VLOOKUP(Results!F$65,Resultados!$M$30:$T$38,6,FALSE)) ->  | G69: =IF(G$65="","",VLOOKUP(Results!G$65,Resultados!$M$30:$T$38,6,FALSE)) -> 
B70: ="Same Activity ("&Resultados!S29&")" -> Same Activity (17) | C70: =IF(C$65="","",VLOOKUP(Results!C$65,Resultados!$M$30:$T$38,7,FALSE)) -> 0.4705882353 | D70: =IF(D$65="","",VLOOKUP(Results!D$65,Resultados!$M$30:$T$38,7,FALSE)) -> 0.1764705882 | E70: =IF(E$65="","",VLOOKUP(Results!E$65,Resultados!$M$30:$T$38,7,FALSE)) -> 0.1764705882 | F70: =IF(F$65="","",VLOOKUP(Results!F$65,Resultados!$M$30:$T$38,7,FALSE)) -> 0.2941176471 | G70: =IF(G$65="","",VLOOKUP(Results!G$65,Resultados!$M$30:$T$38,7,FALSE)) -> 0.4117647059
B71: ="Same Size ("&Resultados!T29&")" -> Same Size (5) | C71: =IF(C$65="","",VLOOKUP(Results!C$65,Resultados!$M$30:$T$38,8,FALSE)) -> 0.4 | D71: =IF(D$65="","",VLOOKUP(Results!D$65,Resultados!$M$30:$T$38,8,FALSE)) -> 0 | E71: =IF(E$65="","",VLOOKUP(Results!E$65,Resultados!$M$30:$T$38,8,FALSE)) -> 0 | F71: =IF(F$65="","",VLOOKUP(Results!F$65,Resultados!$M$30:$T$38,8,FALSE)) -> 0.4 | G71: =IF(G$65="","",VLOOKUP(Results!G$65,Resultados!$M$30:$T$38,8,FALSE)) -> 0.4

Sheet Listados (hidden)
A1: Size | B1: Region/Country | C1: Sector
A2: Micro Enterprise | B2: Euskadi | C2: Shipyard
A3: SME | B3: Galicia | C3: Subcontractor
A4: Large Company | B4: France | C4: Equipment Goods
B5: UK | C5: Services
B6: Portugal
B7: Irland

Sheet Datos (hidden)
A1: Company Name | B1: fjhl | C1: Escrito por usuario | E1: Identification | F1: =COUNTBLANK(B1:B4) -> 0
A2: Size | B2: SME | C2: Elegir entre… | E2: Objetives | F2: =COUNTBLANK(B5:B14) -> 0
A3: Region / Country | B3: France | C3: Elegir entre… | E3: Questions | F3: =COUNTBLANK(B15:B50) -> 0
A4: Sector | B4: Subcontractor | C4: Elegir entre… | E4: Pillars | F4: =COUNTBLANK(B51:B59) -> 0
A5: Facturación | B5: 1 | C5: Yes (1) - No (0) | F5: =SUM(F1:F4) -> 0
A6: Beneficios | B6: 1 | C6: Yes (1) - No (0)
A7: Cuota de Mercado | B7: 1 | C7: Yes (1) - No (0)
A8: Productividad | B8: 1 | C8: Yes (1) - No (0)
A9: Nº Empleados | B9: 1 | C9: Yes (1) - No (0)
A10: Nº de Clientes | B10: 1 | C10: Yes (1) - No (0)
A11: Nº de Paises Exportación | B11: 1 | C11: Yes (1) - No (0)
A12: Nº Productos Catálogo | B12: 1 | C12: Yes (1) - No (0)
A13: Nº de Sectores Cliente | B13: 1 | C13: Yes (1) - No (0)
A14: Nº Patentes | B14: 1 | C14: Yes (1) - No (0)
A15: P1 | B15: 1 | C15: Alto (1)-Medio(0,6)-Bajo(0,2)
A16: P2 | B16: 1 | C16: Alto (1)-Medio(0,6)-Bajo(0,2)
A17: P3 | B17: 1 | C17: Alto (1)-Medio(0,6)-Bajo(0,2)
A18: P4 | B18: 1 | C18: Alto (1)-Medio(0,6)-Bajo(0,2)
A19: P5 | B19: 1 | C19: Alto (1)-Medio(0,6)-Bajo(0,2)
A20: P6 | B20: 1 | C20: Alto (1)-Medio(0,6)-Bajo(0,2)
A21: P7 | B21: 1 | C21: Alto (1)-Medio(0,6)-Bajo(0,2)
A22: P8 | B22: 0.6 | C22: Alto (1)-Medio(0,6)-Bajo(0,2)
A23: P9 | B23: 0.2 | C23: Alto (1)-Medio(0,6)-Bajo(0,2)
A24: P10 | B24: 0.6 | C24: Alto (1)-Medio(0,6)-Bajo(0,2)
A25: P11 | B25: 0.6 | C25: Alto (1)-Medio(0,6)-Bajo(0,2)
A26: P12 | B26: 0.2 | C26: Alto (1)-Medio(0,6)-Bajo(0,2)
A27: P13 | B27: 0.6 | C27: Alto (1)-Medio(0,6)-Bajo(0,2)
A28: P14 | B28: 1 | C28: Alto (1)-Medio(0,6)-Bajo(0,2)
A29: P15 | B29: 0.6 | C29: Alto (1)-Medio(0,6)-Bajo(0,2)
A30: P16 | B30: 0.6 | C30: Alto (1)-Medio(0,6)-Bajo(0,2)
A31: P17 | B31: 0.6 | C31: Alto (1)-Medio(0,6)-Bajo(0,2)
A32: P18 | B32: 0.2 | C32: Alto (1)-Medio(0,6)-Bajo(0,2)
A33: P19 | B33: 0.6 | C33: Alto (1)-Medio(0,6)-Bajo(0,2)
A34: P20 | B34: 1 | C34: Alto (1)-Medio(0,6)-Bajo(0,2)
A35: P21 | B35: 0.6 | C35: Alto (1)-Medio(0,6)-Bajo(0,2)
A36: P22 | B36: 1 | C36: Alto (1)-Medio(0,6)-Bajo(0,2)
A37: P23 | B37: 0.6 | C37: Alto (1)-Medio(0,6)-Bajo(0,2)
A38: P24 | B38: 1 | C38: Alto (1)-Medio(0,6)-Bajo(0,2)
A39: P25 | B39: 0.6 | C39: Alto (1)-Medio(0,6)-Bajo(0,2)
A40: P26 | B40: 0.2 | C40: Alto (1)-Medio(0,6)-Bajo(0,2)
A41: P27 | B41: 0.2 | C41: Alto (1)-Medio(0,6)-Bajo(0,2)
A42: P28 | B42: 0.2 | C42: Alto (1)-Medio(0,6)-Bajo(0,2)
A43: P29 | B43: 0.2 | C43: Alto (1)-Medio(0,6)-Bajo(0,2)
A44: P30 | B44: 0.2 | C44: Alto (1)-Medio(0,6)-Bajo(0,2)
A45: P31 | B45: 0.2 | C45: Alto (1)-Medio(0,6)-Bajo(0,2)
A46: P32 | B46: 0.2 | C46: Alto (1)-Medio(0,6)-Bajo(0,2)
A47: P33 | B47: 0.2 | C47: Alto (1)-Medio(0,6)-Bajo(0,2)
A48: P34 | B48: 1 | C48: Alto (1)-Medio(0,6)-Bajo(0,2)
A49: P35 | B49: 1 | C49: Alto (1)-Medio(0,6)-Bajo(0,2)
A50: P36 | B50: 1 | C50: Alto (1)-Medio(0,6)-Bajo(0,2)
A51: BIG DATA | B51: 0.2 | C51: 1(0,2)-2(0,4)-3(0,6)-4(0,8)-5(1,0)
A52: ROBOTICA | B52: 0.2 | C52: 1(0,2)-2(0,4)-3(0,6)-4(0,8)-5(1,0)
A53: SIMULACIÓN | B53: 0.4 | C53: 1(0,2)-2(0,4)-3(0,6)-4(0,8)-5(1,0)
A54: INTEGRACIÓN SISTEMAS | B54: 0.4 | C54: 1(0,2)-2(0,4)-3(0,6)-4(0,8)-5(1,0)
A55: INTERNET DE LAS COSAS | B55: 0.4 | C55: 1(0,2)-2(0,4)-3(0,6)-4(0,8)-5(1,0)
A56: LA NUBE | B56: 0.4 | C56: 1(0,2)-2(0,4)-3(0,6)-4(0,8)-5(1,0)
A57: FABRICACIÓN ADITIVA | B57: 0.6 | C57: 1(0,2)-2(0,4)-3(0,6)-4(0,8)-5(1,0)
A58: REALIDAD AUMENTADA | B58: 0.6 | C58: 1(0,2)-2(0,4)-3(0,6)-4(0,8)-5(1,0)
A59: CIBERSEGURIDAD | B59: 0.8 | C59: 1(0,2)-2(0,4)-3(0,6)-4(0,8)-5(1,0)

Sheet Tabla Autoevaluacion (hidden)
A1: LEVELS | B1: BIG DATA | C1: ROBOTICS | D1: SIMULATION | E1: INTEGRATION | F1: IoT | G1: CLOUD | H1: ADDITIVE | I1: AR & VR | J1: CYBERSECURITY
A2: 1 | B2: Level 1: Primitive | C2: Level 1: Ad Hoc | D2: Level 1: Initial | E2: Level 1: Predigital Plant | F2: Level 1: Primitive | G2: Level 1: Initial, Ad Hoc | H2: Level 1: First contact | I2: Level 1: Primitive | J2: Level 1: Initial
B3: Level 1: Start to extract data from specific processes, and managing it with basic and non-specific tools (i.e. Excel) | C3: Level 1: Minimal automation and individual driven, typically based on scripts. Some tools are adopted, but no formal evaluation. | D3: Level 1: The process is unpredictable, poorly controlled and reactive. Person dependant, written in separate docs (Word, Excel, …), with no integration and limited support or organization. | E3: Level 1: Paper-based processes and predominantly manual. Low level of automation and basic PLC controls. Application are standalone (unique) with minimal or no integration. | F3: Level 1: Siloed sensors and isolated M2M applications with limited functions. Exaples: RFID, Transcends, OpenBeacon, embedded units,… | G3: Level 1: First analysis of cloud readiness and potential, with mapping of existing systems and services. Some awareness of cloud computing and some implementations have been made. | H3: Level 1: May have collaborate in R&D projects but no machine neither software about AM. Very little knowledge. | I3: Level 1: Very low or no use of bar-codes / QR. Information of the parts is paper-based. | J3: Level 1: Activities are unstaffed or uncoordinated. No formal security program. No control in security issues.
B4: • Manage existing data elements and find the capacity constrains • Siloed data store • Focused on bits • Inactive approach • "Don't fix until it breaks" • Inefficient data • Lack of data control • Restricted access | C4: • Minimal automation • Individual driven • Typically scripts based • Some tools adopted- no formal evaluation | D4: • Process unpredictable, poorly controlled, and reactive • Person dependent • Informally and inconsistently • Written • Separate documents and packages (Word, Excel, ..) • No integration • Limited support y organization • Partly defined roles • Little training • People driven few | E4: • Primarily paper-based processes • Predominantly manual processing • Low level of automation • Basic PLC controls • Applications are standalone (unique) with minimal or no integration | F4: • Siloed sensors • Isolated M2M applications • Limited Functions • Sensors, embedded units, RFID, Transcends, fosstrak, OpenPCD, OpenBeacon | G4: • Analysis of current environment's cloud readiness • Mapping and analysis of cloud potential for existing systems and services • There is some awareness of cloud computing, and some groups are beginning to implement cloud computing elements | H4: • May have worked in some R&D projects regarding to Additive manufacturing. • No machines neither specific software/knowledge about additive manufacturing. | I4: • Very low or no use of bar-codes or QR in the daily work. • Information of the parts/products is written down in an attached document (paper based). | J4: • Minimal cyber awareness • Minimal cyber info sharing • Minimal cyber assessments and policy & procedure evaluations • Little inclusion of cyber into Continuity of Operations Plan (COOP)
A5: 2 | B5: Level 2: Tentative | C5: Level 2: Opportunistic | D5: Level 2: Managed | E5: Level 2: Digital Siloes - "Islands of automation" | F5: Level 2: Tentative | G5: Level 2: Repeatable, Opportunistic | H5: Level 2: Rapid Prototyping | I5: Level 2: Training | J5: Level 2: Developing
B6: Level 2: Use of Business Intelligence and Data Warehouse software. Define and start to track Key Processes. | C6: Level 2: Automation applied to specific pain areas, team or project driven. Reactive in nature, platforms and tools are evaluated and adopted. | D6: Level 2: The process is now characterized for projects and, often, reactive. Written but formatted (Excel or Word templates), accessible, secure and with version control. Key projects use integration, others may not; informal structure, external training and may use RM tool. | E6: Level 2: Still some manual processes, batch records may be semi-electronic or "paper on glass" and local batch-recipe systems interfaced to PLCs. Limited integration across functional siloes, retrospective analytics on demand require high manual effort. Plants operate independently with little "real-time" supply chain process analytics. | F6: Level 2: Some connected devices and inter-communicated units. Lightweight protocols. Examples: Wearables, MQTT, ThingsSpeak, Mango,… | G6: Level 2: Cloud adoption has been defined and an approach is applied opportunistically although is not widely accepted. Initial benefits realized from leveraged infrastructure. | H6: Level 2: R&D and Product areas might use AM for rapid prototyping, scaled and plastic based. Robust association with expert partners (universities or Tech. Centres) | I6: Level 2: First contact with Virtual Reality to support training of critical operations. Bar-codes or QR start to be used more frequently. | J6: Level 2: Information security leadership established, but informal communication. Basic governance and risk management of processes and policies. Some control in technology development but limited documentation.
B7: • Identify applicable areas and work on low hanging fruits • Need to assure simple big data analysis • Focused on data • Reactive approach • "Need alternatives to better understand what is stored" • May have limited data management • Enphasis in data formats • Need to do basic reporting in batch mode | C7: • Focus the implementation in specific pain areas. • Create an specific team or project in charge. • Emerging problems solve first, reactive approach. • Evaluate some platform and tools, then adopt the ones that fit/serve best. | D7: • Characterize the process for the projects, often reactive • Written but always formatted (Consistent templates in Excel or Word) • Has to be ccessible. Security and version control are essential. • May use RM tool • Key projects need to use integration, others may not • Some linkage to other processes •Structure does not need to be formal • External training is recommended • People should start to "belive" in the process | E7: • Manual processes should be gradually removed • Batch records has to be recorded on computer, "paper on glass". • Local batch-recipe systems interfaced to PLCs • Site-specific systems; limited integration across functional siloes • Analytics are done on demand, "Why did it happened?" • Start to implement little "real time" supply chain process analytics, evenvthough plants operate independently | F7: • Implement a platfomr to connect the devices (e.g. AllJoyn,) • Units have to be inter-communicated (KAA, ThingsSpeak, ) • Start to create protocols, even lightweight ones (e.g. MQTT, XMPP, Zigbee) • Wearables, Contiki OS, etc. | G7: • Define an specific processes for cloud adoption • An approach has been decided upon and is applied opportunistically • May exist redundant or overlapping approaches • Informally defined or exist as "shelfware" • Initial benefits realized from leveraged infrastructure | H7: • R&D or Product-Design&Development area start to use a non-industrial 3D printing machine. • Material used: plastic. • Scaled prototypes are "printed" in small amounts • Prototypes might be used for certain areas to develop the design and define the last details. • Start to associate with universities/research centres to strengthen knowledge about AM. • Start to adquire knowledge around 3D printing (software, designing, suppliers, etc) | I7: • Develop training activities with Virtual Reality glasses/stations to enable practice without risk. • Provideeach part with individual Bar Code/QR to identify it during the process. • Start to introduce manual QR readers to scan products that are "lost" or parts that are in an unapropiated place. | J7: • Leadership aware of cyber threats, issues and imperatives for cyber security and community cooperative cyber training • Informal info sharing/communication in community; working groups established; ah-doc analysis, little fusion or metrics; professional orgs established or engaged • No assessments, but aware of requirement; initial evaluation of policies & procedures • Aware of need to integrate cyber security into COOP
A8: 3 | B8: Level 3: Advanced | C8: Level 3: Systematic | D8: Level 3: Defined | E8: Level 3: Connected Plant | F8: Level 3: Advanced | G8: Level 3: Defined, Systematic | H8: Level 3: Functional Prototyping | I8: Level 3: Maintenance | J8: Level 3: Defined
B9: Level 3: Use data to generate knowledge about the process; statistics, tendencies, etc. Diverse data; different sources, kinds, sizes,… | C9: Level 3: Targets of automation are defined with metrics and driven by experts. Proactive in nature, the roadmap is specified. | D9: Level 3: Process characterization for the organization and it is proactive. Consistent templates for docs (Excel and Word), attributes defined (importance, stability, release differences), extended to all projects and functions. Formal structure and organization with external but customized training. | E9: Level 3: Vertical integration; ERP, LES, MES and automation layer are fully integrated to support digitized business processes. Full electronic batch record, industry standards (ISA-88 & 95), standard application platform and semi-automated analytics. | F9: Level 3: Secured remote managed services, with reliable quality. Remote access or cloud, CRM/ERP/PLM integrations. Examples: OpenRemote, Freeboar | G9: Level 3: Existence of tooling and integration for automated cloud and the approach is fully accepted and always followed. | H9: Level 3: True size, different material/finishing, and articulated prototypes, which can be used in other areas besides design. Start to collaborate-deal with AM machine suppliers. | I9: Level 3: Provide machines with "active" QRs that give information to maintenance operator (last inspection, incidences record, etc.). Start to introduce QR also in warehouse management operations. | J9: Level 3: Some roles and responsibilities are established. Organization-wide processes and policies in place, but minimal verification. More controls documented and developed, but very high human-effort requirements.
B10: • Manage structured, unstructured, and semi-structured data • Implement solutions and balance immaturity and immediate needs • Complex big analytics • Focused on information • Active approach • "Slice and dice to examine the data" • Start doing statistical programming • Timely access | C10: • Use metrics to define the automation targets, earsier to evaluate the evolution. • Expert support to drive the transformation. • Start to use a proactive approach. • Specify a Roadmap to be followed. | D10: • Process characterization for the organization and is proactive • Specific types • Attributes defined (importance, stability, release differences) • Consistent template in Excel or Word • May use RM tool • All projects and functions use • May be integrated with PLM • Formal structure and organization • External, custom training | E10: • Start to apply vertical Integration • ERP, LES, MES and automation layer has to be fully integrated to support digitized business processes • Full electronic batch record with review by exception • Adopt Industry standards, such as ISA-88 (recipe) and ISA-95 (material, equipment, and personnel) • Standard application platform is adopted across plant network. • Analytics are semi-automated, "Where else can it happen? | F10: • Services have to be managed • Secured remote management solutions have to be applied • Quality of services has to become a prioritiy, reliable quality. • Remote access, cloud, CRM/ERP/PLM integrations, OpenRemote, Freeboard | G10: • Tooling and integration for automated cloud are used. • Affected parties have reviewed and accepted the approach • The documented approach has to be used most of the time | H10: • Rapid prototyping is a widely-used strategy in the design area. • Increase machines' capacity to enable be true size prototyping. • Start to handle different materials/finishes • Many parts even assemblies can be fabricated; joints, mechanisms, etc. • Parts are manufactured for different objectives; problems beside design, for customers, etc. • Collaboration with AM machine suppliers and use of their services. | I10: • Start to use QR with machinery. Real time machine situation regarding to maintenance: last maintenance date, last incidences (solved & unsolved), next scheduled inspection, etc. • Holographic (on screen) representation of parts using warehouse QRs to improve warehouse management efficiency. Allows to "see" 3D real-size image of the part without actually need find the part in the warehouse. | J10: • Leaders promote org security awareness; formal community cooperative training • Formal local info sharing/cyber analysis. Initial cyber-physical fusion; informal external info sharing/cyber analysis and metrics gathering • Autonomous table-top cyber exercises with assessments of into sharing, policies & procedures, and fusion; routine audit program; mentor externals on policies & procedures, auditing and training • Include cyber in COOP; formal cyber incident response/recovery
A11: 4 | B11: Level 4: Dynamic | C11: Level 4: Institutionalized | D11: Level 4: Quantitatively Managed | E11: Level 4: Predictive Plant | F11: Level 4: Dynamic | G11: Level 4: Measured, Measurable | H11: Level 4: Direct Tooling | I11: Level 4: Expert Support | J11: Level 4: Managed
B12: Level 4: Real time and standardized big data activity, with robust and flexible architecture. | C12: Level 4: Automation becomes way of life and it is realized with portfolio of platforms and tools, while driven by the organization. Roadmap in action-scaled across the institution. | D12: Level 4: The process is measured and controlled, it is also applied, integrated and measured, with full traceability. Typically uses a RM tool and it is integrated with PLM. Fully operational, managed and measured. | E12: Level 4: Enterprise Integration: Internal Integration of plant to value chain. Integration of product development and manufacturing (PLM), advance production technologies and end-to-end supply chain visibility. | F12: Level 4: Contextual analytics are applied and enables smart decisions. Harvest of knowledge and insights. Examples: Dashboards and visualization, data mining, statistical modelling,… | G12: Level 4: Cloud-aware applications are deployed according to business requirements on public, private, and hybrid platforms. Governance infrastructure is in place that measures and quantitatively manages cloud capability. Manual federation. | H12: Level 4: Start to "print" no-prototype parts; customized tools, boards and other gadgets. Advanced insights in AM environment; design, postprocessing, software and machine suppliers, etc. | I12: Level 4: Introduction of Smart Glasses that enables interaction between operator and expert to support maintenance or other critical operations. Warehouse management is based on parts ID, which supports in different operations (real-time stock control, search of parts in warehouse, etc.). | J12: Level 4: Increased resources and awareness, clearly defined roles and responsibilities. Formal infosec committees, verification and measurement processes. Controls, monitored, measured for compliance, but uneven levels of automation.
B13: • Standardize practices and leverage reference architecture with patterns • Real-time big data • Focus on knowledge • Proactive approach • "Deal with volume and performance needs" • Apply some governance • Data quality with reduced risk • Visualization and streaming | C13: • The roadmap should be action-scaled across the institution • Organization driven • Automation is realized with portfolio of platforms and tools • Automation becomes way of life | D13: • Process must be measured, mostly applied, fully traceable and under control • Typically uses a RM tool • Integrated with PLM • Internal training and experts are required | E13: • Enterprise Integration: Internal Integration of plant to value chain • Integration of product development and manufacturing (PLM) • Advanced production technologies start to be used • End-to-end supply chain visibility with limited external collaborators (suppliers/CMOs) • Enterprise recipe management (ERM) process in place • Online/at-line quality testing with real.-time release • Proactive analytics across plant and internal value chain, "What can happen and when?" • Simulation used for process modelling and improvements | F13: • The objective is to make smart decision, using visualization and dashboards. • Apply contextual analytics (Statistical modelling, data mining) • Harvest of knowledge and insights • Hadoop or R programing. | G13: • Manual federation • Cloud-aware applications are deployed according to business requirements on public, private, and hybrid platforms • Governance infrastructure is in place that measures and quantitatively manages cloud capability | H13: • Different parts are built to fulfil inside-needs; company's customized tools, boards, and other gadgets. • Designing and postprocessing operations regarding to AMs are mastered by the company. • Start to evaluate the implementation of AM machines in the main manufacturing line • Full knowledge of AM related product suppliers; consumables, machines, software,… | I13: • Introduction of Smart Glasses on specific tasks. • Operators can consult information related to the task they are working on: stock of parts broken, tuning parameters, instruction… • Maintenance activities are supported remotely by experts, who has real-time sight of the problem /situation allowing him/her to give the best instructions to the operator. | J13: • Leaders and orgs promote awareness; citizens aware of cybersecurity issues • Formal info sharing/analysis, internal and external to community; formal local fusion and metrics, initial external efforts • Autonomous cyber exercises with assessments of formal info sharing/local fusion; exercises involve live play/metrics assessments • Integrate cyber in COOP; mentor externals on COOP integration; formal blended incident response and recovery
A14: 5 | B14: Level 5: Optimized | C14: Level 5: Adaptative | D14: Level 5: Optimized | E14: Level 5: Adaptative Plant | F14: Level 5: Optimized | G14: Level 5: Optimized | H14: Level 5: Direct Manufacturing | I14: Level 5: Extended | J14: Level 5: Optimized
B15: Level 5: Crossing knowledge from different processes to acquire predictive approaches, to make JIT decisions and to transform business. | C15: Level 5: Automation becomes adaptative to the process being automated, with self-learning, self-heling and auto-optimization methods (IA and Machine Learning). | D15: Level 5: Automated and integrated tools, with continuous improvements. Integrated with design models and DFMEA, advanced level of proficiency. Internal and specialized training. | E15: Level 5: Full end-to-end value-chain integration, from suppliers to patients. Modular, mobile and collaborative manufacturing environment. Zero system downtimes; inline, real-time, continuous, close loop process verification and control. | F15: Level 5: Converged technology, interacts with other disciplines to promote intelligent solutions. Examples: Rule engine, APIs, web services, machine learning, SMAC+,… | G15: Level 5: Federated, interoperable and open cloud, which has flexible capability. Assets are proactively maintained to ensure relevance and correctness. The organization has established the potential to use market mechanisms to leverage inter-cloud operations. | H15: Level 5: AM has an specific area or a strong presence in the areas that it concerns. AM operations are fully integrated in the main production line, with the possibility to apply different AM technologies. | I15: Level 5: Unique ID for each part, enables a real-time tracking of all parts by means of indoor location and part registration before each process. Smart Glasses support many activities, providing operators to real time stock of the spear part needed or information regarding an operation. | J15: Level 5: Culture supports continuous improvements to security skills, process and technology. Processes more comprehensively implemented, risk-based and quantitatively understood. Controls more comprehensively implemented, automated and subject to continuous improvement.
B16: • Converge technologies for an extensible platform and enforce cross-disciplines • Innovative big analytics • Focus on decisions • Predictive approach • "Seamlessly align IT with the business operations for competitive edges" • Business transformation • JIT decisions support • Innovations and trending | C16: • Automation has to become adaptative to the process being automated • Self-learning, self-healing auto-optimization methods has to be applied • Widespread use of Machine Learning and AI • Automation inherently becomes smart | D16: • Process requires continuous improvements • Automated and integrated tools • Integrated with design models and DFMEA • Internal, speciality training • Advanced level of proficiency | E16: • Full end-to-end value-chain integration from suppliers to patients • Modular, mobile, and collaborative manufacturing environment • Advanced production technologies used as standard • "Plug-and-play everything" from an instrument to a production scale or a CMO • Zero system downtime (Including upgrades), continuous evolution • Inline, real-time, continuous, close loop, process verification and control with automated real-time quality release • Self-aware, continuously adaptative "autonomous" plant; exception conditions handled by remote experts • Advanced simulation used across value chain for modelling, testing, and improving manufacturing and supporting business processes • Trusted information insights are freely and securely available • Pervasive use of adaptative analytics and self/machine learning across value chain | F16: • Converged Tech (APIs) • Interplay with other disciplines (web services, Machine Learning , AI) • Unified intelligent solutions Rule Engine, Storm, Spark) | G16: • Federated, interoperable and open cloud • Capability incrementally improves based on consistently gathered metrics • Assets are proactively maintained to ensure relevance and correctness • The organization has established the potential to use market mechanisms to leverage inter-cloud operations | H16: • Activities regarding to AM are developed by an specific area-department. • AM operations are fully integrated in the main process line. • Some final products are fabricated using AM, the entire product or an part of it. • Expertise in more than one AM technology ; Laser Cladding, SLM, etc. • Implementation of a new AM station can be managed internally. | I16: • Indoor location provides specific information regarding to any machine or work-station without the need of any QR. • Smart Glasses are fully integrated for specific tasks; maintenance, critical operations, etc. • Parts are tracked during the entire value stream and afterwards, enabling to have 100% of the products located. (No lost parts neither WIP, Stock 100% controlled, …) | J16: • Awareness a business imperative • Fully integrated fusion/analysis centre, combining all-source physical and cyber info; create and disseminate near real world picture • Accomplish full-scale blended exercises and assess fusion capability; involve/mentor other communities/entities • Continue to integrate cyber in COOP; mentor externals on COOP integration; formal blended incident response and recovery

Sheet Tabla preguntas(ESP) (hidden)
A1: PILAR | B1: Nº | C1: CONCEPTOS / VENTAJAS | D1: P | E1: PREGUNTAS | F1: RESPUESTA ALTO | G1: RESPUESTA MEDIO | H1: RESPUESTA BAJO | I1: FACTURACIÓN | J1: BENEFICIOS | K1: CUOTA DE MERCADO | L1: PRODUCTIVIDAD | M1: Nº EMPLEADOS | N1: Nº CLIENTES | O1: Nº PAISES EXPORTACIÓN | P1: Nº PRODUCTOS CATALOGO | Q1: Nº SECTORES CLIENTE | R1: Nº PATENTES | U1: FACTURACIÓN | V1: BENEFICIOS | W1: CUOTA DE MERCADO | X1: PRODUCTIVIDAD | Y1: Nº EMPLEADOS | Z1: Nº CLIENTES | AA1: Nº PAISES EXPORTACIÓN | AB1: Nº PRODUCTOS CATALOGO | AC1: Nº SECTORES CLIENTE | AD1: Nº PATENTES | AG1: FACTURACIÓN | AH1: BENEFICIOS | AI1: CUOTA DE MERCADO | AJ1: PRODUCTIVIDAD | AK1: Nº EMPLEADOS | AL1: Nº CLIENTES | AM1: Nº PAISES EXPORTACIÓN | AN1: Nº PRODUCTOS CATALOGO | AO1: Nº SECTORES CLIENTE | AP1: Nº PATENTES
A2: ="BIG DATA "&COUNTA(I2:R5) -> BIG DATA 19 | B2: 1 | C2: Demand forecasting | D2: P1 | E2: Information about customer-market (buying trends, new products, …) or suppliers and information processing tools are available .. | F2: Both information and tools | G2: Just information | H2: Neither of them | I2: 0.5 | J2: 0.25 | K2: 0.5 | M2: 1 | N2: 0.5 | O2: 0.5 | Q2: 0.5 | T2: BIG DATA | U2: 1 | V2: 1 | W2: 1 | Y2: 1 | Z2: 1 | AA2: 1 | AC2: 1 | AF2: BIG DATA | AG2: =ROUNDUP(SUM(I2:I5),0) -> 1 | AH2: 1 | AI2: 1 | AJ2: 1 | AK2: 1 | AL2: 1 | AM2: 1 | AN2: 1 | AO2: 1 | AP2: 1 | AQ2: =SUM(AG2:AP2) -> 10
B3: 2 | C3: Market, customer, products and competition knowledge | D3: P2 | E3: Outter information (customer satisfaction, competition,..) is available and can be exploited | F3: Both information and tools | G3: Just information | H3: Neither of them | I3: 0.5 | J3: 0.25 | K3: 0.5 | N3: 0.5 | O3: 0.5 | P3: 1 | Q3: 0.5 | R3: 1 | T3: BIG DATA | U3: 1 | V3: 1 | W3: 1 | Z3: 1 | AA3: 1 | AB3: 1 | AC3: 1 | AD3: 1 | AF3: ROBOTICA | AG3: =ROUNDUP(SUM(I6:I9),0) -> 1 | AH3: 1 | AI3: 1 | AJ3: 1 | AK3: 1 | AL3: 1 | AM3: 1 | AN3: 1 | AO3: 1 | AP3: 1 | AQ3: =SUM(AG3:AP3) -> 10
B4: 3 | C4: Knowledge about produtive process | D4: P3 | E4: To exploit production data (cycle time, machine stops, ..) the resources available and their quality are… | F4: High, the 3 stages (collect, storaging and analysis) are available | G4: Medium, data is only collected but not exploited (it may be storaged) | H4: Low, there is no infrastructe for collection | J4: 0.25 | L4: 0.5 | T4: BIG DATA | V4: 1 | X4: 1 | AF4: SIMULACIÓN | AG4: =ROUNDUP(SUM(I10:I13),0) -> 1 | AH4: 1 | AI4: 1 | AJ4: 1 | AK4: 0 | AL4: 1 | AM4: 1 | AN4: 1 | AO4: 1 | AP4: 1 | AQ4: 9
B5: 4 | C5: Predictive maintenance | D5: P4 | E5: CMMS system for maintenance data and its analysis is exploited … | F5: CMMS data is exploited and applied to optimize maintenance (predictive maintenance) | G5: There is a CMMS, but data analysis is not very frequent | H5: There is no CMMS | J5: 0.25 | L5: 0.5 | T5: BIG DATA | V5: 1 | X5: 1 | AF5: INTEGRACIÓN SISTEMAS | AG5: =ROUNDUP(SUM(I14:I17),0) -> 0 | AH5: 1 | AI5: 0 | AJ5: 1 | AK5: 0 | AL5: 0 | AM5: 0 | AN5: 0 | AO5: 0 | AP5: 0 | AQ5: 2
A6: ="ROBÓTICA "&COUNTA(I6:R9) -> ROBÓTICA 12 | B6: 1 | C6: Improves in production rate, repetitiveness, quality, costs, … | D6: P5 | E6: There are operations / tasks in the productive process that are likely to be (or alredy have been) automated due to their nature (repetetive, high quality demanding, high physical effort demanding, …) in the following amount… | F6: Large, most of the operations can be (has been) automated | G6: Medium, only some operations are automatable or has been automated | H6: Small, very few are automatable | J6: 0.3333333333 | L6: 1 | T6: ROBOTICA | V6: 1 | X6: 1 | AF6: INTERNET DE LAS COSAS | AG6: =ROUNDUP(SUM(I18:I21),0) -> 1 | AH6: 1 | AI6: 1 | AJ6: 1 | AK6: 1 | AL6: 1 | AM6: 1 | AN6: 1 | AO6: 1 | AP6: 0 | AQ6: 9
B7: 2 | C7: Real time process data generation | D7: P6 | E7: There are automative elements in the line which collect information / data from the process and then… | F7: Data is collected, storaged and compared with product parameters with a very high demand | G7: Data is collected but not analysed | H7: Data is not collected | J7: 0.3333333333 | R7: 1 | T7: ROBOTICA | V7: 1 | AD7: 1 | AF7: LA NUBE | AG7: =ROUNDUP(SUM(I22:I25),0) -> 0 | AH7: 1 | AI7: 1 | AJ7: 1 | AK7: 1 | AL7: 1 | AM7: 1 | AN7: 0 | AO7: 1 | AP7: 0 | AQ7: 7
B8: 3 | C8: Labour risks' reduction, improvement of labour conditions, ... | D8: P7 | E8: Due to automatization of the productive operation / tasks the labour conditions could or slready have … | F8: Highly improve, since the most risky tasks can be automatizable | G8: Lightly improve, some risky tasks are automatizable | H8: Not sustantially improve, since the most risky tasks cannot be automatized | J8: 0.3333333333 | T8: ROBOTICA | V8: 1 | AF8: FABRICACIÓN ADITIVA | AG8: =ROUNDUP(SUM(I26:I29),0) -> 1 | AH8: 1 | AI8: 1 | AJ8: 0 | AK8: 1 | AL8: 1 | AM8: 1 | AN8: 1 | AO8: 1 | AP8: 1 | AQ8: 9
B9: 4 | C9: Enable use of new technologies, industrial processes or proyects | D9: P8 | E9: By entering automatized processes, new technologies/ industrial processes / proyect types are… | F9: Very likely to be faced in most of the cases, opening new posibilities | G9: Likely to be faced in some specific cases | H9: Unlikely to be developed, as automatization does not enable new strategies | I9: 1 | K9: 1 | M9: 1 | N9: 1 | O9: 1 | P9: 1 | Q9: 1 | T9: ROBOTICA | U9: 1 | W9: 1 | Y9: 1 | Z9: 1 | AA9: 1 | AB9: 1 | AC9: 1 | AF9: REALIDAD AUMENTADA | AG9: =ROUNDUP(SUM(I30:I33),0) -> 1 | AH9: 1 | AI9: 1 | AJ9: 1 | AK9: 1 | AL9: 1 | AM9: 1 | AN9: 0 | AO9: 1 | AP9: 0 | AQ9: 8
A10: ="SIMULACIÓN "&COUNTA(I10:R13) -> SIMULACIÓN 17 | B10: 1 | C10: Increase knoledge in productive process | D10: P9 | E10: During the productive process; the physiscal / quemical phenomenpon... | F10: Are very complex and expertice is required to accomplish them correctly | G10: that happend in core processes are relativelly simple, other more complex are secondary | H10: Are simple and fully controlled | J10: 0.25 | L10: 0.5 | R10: 0.5 | T10: SIMULACIÓN | V10: 1 | X10: 1 | AD10: 1 | AF10: CIBERSEGURIDAD | AG10: =ROUNDUP(SUM(I34:I37),0) -> 0 | AH10: 1 | AI10: 0 | AJ10: 1 | AK10: 0 | AL10: 0 | AM10: 0 | AN10: 0 | AO10: 0 | AP10: 0 | AQ10: 2
B11: 2 | C11: Costs reduction due to machine tunnings, settings, etc… | D11: P10 | E11: Due to the complexity of the processs, it is necessary to make many machine tunnings, settings, etc. which slow down the process… | F11: Very frequently, in addition many tries and previous calculations are required | G11: In time to time, and generally are easy operations | H11: Very seldom. The minimum settings required had no impacton production | I11: 1 | J11: 0.25 | K11: 1 | N11: 0.5 | O11: 0.5 | Q11: 0.5 | T11: SIMULACIÓN | U11: 1 | V11: 1 | W11: 1 | Z11: 1 | AA11: 1 | AC11: 1 | AG11: =SUM(AG2:AG10) -> 6 | AH11: =SUM(AH2:AH10) -> 9 | AI11: 7 | AJ11: 8 | AK11: 6 | AL11: 7 | AM11: 7 | AN11: 5 | AO11: 7 | AP11: 4
B12: 3 | C12: tooling, raw material, etc optimization | D12: P11 | E12: The consumption of toolings, raw materials and other consumables has a… | F12: Big impact, due to their price and their effect on the value chain | G12: Medium impact. Their cost is not to high but can have signicant effect on the value chain | H12: Low impact, since they are "cheap" and are very easy to replace | J12: 0.25 | N12: 0.5 | O12: 0.5 | P12: 1 | Q12: 0.5 | R12: 0.5 | T12: SIMULACIÓN | V12: 1 | Z12: 1 | AA12: 1 | AB12: 1 | AC12: 1 | AD12: 1
B13: 4 | C13: Predictive maintenance | D13: P12 | E13: Breakdows happened due to incorrect maintenance have… | F13: High impact, and can lead to line stopping, significant losses, late deliveries, … | G13: Medium impact, could lead to punctual line stops and minor losses | H13: Low impact, almost no effect on production | J13: 0.25 | L13: 0.5 | T13: SIMULACIÓN | V13: 1 | X13: 1
A14: ="INTEGRACIÓN DE SISTEMAS "&COUNTA(I14:R17) -> INTEGRACIÓN DE SISTEMAS 8 | B14: 1 | C14: Real time vision of the business areas | D14: P13 | E14: Having a global vision of the different business areas has a… | F14: High impact, since it is essential to have the big picture for a correct performance | G14: Medium impact. General view is important, but it is not absolutly necessary for daily performance | H14: Low impact. It is not really necessary for the ocrrect functioning of the company | J14: 0.25 | L14: 0.25 | T14: INTEGRACIÓN SISTEMAS | V14: 1 | X14: 1
B15: 2 | C15: Interactivity between business areas | D15: P14 | E15: Providing real time interactivity between different business areas is... | F15: Very important due to its presence in daily operations | G15: Done often although it has not an optimized infrastructure | H15: A rare operation that is hard to perform due to the limited infrastructure | J15: 0.25 | L15: 0.25 | T15: INTEGRACIÓN SISTEMAS | V15: 1 | X15: 1
B16: 3 | C16: Improve comunication and decission making | D16: P15 | E16: The quality / fluency of vertical communication impacts on decission making in a … | F16: Strong manner. Vertical communication is very frequent and has a big impact on value chain functioning | G16: Limited manner, since it does not happen daily despite it has some impact | H16: Nonexistent manner. Vertical communication is not biderectional. | J16: 0.25 | L16: 0.25 | T16: INTEGRACIÓN SISTEMAS | V16: 1 | X16: 1
B17: 4 | C17: Enable propagation of new technologies and their application | D17: P16 | E17: To have a strong channel to propagate new technologies/methodologies has a … | F17: Big impact, due to the importance of a good alignment of the entire company | G17: Medium impact. Different areas has different standards based on the a common baseline | H17: Low impact. Each area works independently. | J17: 0.25 | L17: 0.25 | T17: INTEGRACIÓN SISTEMAS | V17: 1 | X17: 1
A18: ="INTERNET DE LAS COSAS "&COUNTA(I18:R21) -> INTERNET DE LAS COSAS 20 | B18: 1 | C18: Real time machine status, predictive maintenance | D18: P17 | E18: Breakdowns, maintenance stops and other stops affect to the process and its efficiency in a … | F18: Very strong manner, since the process is very sensible to stops and breakdowns | G18: Limited manner. Spots and breakdowns affect the process but are not as important as other issues | H18: Unimportant manner. Probable breakdowns don't have a significant impact and stops are very frquent and easy to repair | I18: 1 | J18: 0.25 | K18: 0.3333333333 | L18: 0.25 | M18: 1 | N18: 0.3333333333 | O18: 1 | P18: 1 | Q18: 1 | T18: INTERNET DE LAS COSAS | U18: 1 | V18: 1 | W18: 1 | X18: 1 | Y18: 1 | Z18: 1 | AA18: 1 | AB18: 1 | AC18: 1
B19: 2 | C19: Production parameters under control | D19: P18 | E19: Having real time production parameters affects the global funtioning of production in a …. | F19: Very strong manner. To achieve the required quality, it's mandatory to strictly control those parameters | G19: Limited manner. Process parameters are important, but the acceptable range is large enough to fix the deviations | H19: Unimportant manner. Process parameters don't require high precision; functioning range is considerably large. | J19: 0.25 | L19: 0.25 | N19: 0 | T19: INTERNET DE LAS COSAS | V19: 1 | X19: 1
B20: 3 | C20: To link quality results (NOK/OK or defects) with process parameters | D20: P19 | E20: Due to the process itself, linking the origin of the defects is… | F20: Hard, since many physical/quemical phenomenon happend during all the steps of the process | G20: Slightly difficult, as long as the same deffect can have many origins (parameters or stages) | H20: Easy, specifiying the specific step of the process or the parameter is not complicated | J20: 0.25 | K20: 0.3333333333 | L20: 0.25 | N20: 0.3333333333 | T20: INTERNET DE LAS COSAS | V20: 1 | W20: 1 | X20: 1 | Z20: 1
B21: 4 | C21: To use per-unit tracking to optimize process parameters | D21: P20 | E21: To use per-unit tracking to adjust process parameters to each unit could have a.. | F21: Big impact, since the process is very sensible to up-stream variables. | G21: Limited impact. Production rates could moderately improve | H21: Low impact. The process is robust and has a large operational range that absorbs most variations in parameters | J21: 0.25 | K21: 0.3333333333 | L21: 0.25 | N21: 0.3333333333 | T21: INTERNET DE LAS COSAS | V21: 1 | W21: 1 | X21: 1 | Z21: 1
A22: ="LA NUBE "&COUNTA(I22:R25) -> LA NUBE 11 | B22: 1 | C22: To improve computational capacity | D22: P21 | E22: The entire value chain requires, in terms of computational capacity / power, … | F22: High level, since many operations are very complex and they had a big importance in the value chain | G22: Medium level. It is necessary to have a minimum computational capacity but it not something crucial | H22: Low level. Computers are mainly used to basic functions (e-mail, excel, slides/presentations, …) | L22: 1 | T22: LA NUBE | X22: 1
B23: 2 | C23: New software / services acquisition | D23: P22 | E23: Comercial softwares with licences used by the company are… | F23: Many, diverse and have frequent upgrades. It is mandatory to have the last version and sometimes more than one for the same porpouse ( e.g. CAD) | G23: Limited. Some are used in production phases but relatively old versions are admited | H23: Few, basic and most of them are for internal use. | J23: 0.5 | K23: 1 | N23: 1 | O23: 1 | Q23: 1 | T23: LA NUBE | V23: 1 | W23: 1 | Z23: 1 | AA23: 1 | AC23: 1
B24: 3 | C24: Reemote working | D24: P23 | E24: Many employees work remotely … | F24: Very often, both visiting clients and home-office. | G24: Sometimes. Most of the employees work in the office, and travels or visits to client are occasional | H24: Infrequent. People who work remotely are very few and they do it in specific occasions. | M24: 1 | O24: 0 | T24: LA NUBE | Y24: 1
B25: 4 | C25: Flexible computational capacity according to the needs | D25: P24 | E25: Computational activity has a … | F25: High variability. Ups and downs are often. | G25: Medium variability. Some peaks happend during the year | H25: Low variability, since computational activity is very homogeneous and posible peaks are predictable | J25: 0.5 | N25: 0 | O25: 0 | T25: LA NUBE | V25: 1
A26: ="FABRICACIÓN ADITIVA "&COUNTA(I26:R29) -> FABRICACIÓN ADITIVA 25 | B26: 1 | C26: Rapid prototyping | D26: P25 | E26: Having the capacity to fabricate prototypes for different business areas (design, productions, sales, …) has a … | F26: Big impact, enabling and fastening decission making and other tasks | G26: Limited impact. Use of prototypes could improve some tasks but not drastically | H26: Low impact. Prototypes could only be used in very few areas. | K26: 0.25 | N26: 0.25 | O26: 0.3333333333 | Q26: 0.5 | T26: FABRICACIÓN ADITIVA | W26: 1 | Z26: 1 | AA26: 1 | AC26: 1
B27: 2 | C27: Reducing parts number in the ensemble | D27: P26 | E27: The product is composed of many elements creating a … | F27: Complex hierarchy, consisting in many assemblies and subassemblies | G27: Not very complex hierarchy. There are some relatively easy assemblies | H27: Simple hierarchy. The final product is simple and has very few elements | I27: 0.3333333333 | J27: 0.3333333333 | K27: 0.25 | N27: 0.25 | O27: 0.3333333333 | P27: 0.3333333333 | R27: 0.5 | T27: FABRICACIÓN ADITIVA | U27: 1 | V27: 1 | W27: 1 | Z27: 1 | AA27: 1 | AB27: 1 | AD27: 1
B28: 3 | C28: Fabricating different geometries | D28: P27 | E28: As a result of the manufacturing operations, the parts have … | F28: Very complex geometries which require auxiliary operations, complex assemblies, etc. | G28: Diverse geometries. There are some complex parts, but they are few and the fabrication methodology is not very complex | H28: Simple geometry and they don't require auxiliary operations | I28: 0.3333333333 | J28: 0.3333333333 | K28: 0.25 | N28: 0.25 | O28: 0.3333333333 | P28: 0.3333333333 | R28: 0.5 | T28: FABRICACIÓN ADITIVA | U28: 1 | V28: 1 | W28: 1 | Z28: 1 | AA28: 1 | AB28: 1 | AD28: 1
B29: 4 | C29: Repairing parts | D29: P28 | E29: To be able to repair parts (due to defects, accidents, as a services, …) has a … | F29: Big impact. There are many oportunities in repairing | G29: Limited impact. Repairing parts could have some oportunities | H29: Low impact. Due to different facts (unitary price of the part, complexitiy of the repairing operations, raw material prices, ..) repairing is not worth | I29: 0.3333333333 | J29: 0.3333333333 | K29: 0.25 | M29: 1 | N29: 0.25 | P29: 0.3333333333 | Q29: 0.5 | T29: FABRICACIÓN ADITIVA | U29: 1 | V29: 1 | W29: 1 | Y29: 1 | Z29: 1 | AB29: 1 | AC29: 1
A30: ="RA & RV "&COUNTA(I30:R33) -> RA & RV 19 | B30: 1 | C30: No-risk training in critical operations / tasks | D30: P29 | E30: There are some critical tasks (core processes, "in-process" maintenance, high cost parts, …) that require knowledge and experience in a … | F30: Very demanding manner, since those operations are very frequent, critical and very specific comparing to other sectors | G30: Measured manner, requiring a minum experience which is not exclusive of the sector | H30: Shallow manner, most are common and simple tasks | J30: 0.3333333333 | L30: 0.25 | M30: 0.5 | Q30: 0 | T30: REALIDAD AUMENTADA | V30: 1 | X30: 1 | Y30: 1
B31: 2 | C31: Per-unit control: process parameters, location, .. | D31: P30 | E31: Per-unit control could yield benefits in productive process… | F31: With a very high probability. Per-unit control could boost the productive process with many benefits | G31: With a medium probability. Deep analysis is necessary to tak into account both benefits and disadvantages | H31: With a low probability. Per-unit control could lead to few advantages that are not worth dut to its cost | J31: 0.3333333333 | L31: 0.25 | Q31: 0 | T31: REALIDAD AUMENTADA | V31: 1 | X31: 1
B32: 3 | C32: Expert remote support; in situ information, smartglasses | D32: P31 | E32: Tasks that require expert knowledge and critical parameters are… | F32: Very often and crucial in the productive process | G32: Are usual, but not very crucial and the knowledge is spread through the company | H32: Unusual. Most tasks are simple and don't require expertice nor extra information | I32: 1 | J32: 0 | K32: 1 | L32: 0.25 | M32: 0.5 | N32: 1 | O32: 1 | Q32: 1 | T32: REALIDAD AUMENTADA | U32: 1 | W32: 1 | X32: 1 | Y32: 1 | Z32: 1 | AA32: 1 | AC32: 1
B33: 4 | D33: P32 | E33: Warehouse management complexity grade is… | F33: High due to the large inventory, variety, warehouse size and high deand | G33: Medium, being able to handle (with some difficulties) with the current methodology | H33: Low. Warehouse management is not a crucial issue. | J33: 0.3333333333 | L33: 0.25 | O33: 0 | Q33: 0 | T33: REALIDAD AUMENTADA | V33: 1 | X33: 1
A34: ="CIBERSEGURIDAD "&COUNTA(I34:R37) -> CIBERSEGURIDAD 8 | B34: 1 | C34: Server shutdown | D34: P33 | E34: Server and services shutdown affect company's operating… | F34: Critically. Freezing the entire functioning, technical office, production line, … | G34: Moderately. Server is crucial in some areas (tecnical office, administration, …) but no as important in production line. | H34: Weakly. Server is only used by some areas, but not by prouction line. | J34: 0.25 | L34: 0.25 | T34: CIBERSEGURIDAD | V34: 1 | X34: 1
B35: 2 | C35: cloud services | D35: P34 | E35: Services / tasks developed in the cloud are… | F35: Very fequent. There are plenty of cloud services; computation, shared licences, e-mail, ERP, backups, … | G35: Usual. Some cloud services are used, but some other are on-premise | H35: Sporadic. Most of services are on-promise except for backups. | J35: 0.25 | L35: 0.25 | T35: CIBERSEGURIDAD | V35: 1 | X35: 1
B36: 3 | C36: Fast saoftware upgrades, multiplatform applications | D36: P35 | E36: Commonly used softwares are upograded … | F36: Frecuently. It is mandatory to have the latest version, | G36: In time to time. Having the latest version is not absolutly necessary, and should take into account advantages and disadvantages of the upgrading. | H36: Very seldom. Gerally, software licences are internally used and therfore upgrading does only rely in company's needs. | J36: 0.25 | L36: 0.25 | T36: CIBERSEGURIDAD | V36: 1 | X36: 1
B37: 4 | C37: Save files transfering | D37: P36 | E37: File transfering with clients are …. | F37: Very frequent, and usually requires confidentiality | G37: Sporadic and most of the information doesn't require stric privacity protocol | H37: Unusual. Communication with client is mostly non-informatic (F2F meetings, phone calls, …) | J37: 0.25 | L37: 0.25 | T37: CIBERSEGURIDAD | V37: 1 | X37: 1
H38: Preguntas que impactan | I38: =COUNTA(I2:I37) -> 9 | J38: 32 | K38: 13 | L38: 22 | M38: 7 | N38: 16 | O38: 14 | P38: 7 | Q38: 13 | R38: 6
H39: Pilares que impactan | I39: =SUM(I2:I37) -> 6 | J39: =SUM(J2:J37) -> 9 | K39: 7 | L39: 8 | M39: 6 | N39: 7 | O39: 7 | P39: 5 | Q39: 7 | R39: 4
H40: Maximo posible | I40: =HLOOKUP(I1,'Tabla objetivos cuantitativos'!C2:V14,13,FALSE) -> 0.045 | J40: =HLOOKUP(J1,'Tabla objetivos cuantitativos'!D2:W14,13,FALSE) -> 0.155 | K40: =HLOOKUP(K1,'Tabla objetivos cuantitativos'!E2:X14,13,FALSE) -> 0.065 | L40: =HLOOKUP(L1,'Tabla objetivos cuantitativos'!F2:Y14,13,FALSE) -> 0.11 | M40: =HLOOKUP(M1,'Tabla objetivos cuantitativos'!G2:Z14,13,FALSE) -> 0.035 | N40: =HLOOKUP(N1,'Tabla objetivos cuantitativos'!H2:AA14,13,FALSE) -> 0.07 | O40: =HLOOKUP(O1,'Tabla objetivos cuantitativos'!I2:AB14,13,FALSE) -> 0.055 | P40: =HLOOKUP(P1,'Tabla objetivos cuantitativos'!J2:AC14,13,FALSE) -> 0.035 | Q40: =HLOOKUP(Q1,'Tabla objetivos cuantitativos'!K2:AD14,13,FALSE) -> 0.05 | R40: =HLOOKUP(R1,'Tabla objetivos cuantitativos'!L2:AE14,13,FALSE) -> 0.03
H41: Cada punto | I41: =I40/I39 -> 0.0075 | J41: =J40/J39 -> 0.01722222222 | K41: 0.009285714286 | L41: 0.01375 | M41: 0.005833333333 | N41: 0.01 | O41: 0.007857142857 | P41: 0.007 | Q41: 0.007142857143 | R41: 0.0075

Sheet Tabla objetivos cuantitativos (hidden)
C1: OBJETIVOS
C2: FACTURACIÓN | E2: BENEFICIOS | G2: CUOTA DE MERCADO | I2: PRODUCTIVIDAD | K2: Nº EMPLEADOS | M2: Nº CLIENTES | O2: Nº PAISES EXPORTACIÓN | Q2: Nº PRODUCTOS CATALOGO | S2: Nº SECTORES CLIENTE | U2: Nº PATENTES | V2: Nº PATENTES
B3: PILARES | C3: Min | D3: Max | E3: Min | F3: Max | G3: Min | H3: Max | I3: Min | J3: Max | K3: Min | L3: Max | M3: Min | N3: Max | O3: Min | P3: Max | Q3: Min | R3: Max | S3: Min | T3: Max | U3: Min | V3: Max
B4: BIG DATA | C4: =IF(C16=0,0,$Y$9) -> 0.005 | D4: =VLOOKUP(C16,$X$8:$Y$12,2) -> 0.01 | E4: =IF(E16=0,0,$Y$9) -> 0.005 | F4: =VLOOKUP(E16,$X$8:$Y$12,2) -> 0.02 | G4: =IF(G16=0,0,$Y$9) -> 0.005 | H4: =VLOOKUP(G16,$X$8:$Y$12,2) -> 0.01 | I4: =IF(I16=0,0,$Y$9) -> 0.005 | J4: =VLOOKUP(I16,$X$8:$Y$12,2) -> 0.01 | K4: =IF(K16=0,0,$Y$9) -> 0.005 | L4: =VLOOKUP(K16,$X$8:$Y$12,2) -> 0.005 | M4: =IF(M16=0,0,$Y$9) -> 0.005 | N4: =VLOOKUP(M16,$X$8:$Y$12,2) -> 0.01 | O4: =IF(O16=0,0,$Y$9) -> 0.005 | P4: =VLOOKUP(O16,$X$8:$Y$12,2) -> 0.01 | Q4: =IF(Q16=0,0,$Y$9) -> 0.005 | R4: =VLOOKUP(Q16,$X$8:$Y$12,2) -> 0.005 | S4: =IF(S16=0,0,$Y$9) -> 0.005 | T4: =VLOOKUP(S16,$X$8:$Y$12,2) -> 0.01 | U4: =IF(U16=0,0,$Y$9) -> 0.005 | V4: =VLOOKUP(U16,$X$8:$Y$12,2) -> 0.005
B5: ROBOTICA | C5: =IF(C17=0,0,$Y$9) -> 0.005 | D5: =VLOOKUP(C17,$X$8:$Y$12,2) -> 0.005 | E5: =IF(E17=0,0,$Y$9) -> 0.005 | F5: 0.015 | G5: =IF(G17=0,0,$Y$9) -> 0.005 | H5: 0.005 | I5: =IF(I17=0,0,$Y$9) -> 0.005 | J5: 0.005 | K5: =IF(K17=0,0,$Y$9) -> 0.005 | L5: 0.005 | M5: =IF(M17=0,0,$Y$9) -> 0.005 | N5: 0.005 | O5: =IF(O17=0,0,$Y$9) -> 0.005 | P5: 0.005 | Q5: =IF(Q17=0,0,$Y$9) -> 0.005 | R5: 0.005 | S5: =IF(S17=0,0,$Y$9) -> 0.005 | T5: 0.005 | U5: =IF(U17=0,0,$Y$9) -> 0.005 | V5: 0.005
B6: SIMULACIÓN | C6: 0.005 | D6: 0.005 | E6: =IF(E18=0,0,$Y$9) -> 0.005 | F6: 0.02 | G6: =IF(G18=0,0,$Y$9) -> 0.005 | H6: 0.005 | I6: =IF(I18=0,0,$Y$9) -> 0.005 | J6: 0.01 | K6: =IF(K18=0,0,$Y$9) -> 0 | L6: 0 | M6: =IF(M18=0,0,$Y$9) -> 0.005 | N6: 0.01 | O6: =IF(O18=0,0,$Y$9) -> 0.005 | P6: 0.01 | Q6: =IF(Q18=0,0,$Y$9) -> 0.005 | R6: 0.005 | S6: =IF(S18=0,0,$Y$9) -> 0.005 | T6: 0.01 | U6: =IF(U18=0,0,$Y$9) -> 0.005 | V6: 0.01
B7: INTEGRACIÓN SISTEMAS | C7: 0 | D7: 0 | E7: =IF(E19=0,0,$Y$9) -> 0.005 | F7: 0.02 | G7: =IF(G19=0,0,$Y$9) -> 0 | H7: 0 | I7: =IF(I19=0,0,$Y$9) -> 0.005 | J7: 0.02 | K7: =IF(K19=0,0,$Y$9) -> 0 | L7: 0 | M7: =IF(M19=0,0,$Y$9) -> 0 | N7: 0 | O7: =IF(O19=0,0,$Y$9) -> 0 | P7: 0 | Q7: =IF(Q19=0,0,$Y$9) -> 0 | R7: 0 | S7: =IF(S19=0,0,$Y$9) -> 0 | T7: 0 | U7: =IF(U19=0,0,$Y$9) -> 0 | V7: 0 | X7: Valoración | Y7: %
B8: INTERNET DE LAS COSAS | C8: 0.005 | D8: 0.005 | E8: =IF(E20=0,0,$Y$9) -> 0.005 | F8: 0.02 | G8: =IF(G20=0,0,$Y$9) -> 0.005 | H8: 0.015 | I8: =IF(I20=0,0,$Y$9) -> 0.005 | J8: 0.02 | K8: =IF(K20=0,0,$Y$9) -> 0.005 | L8: 0.005 | M8: =IF(M20=0,0,$Y$9) -> 0.005 | N8: 0.015 | O8: =IF(O20=0,0,$Y$9) -> 0.005 | P8: 0.005 | Q8: =IF(Q20=0,0,$Y$9) -> 0.005 | R8: 0.005 | S8: =IF(S20=0,0,$Y$9) -> 0.005 | T8: 0.005 | U8: =IF(U20=0,0,$Y$9) -> 0 | V8: 0 | X8: 0 | Y8: 0
B9: LA NUBE | C9: 0 | D9: 0 | E9: =IF(E21=0,0,$Y$9) -> 0.005 | F9: 0.01 | G9: =IF(G21=0,0,$Y$9) -> 0.005 | H9: 0.005 | I9: =IF(I21=0,0,$Y$9) -> 0.005 | J9: 0.005 | K9: =IF(K21=0,0,$Y$9) -> 0.005 | L9: 0.005 | M9: =IF(M21=0,0,$Y$9) -> 0.005 | N9: 0.005 | O9: =IF(O21=0,0,$Y$9) -> 0.005 | P9: 0.005 | Q9: =IF(Q21=0,0,$Y$9) -> 0 | R9: 0 | S9: =IF(S21=0,0,$Y$9) -> 0.005 | T9: 0.005 | U9: =IF(U21=0,0,$Y$9) -> 0 | V9: 0 | X9: 1 | Y9: =Y12/4 -> 0.005
B10: FABRICACIÓN ADITIVA | C10: 0.005 | D10: 0.015 | E10: =IF(E22=0,0,$Y$9) -> 0.005 | F10: 0.015 | G10: =IF(G22=0,0,$Y$9) -> 0.005 | H10: 0.02 | I10: =IF(I22=0,0,$Y$9) -> 0 | J10: 0 | K10: =IF(K22=0,0,$Y$9) -> 0.005 | L10: 0.005 | M10: =IF(M22=0,0,$Y$9) -> 0.005 | N10: 0.02 | O10: =IF(O22=0,0,$Y$9) -> 0.005 | P10: 0.015 | Q10: =IF(Q22=0,0,$Y$9) -> 0.005 | R10: 0.015 | S10: =IF(S22=0,0,$Y$9) -> 0.005 | T10: 0.01 | U10: =IF(U22=0,0,$Y$9) -> 0.005 | V10: 0.01 | X10: 2 | Y10: =Y12/2 -> 0.01
B11: REALIDAD AUMENTADA | C11: 0.005 | D11: 0.005 | E11: =IF(E23=0,0,$Y$9) -> 0.005 | F11: 0.015 | G11: =IF(G23=0,0,$Y$9) -> 0.005 | H11: 0.005 | I11: =IF(I23=0,0,$Y$9) -> 0.005 | J11: 0.02 | K11: =IF(K23=0,0,$Y$9) -> 0.005 | L11: 0.01 | M11: =IF(M23=0,0,$Y$9) -> 0.005 | N11: 0.005 | O11: =IF(O23=0,0,$Y$9) -> 0.005 | P11: 0.005 | Q11: =IF(Q23=0,0,$Y$9) -> 0 | R11: 0 | S11: =IF(S23=0,0,$Y$9) -> 0.005 | T11: 0.005 | U11: =IF(U23=0,0,$Y$9) -> 0 | V11: 0 | X11: 3 | Y11: =Y12*3/4 -> 0.015
B12: CIBERSEGURIDAD | C12: 0 | D12: 0 | E12: =IF(E24=0,0,$Y$9) -> 0.005 | F12: 0.02 | G12: =IF(G24=0,0,$Y$9) -> 0 | H12: 0 | I12: =IF(I24=0,0,$Y$9) -> 0.005 | J12: 0.02 | K12: =IF(K24=0,0,$Y$9) -> 0 | L12: 0 | M12: =IF(M24=0,0,$Y$9) -> 0 | N12: 0 | O12: =IF(O24=0,0,$Y$9) -> 0 | P12: 0 | Q12: =IF(Q24=0,0,$Y$9) -> 0 | R12: 0 | S12: =IF(S24=0,0,$Y$9) -> 0 | T12: 0 | U12: =IF(U24=0,0,$Y$9) -> 0 | V12: 0 | X12: 4 | Y12: 0.02
C13: =SUM(C4:C12) -> 0.03 | D13: =SUM(D4:D12) -> 0.045 | E13: 0.045 | F13: =SUM(F4:F12) -> 0.155 | G13: 0.035 | H13: 0.065 | I13: 0.04 | J13: 0.11 | K13: 0.03 | L13: 0.035 | M13: 0.035 | N13: 0.07 | O13: 0.035 | P13: 0.055 | Q13: 0.025 | R13: 0.035 | S13: 0.035 | T13: 0.05 | U13: 0.02 | V13: 0.03
C14: =D13 -> 0.045 | E14: =F13 -> 0.155 | G14: =H13 -> 0.065 | I14: =J13 -> 0.11 | K14: =L13 -> 0.035 | M14: =N13 -> 0.07 | O14: =P13 -> 0.055 | Q14: =R13 -> 0.035 | S14: =T13 -> 0.05 | U14: =V13 -> 0.03
C15: FACTURACIÓN | E15: BENEFICIOS | G15: CUOTA DE MERCADO | I15: PRODUCTIVIDAD | K15: Nº EMPLEADOS | M15: Nº CLIENTES | O15: Nº PAISES EXPORTACIÓN | Q15: Nº PRODUCTOS CATALOGO | S15: Nº SECTORES CLIENTE | U15: Nº PATENTES
B16: BIG DATA | C16: =SUMIF('Tabla preguntas(ESP)'!$T$2:$T$37,$B16,'Tabla preguntas(ESP)'!U$2:U$37) -> 2 | E16: =SUMIF('Tabla preguntas(ESP)'!$T$2:$T$37,$B16,'Tabla preguntas(ESP)'!V$2:V$37) -> 4 | G16: =SUMIF('Tabla preguntas(ESP)'!$T$2:$T$37,$B16,'Tabla preguntas(ESP)'!W$2:W$37) -> 2 | I16: =SUMIF('Tabla preguntas(ESP)'!$T$2:$T$37,$B16,'Tabla preguntas(ESP)'!X$2:X$37) -> 2 | K16: =SUMIF('Tabla preguntas(ESP)'!$T$2:$T$37,$B16,'Tabla preguntas(ESP)'!Y$2:Y$37) -> 1 | M16: =SUMIF('Tabla preguntas(ESP)'!$T$2:$T$37,$B16,'Tabla preguntas(ESP)'!Z$2:Z$37) -> 2 | O16: =SUMIF('Tabla preguntas(ESP)'!$T$2:$T$37,$B16,'Tabla preguntas(ESP)'!AA$2:AA$37) -> 2 | Q16: =SUMIF('Tabla preguntas(ESP)'!$T$2:$T$37,$B16,'Tabla preguntas(ESP)'!AB$2:AB$37) -> 1 | S16: =SUMIF('Tabla preguntas(ESP)'!$T$2:$T$37,$B16,'Tabla preguntas(ESP)'!AC$2:AC$37) -> 2 | U16: =SUMIF('Tabla preguntas(ESP)'!$T$2:$T$37,$B16,'Tabla preguntas(ESP)'!AD$2:AD$37) -> 1
B17: ROBOTICA | C17: =SUMIF('Tabla preguntas(ESP)'!$T$2:$T$37,$B17,'Tabla preguntas(ESP)'!U$2:U$37) -> 1 | E17: =SUMIF('Tabla preguntas(ESP)'!$T$2:$T$37,$B17,'Tabla preguntas(ESP)'!V$2:V$37) -> 3 | G17: =SUMIF('Tabla preguntas(ESP)'!$T$2:$T$37,$B17,'Tabla preguntas(ESP)'!W$2:W$37) -> 1 | I17: =SUMIF('Tabla preguntas(ESP)'!$T$2:$T$37,$B17,'Tabla preguntas(ESP)'!X$2:X$37) -> 1 | K17: =SUMIF('Tabla preguntas(ESP)'!$T$2:$T$37,$B17,'Tabla preguntas(ESP)'!Y$2:Y$37) -> 1 | M17: =SUMIF('Tabla preguntas(ESP)'!$T$2:$T$37,$B17,'Tabla preguntas(ESP)'!Z$2:Z$37) -> 1 | O17: =SUMIF('Tabla preguntas(ESP)'!$T$2:$T$37,$B17,'Tabla preguntas(ESP)'!AA$2:AA$37) -> 1 | Q17: =SUMIF('Tabla preguntas(ESP)'!$T$2:$T$37,$B17,'Tabla preguntas(ESP)'!AB$2:AB$37) -> 1 | S17: =SUMIF('Tabla preguntas(ESP)'!$T$2:$T$37,$B17,'Tabla preguntas(ESP)'!AC$2:AC$37) -> 1 | U17: =SUMIF('Tabla preguntas(ESP)'!$T$2:$T$37,$B17,'Tabla preguntas(ESP)'!AD$2:AD$37) -> 1
B18: SIMULACIÓN | C18: =SUMIF('Tabla preguntas(ESP)'!$T$2:$T$37,$B18,'Tabla preguntas(ESP)'!U$2:U$37) -> 1 | E18: =SUMIF('Tabla preguntas(ESP)'!$T$2:$T$37,$B18,'Tabla preguntas(ESP)'!V$2:V$37) -> 4 | G18: =SUMIF('Tabla preguntas(ESP)'!$T$2:$T$37,$B18,'Tabla preguntas(ESP)'!W$2:W$37) -> 1 | I18: =SUMIF('Tabla preguntas(ESP)'!$T$2:$T$37,$B18,'Tabla preguntas(ESP)'!X$2:X$37) -> 2 | K18: =SUMIF('Tabla preguntas(ESP)'!$T$2:$T$37,$B18,'Tabla preguntas(ESP)'!Y$2:Y$37) -> 0 | M18: =SUMIF('Tabla preguntas(ESP)'!$T$2:$T$37,$B18,'Tabla preguntas(ESP)'!Z$2:Z$37) -> 2 | O18: =SUMIF('Tabla preguntas(ESP)'!$T$2:$T$37,$B18,'Tabla preguntas(ESP)'!AA$2:AA$37) -> 2 | Q18: =SUMIF('Tabla preguntas(ESP)'!$T$2:$T$37,$B18,'Tabla preguntas(ESP)'!AB$2:AB$37) -> 1 | S18: =SUMIF('Tabla preguntas(ESP)'!$T$2:$T$37,$B18,'Tabla preguntas(ESP)'!AC$2:AC$37) -> 2 | U18: =SUMIF('Tabla preguntas(ESP)'!$T$2:$T$37,$B18,'Tabla preguntas(ESP)'!AD$2:AD$37) -> 2
B19: INTEGRACIÓN SISTEMAS | C19: =SUMIF('Tabla preguntas(ESP)'!$T$2:$T$37,$B19,'Tabla preguntas(ESP)'!U$2:U$37) -> 0 | E19: =SUMIF('Tabla preguntas(ESP)'!$T$2:$T$37,$B19,'Tabla preguntas(ESP)'!V$2:V$37) -> 4 | G19: =SUMIF('Tabla preguntas(ESP)'!$T$2:$T$37,$B19,'Tabla preguntas(ESP)'!W$2:W$37) -> 0 | I19: =SUMIF('Tabla preguntas(ESP)'!$T$2:$T$37,$B19,'Tabla preguntas(ESP)'!X$2:X$37) -> 4 | K19: =SUMIF('Tabla preguntas(ESP)'!$T$2:$T$37,$B19,'Tabla preguntas(ESP)'!Y$2:Y$37) -> 0 | M19: =SUMIF('Tabla preguntas(ESP)'!$T$2:$T$37,$B19,'Tabla preguntas(ESP)'!Z$2:Z$37) -> 0 | O19: =SUMIF('Tabla preguntas(ESP)'!$T$2:$T$37,$B19,'Tabla preguntas(ESP)'!AA$2:AA$37) -> 0 | Q19: =SUMIF('Tabla preguntas(ESP)'!$T$2:$T$37,$B19,'Tabla preguntas(ESP)'!AB$2:AB$37) -> 0 | S19: =SUMIF('Tabla preguntas(ESP)'!$T$2:$T$37,$B19,'Tabla preguntas(ESP)'!AC$2:AC$37) -> 0 | U19: =SUMIF('Tabla preguntas(ESP)'!$T$2:$T$37,$B19,'Tabla preguntas(ESP)'!AD$2:AD$37) -> 0
B20: INTERNET DE LAS COSAS | C20: =SUMIF('Tabla preguntas(ESP)'!$T$2:$T$37,$B20,'Tabla preguntas(ESP)'!U$2:U$37) -> 1 | E20: =SUMIF('Tabla preguntas(ESP)'!$T$2:$T$37,$B20,'Tabla preguntas(ESP)'!V$2:V$37) -> 4 | G20: =SUMIF('Tabla preguntas(ESP)'!$T$2:$T$37,$B20,'Tabla preguntas(ESP)'!W$2:W$37) -> 3 | I20: =SUMIF('Tabla preguntas(ESP)'!$T$2:$T$37,$B20,'Tabla preguntas(ESP)'!X$2:X$37) -> 4 | K20: =SUMIF('Tabla preguntas(ESP)'!$T$2:$T$37,$B20,'Tabla preguntas(ESP)'!Y$2:Y$37) -> 1 | M20: =SUMIF('Tabla preguntas(ESP)'!$T$2:$T$37,$B20,'Tabla preguntas(ESP)'!Z$2:Z$37) -> 3 | O20: =SUMIF('Tabla preguntas(ESP)'!$T$2:$T$37,$B20,'Tabla preguntas(ESP)'!AA$2:AA$37) -> 1 | Q20: =SUMIF('Tabla preguntas(ESP)'!$T$2:$T$37,$B20,'Tabla preguntas(ESP)'!AB$2:AB$37) -> 1 | S20: =SUMIF('Tabla preguntas(ESP)'!$T$2:$T$37,$B20,'Tabla preguntas(ESP)'!AC$2:AC$37) -> 1 | U20: =SUMIF('Tabla preguntas(ESP)'!$T$2:$T$37,$B20,'Tabla preguntas(ESP)'!AD$2:AD$37) -> 0
B21: LA NUBE | C21: =SUMIF('Tabla preguntas(ESP)'!$T$2:$T$37,$B21,'Tabla preguntas(ESP)'!U$2:U$37) -> 0 | E21: =SUMIF('Tabla preguntas(ESP)'!$T$2:$T$37,$B21,'Tabla preguntas(ESP)'!V$2:V$37) -> 2 | G21: =SUMIF('Tabla preguntas(ESP)'!$T$2:$T$37,$B21,'Tabla preguntas(ESP)'!W$2:W$37) -> 1 | I21: =SUMIF('Tabla preguntas(ESP)'!$T$2:$T$37,$B21,'Tabla preguntas(ESP)'!X$2:X$37) -> 1 | K21: =SUMIF('Tabla preguntas(ESP)'!$T$2:$T$37,$B21,'Tabla preguntas(ESP)'!Y$2:Y$37) -> 1 | M21: =SUMIF('Tabla preguntas(ESP)'!$T$2:$T$37,$B21,'Tabla preguntas(ESP)'!Z$2:Z$37) -> 1 | O21: =SUMIF('Tabla preguntas(ESP)'!$T$2:$T$37,$B21,'Tabla preguntas(ESP)'!AA$2:AA$37) -> 1 | Q21: =SUMIF('Tabla preguntas(ESP)'!$T$2:$T$37,$B21,'Tabla preguntas(ESP)'!AB$2:AB$37) -> 0 | S21: =SUMIF('Tabla preguntas(ESP)'!$T$2:$T$37,$B21,'Tabla preguntas(ESP)'!AC$2:AC$37) -> 1 | U21: =SUMIF('Tabla preguntas(ESP)'!$T$2:$T$37,$B21,'Tabla preguntas(ESP)'!AD$2:AD$37) -> 0
B22: FABRICACIÓN ADITIVA | C22: =SUMIF('Tabla preguntas(ESP)'!$T$2:$T$37,$B22,'Tabla preguntas(ESP)'!U$2:U$37) -> 3 | E22: =SUMIF('Tabla preguntas(ESP)'!$T$2:$T$37,$B22,'Tabla preguntas(ESP)'!V$2:V$37) -> 3 | G22: =SUMIF('Tabla preguntas(ESP)'!$T$2:$T$37,$B22,'Tabla preguntas(ESP)'!W$2:W$37) -> 4 | I22: =SUMIF('Tabla preguntas(ESP)'!$T$2:$T$37,$B22,'Tabla preguntas(ESP)'!X$2:X$37) -> 0 | K22: =SUMIF('Tabla preguntas(ESP)'!$T$2:$T$37,$B22,'Tabla preguntas(ESP)'!Y$2:Y$37) -> 1 | M22: =SUMIF('Tabla preguntas(ESP)'!$T$2:$T$37,$B22,'Tabla preguntas(ESP)'!Z$2:Z$37) -> 4 | O22: =SUMIF('Tabla preguntas(ESP)'!$T$2:$T$37,$B22,'Tabla preguntas(ESP)'!AA$2:AA$37) -> 3 | Q22: =SUMIF('Tabla preguntas(ESP)'!$T$2:$T$37,$B22,'Tabla preguntas(ESP)'!AB$2:AB$37) -> 3 | S22: =SUMIF('Tabla preguntas(ESP)'!$T$2:$T$37,$B22,'Tabla preguntas(ESP)'!AC$2:AC$37) -> 2 | U22: =SUMIF('Tabla preguntas(ESP)'!$T$2:$T$37,$B22,'Tabla preguntas(ESP)'!AD$2:AD$37) -> 2
B23: REALIDAD AUMENTADA | C23: =SUMIF('Tabla preguntas(ESP)'!$T$2:$T$37,$B23,'Tabla preguntas(ESP)'!U$2:U$37) -> 1 | E23: =SUMIF('Tabla preguntas(ESP)'!$T$2:$T$37,$B23,'Tabla preguntas(ESP)'!V$2:V$37) -> 3 | G23: =SUMIF('Tabla preguntas(ESP)'!$T$2:$T$37,$B23,'Tabla preguntas(ESP)'!W$2:W$37) -> 1 | I23: =SUMIF('Tabla preguntas(ESP)'!$T$2:$T$37,$B23,'Tabla preguntas(ESP)'!X$2:X$37) -> 4 | K23: =SUMIF('Tabla preguntas(ESP)'!$T$2:$T$37,$B23,'Tabla preguntas(ESP)'!Y$2:Y$37) -> 2 | M23: =SUMIF('Tabla preguntas(ESP)'!$T$2:$T$37,$B23,'Tabla preguntas(ESP)'!Z$2:Z$37) -> 1 | O23: =SUMIF('Tabla preguntas(ESP)'!$T$2:$T$37,$B23,'Tabla preguntas(ESP)'!AA$2:AA$37) -> 1 | Q23: =SUMIF('Tabla preguntas(ESP)'!$T$2:$T$37,$B23,'Tabla preguntas(ESP)'!AB$2:AB$37) -> 0 | S23: =SUMIF('Tabla preguntas(ESP)'!$T$2:$T$37,$B23,'Tabla preguntas(ESP)'!AC$2:AC$37) -> 1 | U23: =SUMIF('Tabla preguntas(ESP)'!$T$2:$T$37,$B23,'Tabla preguntas(ESP)'!AD$2:AD$37) -> 0
B24: CIBERSEGURIDAD | C24: =SUMIF('Tabla preguntas(ESP)'!$T$2:$T$37,$B24,'Tabla preguntas(ESP)'!U$2:U$37) -> 0 | E24: =SUMIF('Tabla preguntas(ESP)'!$T$2:$T$37,$B24,'Tabla preguntas(ESP)'!V$2:V$37) -> 4 | G24: =SUMIF('Tabla preguntas(ESP)'!$T$2:$T$37,$B24,'Tabla preguntas(ESP)'!W$2:W$37) -> 0 | I24: =SUMIF('Tabla preguntas(ESP)'!$T$2:$T$37,$B24,'Tabla preguntas(ESP)'!X$2:X$37) -> 4 | K24: =SUMIF('Tabla preguntas(ESP)'!$T$2:$T$37,$B24,'Tabla preguntas(ESP)'!Y$2:Y$37) -> 0 | M24: =SUMIF('Tabla preguntas(ESP)'!$T$2:$T$37,$B24,'Tabla preguntas(ESP)'!Z$2:Z$37) -> 0 | O24: =SUMIF('Tabla preguntas(ESP)'!$T$2:$T$37,$B24,'Tabla preguntas(ESP)'!AA$2:AA$37) -> 0 | Q24: =SUMIF('Tabla preguntas(ESP)'!$T$2:$T$37,$B24,'Tabla preguntas(ESP)'!AB$2:AB$37) -> 0 | S24: =SUMIF('Tabla preguntas(ESP)'!$T$2:$T$37,$B24,'Tabla preguntas(ESP)'!AC$2:AC$37) -> 0 | U24: =SUMIF('Tabla preguntas(ESP)'!$T$2:$T$37,$B24,'Tabla preguntas(ESP)'!AD$2:AD$37) -> 0

Sheet Survey (hidden)
B1: INFORMACIÓN | I1: ACTIVIDAD | M1: Factores Clave | T1: Areas Clave | AA1: BIG DATA | AO1: ROBÓTICA | BC1: SIMULACIÓN | BQ1: INTEGRACIÓN DE SISTEMAS | CE1: INTERNET DE LAS COSAS | CS1: LA NUBE | DG1: FABRICACIÓN ADITIVA | DU1: REALIDAD AUMENTADA | EI1: CIBERSEGURIDAD
A2: ID | B2: Nombre Empresa | C2: Fecha | D2: Tipo Empresa | E2: Pais | F2: Localidad | G2: Interes Especial (a mano) | H2: Sector | I2: Astilleros | J2: Subcontratistas | K2: Bienes de Equipo | L2: Servicios | M2: Innovación | N2: Internacionalización | O2: Comercialización | P2: Desarrollo Equipo Directivo | Q2: Financiación | R2: Desarrollo de Nuevos Productos y Servicios | S2: Otros | T2: I+D+i | U2: RRHH | V2: Operaciones | W2: Sistemas | X2: Marketing y Comercial | Y2: Finanzas | Z2: Otros | AA2: REALIZADO HASTA LA FECHA | AB2: DESCRIPCIÓN INICIATIVAS DESARROLLADAS | AC2: INTERES FUTURO | AD2: Facturación | AE2: Beneficios | AF2: Cuota de Mercado | AG2: Productividad | AH2: Nº de Empleados | AI2: Nº de Clientes | AJ2: Nº Paises Exportación | AK2: Nº de Productos Catálogo | AL2: Nº Sectores Cliente | AM2: Nº Patentes | AN2: Otros | AO2: REALIZADO HASTA LA FECHA | AP2: DESCRIPCIÓN INICIATIVAS DESARROLLADAS | AQ2: INTERES FUTURO | AR2: Facturación | AS2: Beneficios | AT2: Cuota de Mercado | AU2: Productividad | AV2: Nº de Empleados | AW2: Nº de Clientes | AX2: Nº Paises Exportación | AY2: Nº de Productos Catálogo | AZ2: Nº Sectores Cliente | BA2: Nº Patentes | BB2: Otros | BC2: REALIZADO HASTA LA FECHA | BD2: DESCRIPCIÓN INICIATIVAS DESARROLLADAS | BE2: INTERES FUTURO | BF2: Facturación | BG2: Beneficios | BH2: Cuota de Mercado | BI2: Productividad | BJ2: Nº de Empleados | BK2: Nº de Clientes | BL2: Nº Paises Exportación | BM2: Nº de Productos Catálogo | BN2: Nº Sectores Cliente | BO2: Nº Patentes | BP2: Otros | BQ2: REALIZADO HASTA LA FECHA | BR2: DESCRIPCIÓN INICIATIVAS DESARROLLADAS | BS2: INTERES FUTURO | BT2: Facturación | BU2: Beneficios | BV2: Cuota de Mercado | BW2: Productividad | BX2: Nº de Empleados | BY2: Nº de Clientes | BZ2: Nº Paises Exportación | CA2: Nº de Productos Catálogo | CB2: Nº Sectores Cliente | CC2: Nº Patentes | CD2: Otros | CE2: REALIZADO HASTA LA FECHA | CF2: DESCRIPCIÓN INICIATIVAS DESARROLLADAS | CG2: INTERES FUTURO | CH2: Facturación | CI2: Beneficios | CJ2: Cuota de Mercado | CK2: Productividad | CL2: Nº de Empleados | CM2: Nº de Clientes | CN2: Nº Paises Exportación | CO2: Nº de Productos Catálogo | CP2: Nº Sectores Cliente | CQ2: Nº Patentes | CR2: Otros | CS2: REALIZADO HASTA LA FECHA | CT2: DESCRIPCIÓN INICIATIVAS DESARROLLADAS | CU2: INTERES FUTURO | CV2: Facturación | CW2: Beneficios | CX2: Cuota de Mercado | CY2: Productividad | CZ2: Nº de Empleados | DA2: Nº de Clientes | DB2: Nº Paises Exportación | DC2: Nº de Productos Catálogo | DD2: Nº Sectores Cliente | DE2: Nº Patentes | DF2: Otros | DG2: REALIZADO HASTA LA FECHA | DH2: DESCRIPCIÓN INICIATIVAS DESARROLLADAS | DI2: INTERES FUTURO | DJ2: Facturación | DK2: Beneficios | DL2: Cuota de Mercado | DM2: Productividad | DN2: Nº de Empleados | DO2: Nº de Clientes | DP2: Nº Paises Exportación | DQ2: Nº de Productos Catálogo | DR2: Nº Sectores Cliente | DS2: Nº Patentes | DT2: Otros | DU2: REALIZADO HASTA LA FECHA | DV2: DESCRIPCIÓN INICIATIVAS DESARROLLADAS | DW2: INTERES FUTURO | DX2: Facturación | DY2: Beneficios | DZ2: Cuota de Mercado | EA2: Productividad | EB2: Nº de Empleados | EC2: Nº de Clientes | ED2: Nº Paises Exportación | EE2: Nº de Productos Catálogo | EF2: Nº Sectores Cliente | EG2: Nº Patentes | EH2: Otros | EI2: REALIZADO HASTA LA FECHA | EJ2: DESCRIPCIÓN INICIATIVAS DESARROLLADAS | EK2: INTERES FUTURO | EL2: Facturación | EM2: Beneficios | EN2: Cuota de Mercado | EO2: Productividad | EP2: Nº de Empleados | EQ2: Nº de Clientes | ER2: Nº Paises Exportación | ES2: Nº de Productos Catálogo | ET2: Nº Sectores Cliente | EU2: Nº Patentes | EV2: Otros | EW2: Localidad
A3: 1 | B3: GUIVISA, S.L. | C3: 2019-03-12 | D3: SME | E3: Euskadi | F3: Basauri | H3: Subcontractor | J3: x | K3: x | M3: x | N3: x | R3: x | T3: x | X3: x | BC3: x | BH3: x | BI3: x | BQ3: x | BW3: x | DH3: PRUEBAS CON PIEZAS DE ACERO | DK3: x | DM3: x
A4: 2 | B4: BOMBAS AZCUE | C4: 2019-03-12 | D4: SME | E4: Euskadi | F4: Zestoa | H4: Equipment Goods | K4: x | M4: x | N4: x | O4: x | T4: x | U4: x | AO4: x | BC4: x | BQ4: x | CE4: x | EI4: x
A5: 3 | B5: EQUIPAMIENTOS EOLICOS S.L | C5: 2019-03-12 | D5: Micro Enterprise | E5: Euskadi | F5: Basauri | H5: Equipment Goods | K5: x | M5: x | R5: x | T5: x | CU5: x | CV5: x
A6: 4 | B6: FINANZAUTO, S.A. | C6: 2019-03-12 | D6: Large Company | E6: Euskadi | F6: Ortuella | H6: Equipment Goods | K6: x | N6: x | R6: x | V6: x | AC6: x | BS6: x
A7: 5 | B7: Industrias FERRI, S.A. | C7: 2019-03-12 | D7: SME | E7: Euskadi | F7: Bilbao | H7: Equipment Goods | K7: x | M7: x | N7: x | O7: x | Q7: x | R7: x | T7: x | V7: x | W7: x | X7: x | AC7: x | AF7: x | AI7: x | AJ7: x | AK7: x | AM7: x | AQ7: x | AU7: x | AV7: x | BE7: x | BI7: x | BM7: x | BS7: x | BU7: x | CG7: x | CH7: x | CI7: x | CJ7: x | DW7: x | EA7: x | EB7: x | EC7: x | EK7: x
A8: 6 | B8: LASANAVAL | C8: 2019-03-12 | D8: Micro Enterprise | E8: Euskadi | F8: Donostia | H8: Services | L8: x | M8: x | R8: x | T8: x | BC8: x | BD8: DISEÑO EN 3D | BE8: x | BH8: x | BI8: x | BN8: x | DG8: x | DH8: MUESTRA DE MODELOS A FABRICAR | DI8: x | DL8: x | DM8: x | DR8: x
A9: 7 | B9: OLIVER DESIGN SL | C9: 2019-03-14 | D9: SME | E9: Euskadi | F9: Getxo | G9: x | H9: Subcontractor | J9: x | M9: x | O9: x | R9: x | U9: x | V9: x | AA9: x | AB9: Analisis informes y estadisiticas desglosados | AC9: x | AE9: x | BC9: x | BD9: Elaboracion de video y paseos interactivos por los barcos diseñados en 3D | BE9: x | BI9: x | CS9: x | CT9: dropbox | CU9: x | CY9: x | DU9: x | DV9: en proceso | DW9: x | EA9: x
A10: 8 | B10: REPSOL COMERCIAL DE PRODUCTOS P | C10: 2019-03-12 | D10: Large Company | E10: Euskadi | F10: Bilbao | H10: Services | L10: x | M10: x | N10: x | T10: x | X10: x | AC10: x | CS10: x | EI10: x
A11: 9 | B11: Técnicas Hidráulicas SA | C11: 2019-03-21 | D11: SME | E11: Euskadi | F11: Mungia | H11: Equipment Goods | K11: x | M11: x | R11: x | T11: x | X11: x | AA11: x | AB11: Implantación en curso en clientes | AC11: x | AD11: x | AE11: x | AK11: x | AL11: x | BQ11: x | BR11: Implantación en curso en clientes | BS11: x | BT11: x | BU11: x | CA11: x | CB11: x
A12: 10 | B12: VICINAY MARINE,S.L. | C12: 2019-03-14 | D12: Large Company | E12: Euskadi | F12: Leioa | G12: x | H12: Equipment Goods | K12: x | M12: x | N12: x | O12: x | R12: x | T12: x | U12: x | V12: x | X12: x | AA12: x | AB12: * Realizando analítica de datos desde 1994 sobre datos captados en soldadura y otras fases de proceso. Se realizaron colaboraciones con la Universidad de Valencia (análisis multivariante y redes neuronales para predicción de calidad). Colaboración con Departamento de Estadística UPV en Red Matemática - Industria (análisis multivariante para optimización de proceso). * 2017. Instalación de cluster Big Data recibiendo formación por parte de Tecnalia * 2017-2018. Proyecto AMDATA en colaboración con Tecnalia (subvencionado por ELKARTEK) para la obtención de modelos predictivos de grietas en los eslabones. | AC12: x | AD12: x | AE12: x | AG12: x | AH12: x | AM12: x | AN12: Nuevo servicio | AO12: x | AP12: * Robots en Vicinay Sestao que han automatizado tareas manuales (robot en sierras, soldadora, granalladora, etc) * Trabajando en proyectos para incorporar robótica en colocación de contretes, inspección y control dimensional | AQ12: x | AR12: x | AS12: x | AU12: x | AV12: x | BA12: x | BE12: x | BI12: x | BS12: x | BW12: x | CE12: x | CF12: * Captación de datos de proceso desde 1994 a través de un equipo conectado a la máquina y a la red * A partir del año 2000 se van incorporando a la red de comunicaciones distintos equipos de control de instalaciones (PLCs, CRIO, etc), analizadores para medición de consumos eléctricos, robots, cámaras de visión artificial, etc | CG12: x | CH12: x | CI12: x | CK12: x | CL12: x | CS12: x | CT12: * Backups de gran cantidad de datos | CU12: x | CW12: x | DG12: x | DH12: * Participación en proyecto HARITIVE (Subvencionado por la convocatoria HAZITEK) | DI12: x | DJ12: x | DK12: x | DM12: x | DN12: x | DO12: x | DQ12: x | DS12: x | DT12: Nuevo proceso productivo | DW12: x | EA12: x | EI12: x | EJ12: * Firewalls, antivirus, backups, control de acceso a proveedores, etc (ámbito IT) * Red industrial de Vicinay Sestao con VLANs y reglas para control de comunicaciones * 2017 Diagnóstico de Ciberseguridad OT en Vicinay Sestao * 2018 - 2019 Proyecto Segmentación red IT / OT en Vicinay Sestao (subvencionado por SPRI) | EK12: x | EP12: x | EV12: Riesgo ciberataques controlado
A13: 11 | B13: ZINETI SAU | C13: 2019-03-12 | D13: SME | E13: Euskadi | F13: Loiu | G13: x | H13: Equipment Goods | K13: x | N13: x | S13: NUEVOS SECTORES EJ ENERGIAS | U13: x | Z13: PRODUCCION | AC13: x | BS13: x | BU13: x | BX13: x | BY13: x | CB13: x | CD13: X | CS13: x | CT13: TODA NUESTRA INFO EN LA NUBE ELIMINACION DE PAPEL | CY13: x | DI13: x | EI13: x | EJ13: FORMACION. PARA CIBERATAQUES Y ROBOS | EL13: x | EM13: x | EP13: x | EQ13: x
A14: 12 | B14: INDASA | C14: 2019-03-12 | D14: Large Company | E14: Euskadi | F14: Erandio altzaga | H14: Subcontractor | J14: x | R14: x | S14: NUEVOS SECTORES EJ ENERGIAS | T14: x | U14: x | Z14: PRODUCCION | BS14: x
A15: 13 | B15: Astilleros de Murueta, s.a. | C15: 2019-04-12 | D15: Large Company | E15: Euskadi | F15: Gernika | H15: Shipyard | I15: x | M15: x | N15: x | O15: x | R15: x | T15: x | U15: x | W15: x | X15: x | AC15: x | AO15: x | AP15: Línea automatizada de soldadura de previas | AQ15: x | AU15: x | BS15: x | BT15: x | BU15: x | BW15: x | DI15: x | DJ15: x | DK15: x | DM15: x | EK15: x
A16: 14 | B16: GHENOVA VIGO | C16: 2019-06-04 | D16: Large Company | E16: Galicia | F16: Vigo | H16: Services | L16: x | M16: x | N16: x | T16: x | U16: x | BC16: x | BD16: Projects MASTIL and RACON | BE16: x | BF16: x | BG16: x | BI16: x | DU16: x | DV16: Projects MASTIL and RACON | DW16: x | DX16: x | DY16: x | EA16: x
A17: 15 | B17: IBERCISA DECK MACHINERY, S.A. | C17: 1969-04-01 | D17: SME | E17: Galicia | F17: Vigo | H17: Equipment Goods | K17: x | M17: x | N17: x | O17: x | T17: x | U17: x | V17: x | W17: x | X17: x | AA17: x | AB17: Big data analysis from CRM and ERP databases | AC17: x | AE17: x | AG17: x | BD17: Simulation of winches activity | BE17: x | BG17: x | BI17: x | BK17: x | BL17: x | BM17: x | CE17: x | CF17: Data recovery from instaled machines and analysis | CG17: x | CJ17: x | CK17: x | CM17: x | CN17: x | CO17: x | CP17: x | CS17: x | CT17: Data recovery from instaled machines | CU17: x | CX17: x | CY17: x | DA17: x | DB17: x | DC17: x | DD17: x | EJ17: Net security | EK17: x | EO17: x
A18: 16 | B18: NAVANTIA | C18: 2019-03-12 | D18: Large Company | E18: Galicia | F18: Ferrol | H18: Shipyard | I18: x | R18: x | U18: x | V18: x | W18: x | AC18: x | AQ18: x | BC18: x | BD18: Signatures | BQ18: x | BR18: Ship Systems Integration | CG18: x | CU18: x | DI18: x | DU18: x | DV18: CDV | EK18: x
A19: 17 | B19: NORINVER MONTAJES E INGENIERIA | C19: 2019-03-12 | D19: SME | E19: Galicia | F19: Ferrol | H19: Services | K19: x | L19: x | M19: x | N19: x | O19: x | T19: x | V19: x | AA19: x | AG19: x | BS19: x | BW19: x | CS19: x | CY19: x
A20: 18 | B20: Sermarine, S. L. | C20: 2019-03-12 | D20: SME | E20: Galicia | F20: Vigo | H20: Subcontractor | J20: x | M20: x | P20: x | T20: x | U20: x | W20: x | CG20: x | CK20: x | CS20: x | CT20: We manage info through a specific software | CW20: x | CY20: x
A21: 19 | B21: SHIP-ST | C21: 2019-05-24 | D21: SME | E21: Francia | F21: Lorient | H21: Services | L21: x | M21: x | P21: x | R21: x | T21: x | BC21: x | BD21: Computal fluid dynamics | BH21: x | BM21: x | BO21: x | CS21: x | CT21: Mail providers | CW21: x | CY21: x | DU21: x | DV21: Virtual reality at first design stage | DZ21: x | EA21: x | EE21: x | EF21: x
A22: 20 | B22: AVEL robotics SAS | C22: 2019-06-04 | D22: SME | E22: Francia | F22: Lorient | H22: Subcontractor | J22: x | M22: x | N22: x | O22: x | P22: x | Q22: x | R22: x | T22: x | U22: x | V22: x | AA22: x | AB22: AVEL is part of the "foil connection" consortium : get data through sensors inserted in composite material - | AC22: x | AE22: x | AJ22: x | AK22: x | AL22: x | AO22: x | AP22: Automated fiber placement machine are used to produce composite parts | AR22: x | AS22: x | AU22: x | BD22: structural design simulation interconnected with sensors in the comosite | BE22: x | BS22: x | CG22: x | CP22: x | DG22: x | DH22: Our composite parts are produced with additive manufacturing | DI22: x | DJ22: x | DK22: x | DM22: x | DN22: x | DO22: x | DQ22: x | DS22: x | EJ22: Keep our clients data confidential | EK22: x | EQ22: x | ET22: x
A23: 21 | B23: MER FORTE | C23: 2019-06-07 | D23: SME | E23: Francia | F23: La Forêt-Fouesnant | H23: Services | L23: x | M23: x | R23: x | U23: x | W23: x | X23: x | Y23: x | BQ23: x | BR23: 3DEXPERIENCE integration | BU23: x | BW23: x | BX23: x | BZ23: x | CA23: x | CB23: x | CS23: x | CT23: Ditributing and implenting 3DEXPERIENCE solutions to naval field | CW23: x | CX23: x | CY23: x | DC23: x | DU23: x | DV23: Ditributing and implenting 3DEXPERIENCE solutions to naval field | DY23: x | EF23: x
A24: 22 | B24: HER-BAK MEDIAS | C24: 2019-06-03 | D24: Micro Enterprise | E24: Francia | F24: Lorient | H24: Services | L24: x | O24: x | Q24: x | R24: x | U24: x | Y24: x | BC24: x | BE24: x | BF24: x | BG24: x | BK24: x | BL24: x | BO24: x | DU24: x | DW24: x | DX24: x | DY24: x | EC24: x | ED24: x | EG24: x
A25: 23 | B25: LEMER Fonderie | C25: 2019-06-04 | D25: SME | E25: Francia | F25: Carquefou | H25: Equipment Goods | K25: x | N25: x | P25: x | X25: x | BC25: x | BD25: foundry simulation of lead metal | BE25: x | BG25: x | BI25: x
A26: 24 | B26: CBS CHANTIERS BRETAGNE SUD | C26: 2019-05-24 | D26: SME | E26: Francia | F26: Belz | H26: Shipyard | I26: x | M26: x | O26: x | P26: x | R26: x | U26: x | V26: x | Y26: x | DG26: x | DH26: production of spare parts as well as prototype design (floating) with a 3D printer | DI26: x | DJ26: x | DK26: x | DL26: x | DN26: x | DP26: x | DR26: x | DU26: x
A27: 25 | B27: SABELLA | C27: 2019-06-04 | D27: SME | E27: Francia | F27: Quimper | H27: Services | K27: x | L27: x | M27: x | N27: x | Q27: x | R27: x | U27: x | Y27: x | AB27: compilation and analysis of tidal turbines production data to provide exploitation services | AC27: x | AD27: x | AE27: x | AF27: x | AH27: x | AK27: x | AO27: x | AP27: robotics in manufacturing processes for major cost decrease | AQ27: x | AR27: x | AS27: x | AT27: x | AU27: x | BC27: x | BD27: Simulation of tidal energy potential for site assessment to support the client development | BE27: x | BF27: x | BH27: x | BI27: x | BJ27: x | BK27: x | BL27: x | BM27: x | BR27: Integration of some engineering and construction process to better control quality-performance | BS27: x | BU27: x | BV27: x | BW27: x | CC27: x | CD27: X | CE27: x | CF27: Obvious need for subsea operation and control command | CG27: x | CI27: x | CJ27: x | CK27: x | CQ27: x | CS27: x | CT27: Already use and to emphasize for communicationand reporting with power operators | CU27: x | CW27: x | CX27: x | CY27: x | DH27: To develop if source of cost savings | DI27: x | DK27: x | DU27: x | DV27: A marketing tool to display subsea farms in operation and to explain industrial processes | DW27: x | DX27: x | DY27: x | DZ27: x | EA27: x | EH27: X | EI27: x | EJ27: Vital for innovative products and to prevent hacking during operation | EK27: x | EM27: x | EN27: x | EO27: x
A28: 26 | B28: SDI SERVICES | C28: 2019-05-24 | D28: SME | E28: Francia | F28: Évron | H28: Services | L28: x | M28: x | P28: x | R28: x | U28: x | W28: x | BC28: x | BF28: x | BG28: x | BH28: x | BI28: x | BJ28: x | BL28: x | DU28: x | DX28: x | DY28: x | EB28: x | ED28: x | EF28: x
A29: 27 | B29: SEAir | C29: 2019-06-04 | D29: SME | E29: Francia | F29: Lorient | H29: Shipyard | I29: x | J29: x | M29: x | N29: x | R29: x | T29: x | BR29: More automated applications | BS29: x | BU29: x | BW29: x | CC29: x | DG29: x | DH29: Muld and foils dedicated to boats, printed by a robot (carbon fiber deposit) and standard 3D printers | DI29: x | DS29: x
A30: 28 | B30: Ferguson Marine | C30: 2019-07-09 | D30: Large Company | E30: UK | F30: Glasgow | H30: Shipyard | I30: x | M30: x | R30: x | U30: x | BC30: x | BD30: VR model of our vessels used as a sales tool | BK30: x | BS30: x | BW30: x
A33: =IF(B33="","",A32+1) ->  | B33: =IFERROR(INDEX(ListarHojas,(ROW()+3)),"") ->  | C33: =IFERROR(INDIRECT("'"&B33&"'!"&"O10"),"") ->  | D33: =IFERROR(IF(INDIRECT("'"&$B33&"'!"&"Q17")=0,IF(INDIRECT("'"&$B33&"'!"&"Q18")=0,"Gran Empresa","PYME"),"Microempresa"),"") ->  | I33: =IFERROR(IF(INDIRECT("'"&$B33&"'!"&"Q12")=0,"","x"),"") ->  | J33: =IFERROR(IF(INDIRECT("'"&$B33&"'!"&"Q13")=0,"","x"),"") ->  | K33: =IFERROR(IF(INDIRECT("'"&$B33&"'!"&"Q14")=0,"","x"),"") ->  | L33: =IFERROR(IF(INDIRECT("'"&$B33&"'!"&"Q15")=0,"","x"),"") ->  | M33: =IFERROR(IF(INDIRECT("'"&$B33&"'!"&"Q23")=0,"","x"),"") ->  | N33: =IFERROR(IF(INDIRECT("'"&$B33&"'!"&"Q24")=0,"","x"),"") ->  | O33: =IFERROR(IF(INDIRECT("'"&$B33&"'!"&"Q25")=0,"","x"),"") ->  | P33: =IFERROR(IF(INDIRECT("'"&$B33&"'!"&"Q26")=0,"","x"),"") ->  | Q33: =IFERROR(IF(INDIRECT("'"&$B33&"'!"&"Q27")=0,"","x"),"") ->  | R33: =IFERROR(IF(INDIRECT("'"&$B33&"'!"&"Q28")=0,"","x"),"") ->  | S33: =IFERROR(IF(INDIRECT("'"&$B33&"'!"&"C29")=0,IF(INDIRECT("'"&$B33&"'!"&"Q29")=0,"","x"),INDIRECT("'"&$B33&"'!"&"C29")),"") ->  | T33: =IFERROR(IF(INDIRECT("'"&$B33&"'!"&"Q33")=0,"","x"),"") ->  | U33: =IFERROR(IF(INDIRECT("'"&$B33&"'!"&"Q34")=0,"","x"),"") ->  | V33: =IFERROR(IF(INDIRECT("'"&$B33&"'!"&"Q35")=0,"","x"),"") ->  | W33: =IFERROR(IF(INDIRECT("'"&$B33&"'!"&"Q36")=0,"","x"),"") ->  | X33: =IFERROR(IF(INDIRECT("'"&$B33&"'!"&"Q37")=0,"","x"),"") ->  | Y33: =IFERROR(IF(INDIRECT("'"&$B33&"'!"&"Q38")=0,"","x"),"") ->  | Z33: =IFERROR(IF(INDIRECT("'"&$B33&"'!"&"C39")=0,IF(INDIRECT("'"&$B33&"'!"&"Q39")=0,"","x"),INDIRECT("'"&$B33&"'!"&"C39")),"") ->  | AA33: =IFERROR(IF(INDIRECT("'"&$B33&"'!"&"D48")=0,"","x"),"") ->  | AB33: =IFERROR(IF(INDIRECT("'"&$B33&"'!"&"E48")=0,"",INDIRECT("'"&$B33&"'!"&"E48")),"") ->  | AC33: =IFERROR(IF(INDIRECT("'"&$B33&"'!"&"F48")=0,"","x"),"") ->  | AD33: =IFERROR(IF(INDIRECT("'"&$B33&"'!"&"G48")=0,"","x"),"") ->  | AE33: =IFERROR(IF(INDIRECT("'"&$B33&"'!"&"H48")=0,"","x"),"") ->  | AF33: =IFERROR(IF(INDIRECT("'"&$B33&"'!"&"I48")=0,"","x"),"") ->  | AG33: =IFERROR(IF(INDIRECT("'"&$B33&"'!"&"J48")=0,"","x"),"") ->  | AH33: =IFERROR(IF(INDIRECT("'"&$B33&"'!"&"K48")=0,"","x"),"") ->  | AI33: =IFERROR(IF(INDIRECT("'"&$B33&"'!"&"L48")=0,"","x"),"") ->  | AJ33: =IFERROR(IF(INDIRECT("'"&$B33&"'!"&"M48")=0,"","x"),"") ->  | AK33: =IFERROR(IF(INDIRECT("'"&$B33&"'!"&"N48")=0,"","x"),"") ->  | AL33: =IFERROR(IF(INDIRECT("'"&$B33&"'!"&"O48")=0,"","x"),"") ->  | AM33: =IFERROR(IF(INDIRECT("'"&$B33&"'!"&"P48")=0,"","x"),"") ->  | AN33: =IFERROR(IF(INDIRECT("'"&$B33&"'!"&"Q48")=0,"",INDIRECT("'"&$B33&"'!"&"Q48")),"") ->  | AO33: =IFERROR(IF(INDIRECT("'"&$B33&"'!"&"D49")=0,"","x"),"") ->  | AP33: =IFERROR(IF(INDIRECT("'"&$B33&"'!"&"E49")=0,"",INDIRECT("'"&$B33&"'!"&"E49")),"") ->  | AQ33: =IFERROR(IF(INDIRECT("'"&$B33&"'!"&"F49")=0,"","x"),"") ->  | AR33: =IFERROR(IF(INDIRECT("'"&$B33&"'!"&"G49")=0,"","x"),"") ->  | AS33: =IFERROR(IF(INDIRECT("'"&$B33&"'!"&"H49")=0,"","x"),"") ->  | AT33: =IFERROR(IF(INDIRECT("'"&$B33&"'!"&"I49")=0,"","x"),"") ->  | AU33: =IFERROR(IF(INDIRECT("'"&$B33&"'!"&"J49")=0,"","x"),"") ->  | AV33: =IFERROR(IF(INDIRECT("'"&$B33&"'!"&"K49")=0,"","x"),"") ->  | AW33: =IFERROR(IF(INDIRECT("'"&$B33&"'!"&"L49")=0,"","x"),"") ->  | AX33: =IFERROR(IF(INDIRECT("'"&$B33&"'!"&"M49")=0,"","x"),"") ->  | AY33: =IFERROR(IF(INDIRECT("'"&$B33&"'!"&"N49")=0,"","x"),"") ->  | AZ33: =IFERROR(IF(INDIRECT("'"&$B33&"'!"&"O49")=0,"","x"),"") ->  | BA33: =IFERROR(IF(INDIRECT("'"&$B33&"'!"&"P49")=0,"","x"),"") ->  | BB33: =IFERROR(IF(INDIRECT("'"&$B33&"'!"&"Q49")=0,"",INDIRECT("'"&$B33&"'!"&"Q49")),"") ->  | BC33: =IFERROR(IF(INDIRECT("'"&$B33&"'!"&"D50")=0,"","x"),"") ->  | BD33: =IFERROR(IF(INDIRECT("'"&$B33&"'!"&"E50")=0,"",INDIRECT("'"&$B33&"'!"&"E50")),"") ->  | BE33: =IFERROR(IF(INDIRECT("'"&$B33&"'!"&"F50")=0,"","x"),"") ->  | BF33: =IFERROR(IF(INDIRECT("'"&$B33&"'!"&"G50")=0,"","x"),"") ->  | BG33: =IFERROR(IF(INDIRECT("'"&$B33&"'!"&"H50")=0,"","x"),"") ->  | BH33: =IFERROR(IF(INDIRECT("'"&$B33&"'!"&"I50")=0,"","x"),"") ->  | BI33: =IFERROR(IF(INDIRECT("'"&$B33&"'!"&"J50")=0,"","x"),"") ->  | BJ33: =IFERROR(IF(INDIRECT("'"&$B33&"'!"&"K50")=0,"","x"),"") ->  | BK33: =IFERROR(IF(INDIRECT("'"&$B33&"'!"&"L50")=0,"","x"),"") ->  | BL33: =IFERROR(IF(INDIRECT("'"&$B33&"'!"&"M50")=0,"","x"),"") ->  | BM33: =IFERROR(IF(INDIRECT("'"&$B33&"'!"&"N50")=0,"","x"),"") ->  | BN33: =IFERROR(IF(INDIRECT("'"&$B33&"'!"&"O50")=0,"","x"),"") ->  | BO33: =IFERROR(IF(INDIRECT("'"&$B33&"'!"&"P50")=0,"","x"),"") ->  | BP33: =IFERROR(IF(INDIRECT("'"&$B33&"'!"&"Q50")=0,"",INDIRECT("'"&$B33&"'!"&"Q50")),"") ->  | BQ33: =IFERROR(IF(INDIRECT("'"&$B33&"'!"&"D51")=0,"","x"),"") ->  | BR33: =IFERROR(IF(INDIRECT("'"&$B33&"'!"&"E51")=0,"",INDIRECT("'"&$B33&"'!"&"E51")),"") ->  | BS33: =IFERROR(IF(INDIRECT("'"&$B33&"'!"&"F51")=0,"","x"),"") ->  | BT33: =IFERROR(IF(INDIRECT("'"&$B33&"'!"&"G51")=0,"","x"),"") ->  | BU33: =IFERROR(IF(INDIRECT("'"&$B33&"'!"&"H51")=0,"","x"),"") ->  | BV33: =IFERROR(IF(INDIRECT("'"&$B33&"'!"&"I51")=0,"","x"),"") ->  | BW33: =IFERROR(IF(INDIRECT("'"&$B33&"'!"&"J51")=0,"","x"),"") ->  | BX33: =IFERROR(IF(INDIRECT("'"&$B33&"'!"&"K51")=0,"","x"),"") ->  | BY33: =IFERROR(IF(INDIRECT("'"&$B33&"'!"&"L51")=0,"","x"),"") ->  | BZ33: =IFERROR(IF(INDIRECT("'"&$B33&"'!"&"M51")=0,"","x"),"") ->  | CA33: =IFERROR(IF(INDIRECT("'"&$B33&"'!"&"N51")=0,"","x"),"") ->  | CB33: =IFERROR(IF(INDIRECT("'"&$B33&"'!"&"O51")=0,"","x"),"") ->  | CC33: =IFERROR(IF(INDIRECT("'"&$B33&"'!"&"P51")=0,"","x"),"") ->  | CD33: =IFERROR(IF(INDIRECT("'"&$B33&"'!"&"Q51")=0,"",INDIRECT("'"&$B33&"'!"&"Q51")),"") ->  | CE33: =IFERROR(IF(INDIRECT("'"&$B33&"'!"&"D52")=0,"","x"),"") ->  | CF33: =IFERROR(IF(INDIRECT("'"&$B33&"'!"&"E52")=0,"",INDIRECT("'"&$B33&"'!"&"E52")),"") ->  | CG33: =IFERROR(IF(INDIRECT("'"&$B33&"'!"&"F52")=0,"","x"),"") ->  | CH33: =IFERROR(IF(INDIRECT("'"&$B33&"'!"&"G52")=0,"","x"),"") ->  | CI33: =IFERROR(IF(INDIRECT("'"&$B33&"'!"&"H52")=0,"","x"),"") ->  | CJ33: =IFERROR(IF(INDIRECT("'"&$B33&"'!"&"I52")=0,"","x"),"") ->  | CK33: =IFERROR(IF(INDIRECT("'"&$B33&"'!"&"J52")=0,"","x"),"") ->  | CL33: =IFERROR(IF(INDIRECT("'"&$B33&"'!"&"K52")=0,"","x"),"") ->  | CM33: =IFERROR(IF(INDIRECT("'"&$B33&"'!"&"L52")=0,"","x"),"") ->  | CN33: =IFERROR(IF(INDIRECT("'"&$B33&"'!"&"M52")=0,"","x"),"") ->  | CO33: =IFERROR(IF(INDIRECT("'"&$B33&"'!"&"N52")=0,"","x"),"") ->  | CP33: =IFERROR(IF(INDIRECT("'"&$B33&"'!"&"O52")=0,"","x"),"") ->  | CQ33: =IFERROR(IF(INDIRECT("'"&$B33&"'!"&"P52")=0,"","x"),"") ->  | CR33: =IFERROR(IF(INDIRECT("'"&$B33&"'!"&"Q52")=0,"",INDIRECT("'"&$B33&"'!"&"Q52")),"") ->  | CS33: =IFERROR(IF(INDIRECT("'"&$B33&"'!"&"D53")=0,"","x"),"") ->  | CT33: =IFERROR(IF(INDIRECT("'"&$B33&"'!"&"E53")=0,"",INDIRECT("'"&$B33&"'!"&"E53")),"") ->  | CU33: =IFERROR(IF(INDIRECT("'"&$B33&"'!"&"F53")=0,"","x"),"") ->  | CV33: =IFERROR(IF(INDIRECT("'"&$B33&"'!"&"G53")=0,"","x"),"") ->  | CW33: =IFERROR(IF(INDIRECT("'"&$B33&"'!"&"H53")=0,"","x"),"") ->  | CX33: =IFERROR(IF(INDIRECT("'"&$B33&"'!"&"I53")=0,"","x"),"") ->  | CY33: =IFERROR(IF(INDIRECT("'"&$B33&"'!"&"J53")=0,"","x"),"") ->  | CZ33: =IFERROR(IF(INDIRECT("'"&$B33&"'!"&"K53")=0,"","x"),"") ->  | DA33: =IFERROR(IF(INDIRECT("'"&$B33&"'!"&"L53")=0,"","x"),"") ->  | DB33: =IFERROR(IF(INDIRECT("'"&$B33&"'!"&"M53")=0,"","x"),"") ->  | DC33: =IFERROR(IF(INDIRECT("'"&$B33&"'!"&"N53")=0,"","x"),"") ->  | DD33: =IFERROR(IF(INDIRECT("'"&$B33&"'!"&"O53")=0,"","x"),"") ->  | DE33: =IFERROR(IF(INDIRECT("'"&$B33&"'!"&"P53")=0,"","x"),"") ->  | DF33: =IFERROR(IF(INDIRECT("'"&$B33&"'!"&"Q53")=0,"",INDIRECT("'"&$B33&"'!"&"Q53")),"") ->  | DG33: =IFERROR(IF(INDIRECT("'"&$B33&"'!"&"D54")=0,"","x"),"") ->  | DH33: =IFERROR(IF(INDIRECT("'"&$B33&"'!"&"E54")=0,"",INDIRECT("'"&$B33&"'!"&"E54")),"") ->  | DI33: =IFERROR(IF(INDIRECT("'"&$B33&"'!"&"F54")=0,"","x"),"") ->  | DJ33: =IFERROR(IF(INDIRECT("'"&$B33&"'!"&"G54")=0,"","x"),"") ->  | DK33: =IFERROR(IF(INDIRECT("'"&$B33&"'!"&"H54")=0,"","x"),"") ->  | DL33: =IFERROR(IF(INDIRECT("'"&$B33&"'!"&"I54")=0,"","x"),"") ->  | DM33: =IFERROR(IF(INDIRECT("'"&$B33&"'!"&"J54")=0,"","x"),"") ->  | DN33: =IFERROR(IF(INDIRECT("'"&$B33&"'!"&"K54")=0,"","x"),"") ->  | DO33: =IFERROR(IF(INDIRECT("'"&$B33&"'!"&"L54")=0,"","x"),"") ->  | DP33: =IFERROR(IF(INDIRECT("'"&$B33&"'!"&"M54")=0,"","x"),"") ->  | DQ33: =IFERROR(IF(INDIRECT("'"&$B33&"'!"&"N54")=0,"","x"),"") ->  | DR33: =IFERROR(IF(INDIRECT("'"&$B33&"'!"&"O54")=0,"","x"),"") ->  | DS33: =IFERROR(IF(INDIRECT("'"&$B33&"'!"&"P54")=0,"","x"),"") ->  | DT33: =IFERROR(IF(INDIRECT("'"&$B33&"'!"&"Q54")=0,"",INDIRECT("'"&$B33&"'!"&"Q54")),"") ->  | DU33: =IFERROR(IF(INDIRECT("'"&$B33&"'!"&"D55")=0,"","x"),"") ->  | DV33: =IFERROR(IF(INDIRECT("'"&$B33&"'!"&"E55")=0,"",INDIRECT("'"&$B33&"'!"&"E55")),"") ->  | DW33: =IFERROR(IF(INDIRECT("'"&$B33&"'!"&"F55")=0,"","x"),"") ->  | DX33: =IFERROR(IF(INDIRECT("'"&$B33&"'!"&"G55")=0,"","x"),"") ->  | DY33: =IFERROR(IF(INDIRECT("'"&$B33&"'!"&"H55")=0,"","x"),"") ->  | DZ33: =IFERROR(IF(INDIRECT("'"&$B33&"'!"&"I55")=0,"","x"),"") ->  | EA33: =IFERROR(IF(INDIRECT("'"&$B33&"'!"&"J55")=0,"","x"),"") ->  | EB33: =IFERROR(IF(INDIRECT("'"&$B33&"'!"&"K55")=0,"","x"),"") ->  | EC33: =IFERROR(IF(INDIRECT("'"&$B33&"'!"&"L55")=0,"","x"),"") ->  | ED33: =IFERROR(IF(INDIRECT("'"&$B33&"'!"&"M55")=0,"","x"),"") ->  | EE33: =IFERROR(IF(INDIRECT("'"&$B33&"'!"&"N55")=0,"","x"),"") ->  | EF33: =IFERROR(IF(INDIRECT("'"&$B33&"'!"&"O55")=0,"","x"),"") ->  | EG33: =IFERROR(IF(INDIRECT("'"&$B33&"'!"&"P55")=0,"","x"),"") ->  | EH33: =IFERROR(IF(INDIRECT("'"&$B33&"'!"&"Q55")=0,"",INDIRECT("'"&$B33&"'!"&"Q55")),"") ->  | EI33: =IFERROR(IF(INDIRECT("'"&$B33&"'!"&"D56")=0,"","x"),"") ->  | EJ33: =IFERROR(IF(INDIRECT("'"&$B33&"'!"&"E56")=0,"",INDIRECT("'"&$B33&"'!"&"E56")),"") ->  | EK33: =IFERROR(IF(INDIRECT("'"&$B33&"'!"&"F56")=0,"","x"),"") ->  | EL33: =IFERROR(IF(INDIRECT("'"&$B33&"'!"&"G56")=0,"","x"),"") ->  | EM33: =IFERROR(IF(INDIRECT("'"&$B33&"'!"&"H56")=0,"","x"),"") ->  | EN33: =IFERROR(IF(INDIRECT("'"&$B33&"'!"&"I56")=0,"","x"),"") ->  | EO33: =IFERROR(IF(INDIRECT("'"&$B33&"'!"&"J56")=0,"","x"),"") ->  | EP33: =IFERROR(IF(INDIRECT("'"&$B33&"'!"&"K56")=0,"","x"),"") ->  | EQ33: =IFERROR(IF(INDIRECT("'"&$B33&"'!"&"L56")=0,"","x"),"") ->  | ER33: =IFERROR(IF(INDIRECT("'"&$B33&"'!"&"M56")=0,"","x"),"") ->  | ES33: =IFERROR(IF(INDIRECT("'"&$B33&"'!"&"N56")=0,"","x"),"") ->  | ET33: =IFERROR(IF(INDIRECT("'"&$B33&"'!"&"O56")=0,"","x"),"") ->  | EU33: =IFERROR(IF(INDIRECT("'"&$B33&"'!"&"P56")=0,"","x"),"") ->  | EV33: =IFERROR(IF(INDIRECT("'"&$B33&"'!"&"Q56")=0,"",INDIRECT("'"&$B33&"'!"&"Q56")),"") -> 
B68: =IFERROR(INDEX(ListarHojas,(ROW()+3)),"") ->  | C68: =IFERROR(INDIRECT("'"&B68&"'!"&"O10"),"") ->  | D68: =IFERROR(IF(INDIRECT("'"&$B68&"'!"&"Q17")=0,IF(INDIRECT("'"&$B68&"'!"&"Q18")=0,"Gran Empresa","PYME"),"Microempresa"),"") ->  | I68: =IFERROR(IF(INDIRECT("'"&$B68&"'!"&"Q12")=0,"","x"),"") ->  | J68: =IFERROR(IF(INDIRECT("'"&$B68&"'!"&"Q13")=0,"","x"),"") ->  | K68: =IFERROR(IF(INDIRECT("'"&$B68&"'!"&"Q14")=0,"","x"),"") ->  | L68: =IFERROR(IF(INDIRECT("'"&$B68&"'!"&"Q15")=0,"","x"),"") ->  | M68: =IFERROR(IF(INDIRECT("'"&$B68&"'!"&"Q23")=0,"","x"),"") ->  | N68: =IFERROR(IF(INDIRECT("'"&$B68&"'!"&"Q24")=0,"","x"),"") ->  | O68: =IFERROR(IF(INDIRECT("'"&$B68&"'!"&"Q25")=0,"","x"),"") ->  | P68: =IFERROR(IF(INDIRECT("'"&$B68&"'!"&"Q26")=0,"","x"),"") ->  | Q68: =IFERROR(IF(INDIRECT("'"&$B68&"'!"&"Q27")=0,"","x"),"") ->  | R68: =IFERROR(IF(INDIRECT("'"&$B68&"'!"&"Q28")=0,"","x"),"") ->  | S68: =IFERROR(IF(INDIRECT("'"&$B68&"'!"&"C29")=0,IF(INDIRECT("'"&$B68&"'!"&"Q29")=0,"","x"),INDIRECT("'"&$B68&"'!"&"C29")),"") ->  | T68: =IFERROR(IF(INDIRECT("'"&$B68&"'!"&"Q33")=0,"","x"),"") ->  | U68: =IFERROR(IF(INDIRECT("'"&$B68&"'!"&"Q34")=0,"","x"),"") ->  | V68: =IFERROR(IF(INDIRECT("'"&$B68&"'!"&"Q35")=0,"","x"),"") ->  | W68: =IFERROR(IF(INDIRECT("'"&$B68&"'!"&"Q36")=0,"","x"),"") ->  | X68: =IFERROR(IF(INDIRECT("'"&$B68&"'!"&"Q37")=0,"","x"),"") ->  | Y68: =IFERROR(IF(INDIRECT("'"&$B68&"'!"&"Q38")=0,"","x"),"") ->  | Z68: =IFERROR(IF(INDIRECT("'"&$B68&"'!"&"C39")=0,IF(INDIRECT("'"&$B68&"'!"&"Q39")=0,"","x"),INDIRECT("'"&$B68&"'!"&"C39")),"") ->  | AA68: =IFERROR(IF(INDIRECT("'"&$B68&"'!"&"D48")=0,"","x"),"") ->  | AB68: =IFERROR(IF(INDIRECT("'"&$B68&"'!"&"E48")=0,"",INDIRECT("'"&$B68&"'!"&"E48")),"") ->  | AC68: =IFERROR(IF(INDIRECT("'"&$B68&"'!"&"F48")=0,"","x"),"") ->  | AD68: =IFERROR(IF(INDIRECT("'"&$B68&"'!"&"G48")=0,"","x"),"") ->  | AE68: =IFERROR(IF(INDIRECT("'"&$B68&"'!"&"H48")=0,"","x"),"") ->  | AF68: =IFERROR(IF(INDIRECT("'"&$B68&"'!"&"I48")=0,"","x"),"") ->  | AG68: =IFERROR(IF(INDIRECT("'"&$B68&"'!"&"J48")=0,"","x"),"") ->  | AH68: =IFERROR(IF(INDIRECT("'"&$B68&"'!"&"K48")=0,"","x"),"") ->  | AI68: =IFERROR(IF(INDIRECT("'"&$B68&"'!"&"L48")=0,"","x"),"") ->  | AJ68: =IFERROR(IF(INDIRECT("'"&$B68&"'!"&"M48")=0,"","x"),"") ->  | AK68: =IFERROR(IF(INDIRECT("'"&$B68&"'!"&"N48")=0,"","x"),"") ->  | AL68: =IFERROR(IF(INDIRECT("'"&$B68&"'!"&"O48")=0,"","x"),"") ->  | AM68: =IFERROR(IF(INDIRECT("'"&$B68&"'!"&"P48")=0,"","x"),"") ->  | AN68: =IFERROR(IF(INDIRECT("'"&$B68&"'!"&"Q48")=0,"",INDIRECT("'"&$B68&"'!"&"Q48")),"") ->  | AO68: =IFERROR(IF(INDIRECT("'"&$B68&"'!"&"D49")=0,"","x"),"") ->  | AP68: =IFERROR(IF(INDIRECT("'"&$B68&"'!"&"E49")=0,"",INDIRECT("'"&$B68&"'!"&"E49")),"") ->  | AQ68: =IFERROR(IF(INDIRECT("'"&$B68&"'!"&"F49")=0,"","x"),"") ->  | AR68: =IFERROR(IF(INDIRECT("'"&$B68&"'!"&"G49")=0,"","x"),"") ->  | AS68: =IFERROR(IF(INDIRECT("'"&$B68&"'!"&"H49")=0,"","x"),"") ->  | AT68: =IFERROR(IF(INDIRECT("'"&$B68&"'!"&"I49")=0,"","x"),"") ->  | AU68: =IFERROR(IF(INDIRECT("'"&$B68&"'!"&"J49")=0,"","x"),"") ->  | AV68: =IFERROR(IF(INDIRECT("'"&$B68&"'!"&"K49")=0,"","x"),"") ->  | AW68: =IFERROR(IF(INDIRECT("'"&$B68&"'!"&"L49")=0,"","x"),"") ->  | AX68: =IFERROR(IF(INDIRECT("'"&$B68&"'!"&"M49")=0,"","x"),"") ->  | AY68: =IFERROR(IF(INDIRECT("'"&$B68&"'!"&"N49")=0,"","x"),"") ->  | AZ68: =IFERROR(IF(INDIRECT("'"&$B68&"'!"&"O49")=0,"","x"),"") ->  | BA68: =IFERROR(IF(INDIRECT("'"&$B68&"'!"&"P49")=0,"","x"),"") ->  | BB68: =IFERROR(IF(INDIRECT("'"&$B68&"'!"&"Q49")=0,"",INDIRECT("'"&$B68&"'!"&"Q49")),"") ->  | BC68: =IFERROR(IF(INDIRECT("'"&$B68&"'!"&"D50")=0,"","x"),"") ->  | BD68: =IFERROR(IF(INDIRECT("'"&$B68&"'!"&"E50")=0,"",INDIRECT("'"&$B68&"'!"&"E50")),"") ->  | BE68: =IFERROR(IF(INDIRECT("'"&$B68&"'!"&"F50")=0,"","x"),"") ->  | BF68: =IFERROR(IF(INDIRECT("'"&$B68&"'!"&"G50")=0,"","x"),"") ->  | BG68: =IFERROR(IF(INDIRECT("'"&$B68&"'!"&"H50")=0,"","x"),"") ->  | BH68: =IFERROR(IF(INDIRECT("'"&$B68&"'!"&"I50")=0,"","x"),"") ->  | BI68: =IFERROR(IF(INDIRECT("'"&$B68&"'!"&"J50")=0,"","x"),"") ->  | BJ68: =IFERROR(IF(INDIRECT("'"&$B68&"'!"&"K50")=0,"","x"),"") ->  | BK68: =IFERROR(IF(INDIRECT("'"&$B68&"'!"&"L50")=0,"","x"),"") ->  | BL68: =IFERROR(IF(INDIRECT("'"&$B68&"'!"&"M50")=0,"","x"),"") ->  | BM68: =IFERROR(IF(INDIRECT("'"&$B68&"'!"&"N50")=0,"","x"),"") ->  | BN68: =IFERROR(IF(INDIRECT("'"&$B68&"'!"&"O50")=0,"","x"),"") ->  | BO68: =IFERROR(IF(INDIRECT("'"&$B68&"'!"&"P50")=0,"","x"),"") ->  | BP68: =IFERROR(IF(INDIRECT("'"&$B68&"'!"&"Q50")=0,"",INDIRECT("'"&$B68&"'!"&"Q50")),"") ->  | BQ68: =IFERROR(IF(INDIRECT("'"&$B68&"'!"&"D51")=0,"","x"),"") ->  | BR68: =IFERROR(IF(INDIRECT("'"&$B68&"'!"&"E51")=0,"",INDIRECT("'"&$B68&"'!"&"E51")),"") ->  | BS68: =IFERROR(IF(INDIRECT("'"&$B68&"'!"&"F51")=0,"","x"),"") ->  | BT68: =IFERROR(IF(INDIRECT("'"&$B68&"'!"&"G51")=0,"","x"),"") ->  | BU68: =IFERROR(IF(INDIRECT("'"&$B68&"'!"&"H51")=0,"","x"),"") ->  | BV68: =IFERROR(IF(INDIRECT("'"&$B68&"'!"&"I51")=0,"","x"),"") ->  | BW68: =IFERROR(IF(INDIRECT("'"&$B68&"'!"&"J51")=0,"","x"),"") ->  | BX68: =IFERROR(IF(INDIRECT("'"&$B68&"'!"&"K51")=0,"","x"),"") ->  | BY68: =IFERROR(IF(INDIRECT("'"&$B68&"'!"&"L51")=0,"","x"),"") ->  | BZ68: =IFERROR(IF(INDIRECT("'"&$B68&"'!"&"M51")=0,"","x"),"") ->  | CA68: =IFERROR(IF(INDIRECT("'"&$B68&"'!"&"N51")=0,"","x"),"") ->  | CB68: =IFERROR(IF(INDIRECT("'"&$B68&"'!"&"O51")=0,"","x"),"") ->  | CC68: =IFERROR(IF(INDIRECT("'"&$B68&"'!"&"P51")=0,"","x"),"") ->  | CD68: =IFERROR(IF(INDIRECT("'"&$B68&"'!"&"Q51")=0,"",INDIRECT("'"&$B68&"'!"&"Q51")),"") ->  | CE68: =IFERROR(IF(INDIRECT("'"&$B68&"'!"&"D52")=0,"","x"),"") ->  | CF68: =IFERROR(IF(INDIRECT("'"&$B68&"'!"&"E52")=0,"",INDIRECT("'"&$B68&"'!"&"E52")),"") ->  | CG68: =IFERROR(IF(INDIRECT("'"&$B68&"'!"&"F52")=0,"","x"),"") ->  | CH68: =IFERROR(IF(INDIRECT("'"&$B68&"'!"&"G52")=0,"","x"),"") ->  | CI68: =IFERROR(IF(INDIRECT("'"&$B68&"'!"&"H52")=0,"","x"),"") ->  | CJ68: =IFERROR(IF(INDIRECT("'"&$B68&"'!"&"I52")=0,"","x"),"") ->  | CK68: =IFERROR(IF(INDIRECT("'"&$B68&"'!"&"J52")=0,"","x"),"") ->  | CL68: =IFERROR(IF(INDIRECT("'"&$B68&"'!"&"K52")=0,"","x"),"") ->  | CM68: =IFERROR(IF(INDIRECT("'"&$B68&"'!"&"L52")=0,"","x"),"") ->  | CN68: =IFERROR(IF(INDIRECT("'"&$B68&"'!"&"M52")=0,"","x"),"") ->  | CO68: =IFERROR(IF(INDIRECT("'"&$B68&"'!"&"N52")=0,"","x"),"") ->  | CP68: =IFERROR(IF(INDIRECT("'"&$B68&"'!"&"O52")=0,"","x"),"") ->  | CQ68: =IFERROR(IF(INDIRECT("'"&$B68&"'!"&"P52")=0,"","x"),"") ->  | CR68: =IFERROR(IF(INDIRECT("'"&$B68&"'!"&"Q52")=0,"",INDIRECT("'"&$B68&"'!"&"Q52")),"") ->  | CS68: =IFERROR(IF(INDIRECT("'"&$B68&"'!"&"D53")=0,"","x"),"") ->  | CT68: =IFERROR(IF(INDIRECT("'"&$B68&"'!"&"E53")=0,"",INDIRECT("'"&$B68&"'!"&"E53")),"") ->  | CU68: =IFERROR(IF(INDIRECT("'"&$B68&"'!"&"F53")=0,"","x"),"") ->  | CV68: =IFERROR(IF(INDIRECT("'"&$B68&"'!"&"G53")=0,"","x"),"") ->  | CW68: =IFERROR(IF(INDIRECT("'"&$B68&"'!"&"H53")=0,"","x"),"") ->  | CX68: =IFERROR(IF(INDIRECT("'"&$B68&"'!"&"I53")=0,"","x"),"") ->  | CY68: =IFERROR(IF(INDIRECT("'"&$B68&"'!"&"J53")=0,"","x"),"") ->  | CZ68: =IFERROR(IF(INDIRECT("'"&$B68&"'!"&"K53")=0,"","x"),"") ->  | DA68: =IFERROR(IF(INDIRECT("'"&$B68&"'!"&"L53")=0,"","x"),"") ->  | DB68: =IFERROR(IF(INDIRECT("'"&$B68&"'!"&"M53")=0,"","x"),"") ->  | DC68: =IFERROR(IF(INDIRECT("'"&$B68&"'!"&"N53")=0,"","x"),"") ->  | DD68: =IFERROR(IF(INDIRECT("'"&$B68&"'!"&"O53")=0,"","x"),"") ->  | DE68: =IFERROR(IF(INDIRECT("'"&$B68&"'!"&"P53")=0,"","x"),"") ->  | DF68: =IFERROR(IF(INDIRECT("'"&$B68&"'!"&"Q53")=0,"",INDIRECT("'"&$B68&"'!"&"Q53")),"") ->  | DG68: =IFERROR(IF(INDIRECT("'"&$B68&"'!"&"D54")=0,"","x"),"") ->  | DH68: =IFERROR(IF(INDIRECT("'"&$B68&"'!"&"E54")=0,"",INDIRECT("'"&$B68&"'!"&"E54")),"") ->  | DI68: =IFERROR(IF(INDIRECT("'"&$B68&"'!"&"F54")=0,"","x"),"") ->  | DJ68: =IFERROR(IF(INDIRECT("'"&$B68&"'!"&"G54")=0,"","x"),"") ->  | DK68: =IFERROR(IF(INDIRECT("'"&$B68&"'!"&"H54")=0,"","x"),"") ->  | DL68: =IFERROR(IF(INDIRECT("'"&$B68&"'!"&"I54")=0,"","x"),"") ->  | DM68: =IFERROR(IF(INDIRECT("'"&$B68&"'!"&"J54")=0,"","x"),"") ->  | DN68: =IFERROR(IF(INDIRECT("'"&$B68&"'!"&"K54")=0,"","x"),"") ->  | DO68: =IFERROR(IF(INDIRECT("'"&$B68&"'!"&"L54")=0,"","x"),"") ->  | DP68: =IFERROR(IF(INDIRECT("'"&$B68&"'!"&"M54")=0,"","x"),"") ->  | DQ68: =IFERROR(IF(INDIRECT("'"&$B68&"'!"&"N54")=0,"","x"),"") ->  | DR68: =IFERROR(IF(INDIRECT("'"&$B68&"'!"&"O54")=0,"","x"),"") ->  | DS68: =IFERROR(IF(INDIRECT("'"&$B68&"'!"&"P54")=0,"","x"),"") ->  | DT68: =IFERROR(IF(INDIRECT("'"&$B68&"'!"&"Q54")=0,"",INDIRECT("'"&$B68&"'!"&"Q54")),"") ->  | DU68: =IFERROR(IF(INDIRECT("'"&$B68&"'!"&"D55")=0,"","x"),"") ->  | DV68: =IFERROR(IF(INDIRECT("'"&$B68&"'!"&"E55")=0,"",INDIRECT("'"&$B68&"'!"&"E55")),"") ->  | DW68: =IFERROR(IF(INDIRECT("'"&$B68&"'!"&"F55")=0,"","x"),"") ->  | DX68: =IFERROR(IF(INDIRECT("'"&$B68&"'!"&"G55")=0,"","x"),"") ->  | DY68: =IFERROR(IF(INDIRECT("'"&$B68&"'!"&"H55")=0,"","x"),"") ->  | DZ68: =IFERROR(IF(INDIRECT("'"&$B68&"'!"&"I55")=0,"","x"),"") ->  | EA68: =IFERROR(IF(INDIRECT("'"&$B68&"'!"&"J55")=0,"","x"),"") ->  | EB68: =IFERROR(IF(INDIRECT("'"&$B68&"'!"&"K55")=0,"","x"),"") ->  | EC68: =IFERROR(IF(INDIRECT("'"&$B68&"'!"&"L55")=0,"","x"),"") ->  | ED68: =IFERROR(IF(INDIRECT("'"&$B68&"'!"&"M55")=0,"","x"),"") ->  | EE68: =IFERROR(IF(INDIRECT("'"&$B68&"'!"&"N55")=0,"","x"),"") ->  | EF68: =IFERROR(IF(INDIRECT("'"&$B68&"'!"&"O55")=0,"","x"),"") ->  | EG68: =IFERROR(IF(INDIRECT("'"&$B68&"'!"&"P55")=0,"","x"),"") ->  | EH68: =IFERROR(IF(INDIRECT("'"&$B68&"'!"&"Q55")=0,"",INDIRECT("'"&$B68&"'!"&"Q55")),"") ->  | EI68: =IFERROR(IF(INDIRECT("'"&$B68&"'!"&"D56")=0,"","x"),"") ->  | EJ68: =IFERROR(IF(INDIRECT("'"&$B68&"'!"&"E56")=0,"",INDIRECT("'"&$B68&"'!"&"E56")),"") ->  | EK68: =IFERROR(IF(INDIRECT("'"&$B68&"'!"&"F56")=0,"","x"),"") ->  | EL68: =IFERROR(IF(INDIRECT("'"&$B68&"'!"&"G56")=0,"","x"),"") ->  | EM68: =IFERROR(IF(INDIRECT("'"&$B68&"'!"&"H56")=0,"","x"),"") ->  | EN68: =IFERROR(IF(INDIRECT("'"&$B68&"'!"&"I56")=0,"","x"),"") ->  | EO68: =IFERROR(IF(INDIRECT("'"&$B68&"'!"&"J56")=0,"","x"),"") ->  | EP68: =IFERROR(IF(INDIRECT("'"&$B68&"'!"&"K56")=0,"","x"),"") ->  | EQ68: =IFERROR(IF(INDIRECT("'"&$B68&"'!"&"L56")=0,"","x"),"") ->  | ER68: =IFERROR(IF(INDIRECT("'"&$B68&"'!"&"M56")=0,"","x"),"") ->  | ES68: =IFERROR(IF(INDIRECT("'"&$B68&"'!"&"N56")=0,"","x"),"") ->  | ET68: =IFERROR(IF(INDIRECT("'"&$B68&"'!"&"O56")=0,"","x"),"") ->  | EU68: =IFERROR(IF(INDIRECT("'"&$B68&"'!"&"P56")=0,"","x"),"") ->  | EV68: =IFERROR(IF(INDIRECT("'"&$B68&"'!"&"Q56")=0,"",INDIRECT("'"&$B68&"'!"&"Q56")),"") -> 
A69: =IF(B69="","",A68+1) -> 
B132: =IFERROR(INDEX(ListarHojas,(ROW()+3)),"") ->  | C132: =IFERROR(INDIRECT("'"&B132&"'!"&"O10"),"") ->  | D132: =IFERROR(IF(INDIRECT("'"&$B132&"'!"&"Q17")=0,IF(INDIRECT("'"&$B132&"'!"&"Q18")=0,"Gran Empresa","PYME"),"Microempresa"),"") ->  | I132: =IFERROR(IF(INDIRECT("'"&$B132&"'!"&"Q12")=0,"","x"),"") ->  | J132: =IFERROR(IF(INDIRECT("'"&$B132&"'!"&"Q13")=0,"","x"),"") ->  | K132: =IFERROR(IF(INDIRECT("'"&$B132&"'!"&"Q14")=0,"","x"),"") ->  | L132: =IFERROR(IF(INDIRECT("'"&$B132&"'!"&"Q15")=0,"","x"),"") ->  | M132: =IFERROR(IF(INDIRECT("'"&$B132&"'!"&"Q23")=0,"","x"),"") ->  | N132: =IFERROR(IF(INDIRECT("'"&$B132&"'!"&"Q24")=0,"","x"),"") ->  | O132: =IFERROR(IF(INDIRECT("'"&$B132&"'!"&"Q25")=0,"","x"),"") ->  | P132: =IFERROR(IF(INDIRECT("'"&$B132&"'!"&"Q26")=0,"","x"),"") ->  | Q132: =IFERROR(IF(INDIRECT("'"&$B132&"'!"&"Q27")=0,"","x"),"") ->  | R132: =IFERROR(IF(INDIRECT("'"&$B132&"'!"&"Q28")=0,"","x"),"") ->  | S132: =IFERROR(IF(INDIRECT("'"&$B132&"'!"&"C29")=0,IF(INDIRECT("'"&$B132&"'!"&"Q29")=0,"","x"),INDIRECT("'"&$B132&"'!"&"C29")),"") ->  | T132: =IFERROR(IF(INDIRECT("'"&$B132&"'!"&"Q33")=0,"","x"),"") ->  | U132: =IFERROR(IF(INDIRECT("'"&$B132&"'!"&"Q34")=0,"","x"),"") ->  | V132: =IFERROR(IF(INDIRECT("'"&$B132&"'!"&"Q35")=0,"","x"),"") ->  | W132: =IFERROR(IF(INDIRECT("'"&$B132&"'!"&"Q36")=0,"","x"),"") ->  | X132: =IFERROR(IF(INDIRECT("'"&$B132&"'!"&"Q37")=0,"","x"),"") ->  | Y132: =IFERROR(IF(INDIRECT("'"&$B132&"'!"&"Q38")=0,"","x"),"") ->  | Z132: =IFERROR(IF(INDIRECT("'"&$B132&"'!"&"C39")=0,IF(INDIRECT("'"&$B132&"'!"&"Q39")=0,"","x"),INDIRECT("'"&$B132&"'!"&"C39")),"") ->  | AA132: =IFERROR(IF(INDIRECT("'"&$B132&"'!"&"D48")=0,"","x"),"") ->  | AB132: =IFERROR(IF(INDIRECT("'"&$B132&"'!"&"E48")=0,"",INDIRECT("'"&$B132&"'!"&"E48")),"") ->  | AC132: =IFERROR(IF(INDIRECT("'"&$B132&"'!"&"F48")=0,"","x"),"") ->  | AD132: =IFERROR(IF(INDIRECT("'"&$B132&"'!"&"G48")=0,"","x"),"") ->  | AE132: =IFERROR(IF(INDIRECT("'"&$B132&"'!"&"H48")=0,"","x"),"") ->  | AF132: =IFERROR(IF(INDIRECT("'"&$B132&"'!"&"I48")=0,"","x"),"") ->  | AG132: =IFERROR(IF(INDIRECT("'"&$B132&"'!"&"J48")=0,"","x"),"") ->  | AH132: =IFERROR(IF(INDIRECT("'"&$B132&"'!"&"K48")=0,"","x"),"") ->  | AI132: =IFERROR(IF(INDIRECT("'"&$B132&"'!"&"L48")=0,"","x"),"") ->  | AJ132: =IFERROR(IF(INDIRECT("'"&$B132&"'!"&"M48")=0,"","x"),"") ->  | AK132: =IFERROR(IF(INDIRECT("'"&$B132&"'!"&"N48")=0,"","x"),"") ->  | AL132: =IFERROR(IF(INDIRECT("'"&$B132&"'!"&"O48")=0,"","x"),"") ->  | AM132: =IFERROR(IF(INDIRECT("'"&$B132&"'!"&"P48")=0,"","x"),"") ->  | AN132: =IFERROR(IF(INDIRECT("'"&$B132&"'!"&"Q48")=0,"",INDIRECT("'"&$B132&"'!"&"Q48")),"") ->  | AO132: =IFERROR(IF(INDIRECT("'"&$B132&"'!"&"D49")=0,"","x"),"") ->  | AP132: =IFERROR(IF(INDIRECT("'"&$B132&"'!"&"E49")=0,"",INDIRECT("'"&$B132&"'!"&"E49")),"") ->  | AQ132: =IFERROR(IF(INDIRECT("'"&$B132&"'!"&"F49")=0,"","x"),"") ->  | AR132: =IFERROR(IF(INDIRECT("'"&$B132&"'!"&"G49")=0,"","x"),"") ->  | AS132: =IFERROR(IF(INDIRECT("'"&$B132&"'!"&"H49")=0,"","x"),"") ->  | AT132: =IFERROR(IF(INDIRECT("'"&$B132&"'!"&"I49")=0,"","x"),"") ->  | AU132: =IFERROR(IF(INDIRECT("'"&$B132&"'!"&"J49")=0,"","x"),"") ->  | AV132: =IFERROR(IF(INDIRECT("'"&$B132&"'!"&"K49")=0,"","x"),"") ->  | AW132: =IFERROR(IF(INDIRECT("'"&$B132&"'!"&"L49")=0,"","x"),"") ->  | AX132: =IFERROR(IF(INDIRECT("'"&$B132&"'!"&"M49")=0,"","x"),"") ->  | AY132: =IFERROR(IF(INDIRECT("'"&$B132&"'!"&"N49")=0,"","x"),"") ->  | AZ132: =IFERROR(IF(INDIRECT("'"&$B132&"'!"&"O49")=0,"","x"),"") ->  | BA132: =IFERROR(IF(INDIRECT("'"&$B132&"'!"&"P49")=0,"","x"),"") ->  | BB132: =IFERROR(IF(INDIRECT("'"&$B132&"'!"&"Q49")=0,"",INDIRECT("'"&$B132&"'!"&"Q49")),"") ->  | BC132: =IFERROR(IF(INDIRECT("'"&$B132&"'!"&"D50")=0,"","x"),"") ->  | BD132: =IFERROR(IF(INDIRECT("'"&$B132&"'!"&"E50")=0,"",INDIRECT("'"&$B132&"'!"&"E50")),"") ->  | BE132: =IFERROR(IF(INDIRECT("'"&$B132&"'!"&"F50")=0,"","x"),"") ->  | BF132: =IFERROR(IF(INDIRECT("'"&$B132&"'!"&"G50")=0,"","x"),"") ->  | BG132: =IFERROR(IF(INDIRECT("'"&$B132&"'!"&"H50")=0,"","x"),"") ->  | BH132: =IFERROR(IF(INDIRECT("'"&$B132&"'!"&"I50")=0,"","x"),"") ->  | BI132: =IFERROR(IF(INDIRECT("'"&$B132&"'!"&"J50")=0,"","x"),"") ->  | BJ132: =IFERROR(IF(INDIRECT("'"&$B132&"'!"&"K50")=0,"","x"),"") ->  | BK132: =IFERROR(IF(INDIRECT("'"&$B132&"'!"&"L50")=0,"","x"),"") ->  | BL132: =IFERROR(IF(INDIRECT("'"&$B132&"'!"&"M50")=0,"","x"),"") ->  | BM132: =IFERROR(IF(INDIRECT("'"&$B132&"'!"&"N50")=0,"","x"),"") ->  | BN132: =IFERROR(IF(INDIRECT("'"&$B132&"'!"&"O50")=0,"","x"),"") ->  | BO132: =IFERROR(IF(INDIRECT("'"&$B132&"'!"&"P50")=0,"","x"),"") ->  | BP132: =IFERROR(IF(INDIRECT("'"&$B132&"'!"&"Q50")=0,"",INDIRECT("'"&$B132&"'!"&"Q50")),"") ->  | BQ132: =IFERROR(IF(INDIRECT("'"&$B132&"'!"&"D51")=0,"","x"),"") ->  | BR132: =IFERROR(IF(INDIRECT("'"&$B132&"'!"&"E51")=0,"",INDIRECT("'"&$B132&"'!"&"E51")),"") ->  | BS132: =IFERROR(IF(INDIRECT("'"&$B132&"'!"&"F51")=0,"","x"),"") ->  | BT132: =IFERROR(IF(INDIRECT("'"&$B132&"'!"&"G51")=0,"","x"),"") ->  | BU132: =IFERROR(IF(INDIRECT("'"&$B132&"'!"&"H51")=0,"","x"),"") ->  | BV132: =IFERROR(IF(INDIRECT("'"&$B132&"'!"&"I51")=0,"","x"),"") ->  | BW132: =IFERROR(IF(INDIRECT("'"&$B132&"'!"&"J51")=0,"","x"),"") ->  | BX132: =IFERROR(IF(INDIRECT("'"&$B132&"'!"&"K51")=0,"","x"),"") ->  | BY132: =IFERROR(IF(INDIRECT("'"&$B132&"'!"&"L51")=0,"","x"),"") ->  | BZ132: =IFERROR(IF(INDIRECT("'"&$B132&"'!"&"M51")=0,"","x"),"") ->  | CA132: =IFERROR(IF(INDIRECT("'"&$B132&"'!"&"N51")=0,"","x"),"") ->  | CB132: =IFERROR(IF(INDIRECT("'"&$B132&"'!"&"O51")=0,"","x"),"") ->  | CC132: =IFERROR(IF(INDIRECT("'"&$B132&"'!"&"P51")=0,"","x"),"") ->  | CD132: =IFERROR(IF(INDIRECT("'"&$B132&"'!"&"Q51")=0,"",INDIRECT("'"&$B132&"'!"&"Q51")),"") ->  | CE132: =IFERROR(IF(INDIRECT("'"&$B132&"'!"&"D52")=0,"","x"),"") ->  | CF132: =IFERROR(IF(INDIRECT("'"&$B132&"'!"&"E52")=0,"",INDIRECT("'"&$B132&"'!"&"E52")),"") ->  | CG132: =IFERROR(IF(INDIRECT("'"&$B132&"'!"&"F52")=0,"","x"),"") ->  | CH132: =IFERROR(IF(INDIRECT("'"&$B132&"'!"&"G52")=0,"","x"),"") ->  | CI132: =IFERROR(IF(INDIRECT("'"&$B132&"'!"&"H52")=0,"","x"),"") ->  | CJ132: =IFERROR(IF(INDIRECT("'"&$B132&"'!"&"I52")=0,"","x"),"") ->  | CK132: =IFERROR(IF(INDIRECT("'"&$B132&"'!"&"J52")=0,"","x"),"") ->  | CL132: =IFERROR(IF(INDIRECT("'"&$B132&"'!"&"K52")=0,"","x"),"") ->  | CM132: =IFERROR(IF(INDIRECT("'"&$B132&"'!"&"L52")=0,"","x"),"") ->  | CN132: =IFERROR(IF(INDIRECT("'"&$B132&"'!"&"M52")=0,"","x"),"") ->  | CO132: =IFERROR(IF(INDIRECT("'"&$B132&"'!"&"N52")=0,"","x"),"") ->  | CP132: =IFERROR(IF(INDIRECT("'"&$B132&"'!"&"O52")=0,"","x"),"") ->  | CQ132: =IFERROR(IF(INDIRECT("'"&$B132&"'!"&"P52")=0,"","x"),"") ->  | CR132: =IFERROR(IF(INDIRECT("'"&$B132&"'!"&"Q52")=0,"",INDIRECT("'"&$B132&"'!"&"Q52")),"") ->  | CS132: =IFERROR(IF(INDIRECT("'"&$B132&"'!"&"D53")=0,"","x"),"") ->  | CT132: =IFERROR(IF(INDIRECT("'"&$B132&"'!"&"E53")=0,"",INDIRECT("'"&$B132&"'!"&"E53")),"") ->  | CU132: =IFERROR(IF(INDIRECT("'"&$B132&"'!"&"F53")=0,"","x"),"") ->  | CV132: =IFERROR(IF(INDIRECT("'"&$B132&"'!"&"G53")=0,"","x"),"") ->  | CW132: =IFERROR(IF(INDIRECT("'"&$B132&"'!"&"H53")=0,"","x"),"") ->  | CX132: =IFERROR(IF(INDIRECT("'"&$B132&"'!"&"I53")=0,"","x"),"") ->  | CY132: =IFERROR(IF(INDIRECT("'"&$B132&"'!"&"J53")=0,"","x"),"") ->  | CZ132: =IFERROR(IF(INDIRECT("'"&$B132&"'!"&"K53")=0,"","x"),"") ->  | DA132: =IFERROR(IF(INDIRECT("'"&$B132&"'!"&"L53")=0,"","x"),"") ->  | DB132: =IFERROR(IF(INDIRECT("'"&$B132&"'!"&"M53")=0,"","x"),"") ->  | DC132: =IFERROR(IF(INDIRECT("'"&$B132&"'!"&"N53")=0,"","x"),"") ->  | DD132: =IFERROR(IF(INDIRECT("'"&$B132&"'!"&"O53")=0,"","x"),"") ->  | DE132: =IFERROR(IF(INDIRECT("'"&$B132&"'!"&"P53")=0,"","x"),"") ->  | DF132: =IFERROR(IF(INDIRECT("'"&$B132&"'!"&"Q53")=0,"",INDIRECT("'"&$B132&"'!"&"Q53")),"") ->  | DG132: =IFERROR(IF(INDIRECT("'"&$B132&"'!"&"D54")=0,"","x"),"") ->  | DH132: =IFERROR(IF(INDIRECT("'"&$B132&"'!"&"E54")=0,"",INDIRECT("'"&$B132&"'!"&"E54")),"") ->  | DI132: =IFERROR(IF(INDIRECT("'"&$B132&"'!"&"F54")=0,"","x"),"") ->  | DJ132: =IFERROR(IF(INDIRECT("'"&$B132&"'!"&"G54")=0,"","x"),"") ->  | DK132: =IFERROR(IF(INDIRECT("'"&$B132&"'!"&"H54")=0,"","x"),"") ->  | DL132: =IFERROR(IF(INDIRECT("'"&$B132&"'!"&"I54")=0,"","x"),"") ->  | DM132: =IFERROR(IF(INDIRECT("'"&$B132&"'!"&"J54")=0,"","x"),"") ->  | DN132: =IFERROR(IF(INDIRECT("'"&$B132&"'!"&"K54")=0,"","x"),"") ->  | DO132: =IFERROR(IF(INDIRECT("'"&$B132&"'!"&"L54")=0,"","x"),"") ->  | DP132: =IFERROR(IF(INDIRECT("'"&$B132&"'!"&"M54")=0,"","x"),"") ->  | DQ132: =IFERROR(IF(INDIRECT("'"&$B132&"'!"&"N54")=0,"","x"),"") ->  | DR132: =IFERROR(IF(INDIRECT("'"&$B132&"'!"&"O54")=0,"","x"),"") ->  | DS132: =IFERROR(IF(INDIRECT("'"&$B132&"'!"&"P54")=0,"","x"),"") ->  | DT132: =IFERROR(IF(INDIRECT("'"&$B132&"'!"&"Q54")=0,"",INDIRECT("'"&$B132&"'!"&"Q54")),"") ->  | DU132: =IFERROR(IF(INDIRECT("'"&$B132&"'!"&"D55")=0,"","x"),"") ->  | DV132: =IFERROR(IF(INDIRECT("'"&$B132&"'!"&"E55")=0,"",INDIRECT("'"&$B132&"'!"&"E55")),"") ->  | DW132: =IFERROR(IF(INDIRECT("'"&$B132&"'!"&"F55")=0,"","x"),"") ->  | DX132: =IFERROR(IF(INDIRECT("'"&$B132&"'!"&"G55")=0,"","x"),"") ->  | DY132: =IFERROR(IF(INDIRECT("'"&$B132&"'!"&"H55")=0,"","x"),"") ->  | DZ132: =IFERROR(IF(INDIRECT("'"&$B132&"'!"&"I55")=0,"","x"),"") ->  | EA132: =IFERROR(IF(INDIRECT("'"&$B132&"'!"&"J55")=0,"","x"),"") ->  | EB132: =IFERROR(IF(INDIRECT("'"&$B132&"'!"&"K55")=0,"","x"),"") ->  | EC132: =IFERROR(IF(INDIRECT("'"&$B132&"'!"&"L55")=0,"","x"),"") ->  | ED132: =IFERROR(IF(INDIRECT("'"&$B132&"'!"&"M55")=0,"","x"),"") ->  | EE132: =IFERROR(IF(INDIRECT("'"&$B132&"'!"&"N55")=0,"","x"),"") ->  | EF132: =IFERROR(IF(INDIRECT("'"&$B132&"'!"&"O55")=0,"","x"),"") ->  | EG132: =IFERROR(IF(INDIRECT("'"&$B132&"'!"&"P55")=0,"","x"),"") ->  | EH132: =IFERROR(IF(INDIRECT("'"&$B132&"'!"&"Q55")=0,"",INDIRECT("'"&$B132&"'!"&"Q55")),"") ->  | EI132: =IFERROR(IF(INDIRECT("'"&$B132&"'!"&"D56")=0,"","x"),"") ->  | EJ132: =IFERROR(IF(INDIRECT("'"&$B132&"'!"&"E56")=0,"",INDIRECT("'"&$B132&"'!"&"E56")),"") ->  | EK132: =IFERROR(IF(INDIRECT("'"&$B132&"'!"&"F56")=0,"","x"),"") ->  | EL132: =IFERROR(IF(INDIRECT("'"&$B132&"'!"&"G56")=0,"","x"),"") ->  | EM132: =IFERROR(IF(INDIRECT("'"&$B132&"'!"&"H56")=0,"","x"),"") ->  | EN132: =IFERROR(IF(INDIRECT("'"&$B132&"'!"&"I56")=0,"","x"),"") ->  | EO132: =IFERROR(IF(INDIRECT("'"&$B132&"'!"&"J56")=0,"","x"),"") ->  | EP132: =IFERROR(IF(INDIRECT("'"&$B132&"'!"&"K56")=0,"","x"),"") ->  | EQ132: =IFERROR(IF(INDIRECT("'"&$B132&"'!"&"L56")=0,"","x"),"") ->  | ER132: =IFERROR(IF(INDIRECT("'"&$B132&"'!"&"M56")=0,"","x"),"") ->  | ES132: =IFERROR(IF(INDIRECT("'"&$B132&"'!"&"N56")=0,"","x"),"") ->  | ET132: =IFERROR(IF(INDIRECT("'"&$B132&"'!"&"O56")=0,"","x"),"") ->  | EU132: =IFERROR(IF(INDIRECT("'"&$B132&"'!"&"P56")=0,"","x"),"") ->  | EV132: =IFERROR(IF(INDIRECT("'"&$B132&"'!"&"Q56")=0,"",INDIRECT("'"&$B132&"'!"&"Q56")),"") -> 
A133: =IF(B133="","",A132+1) -> 
B196: =IFERROR(INDEX(ListarHojas,(ROW()+3)),"") ->  | C196: =IFERROR(INDIRECT("'"&B196&"'!"&"O10"),"") ->  | D196: =IFERROR(IF(INDIRECT("'"&$B196&"'!"&"Q17")=0,IF(INDIRECT("'"&$B196&"'!"&"Q18")=0,"Gran Empresa","PYME"),"Microempresa"),"") ->  | I196: =IFERROR(IF(INDIRECT("'"&$B196&"'!"&"Q12")=0,"","x"),"") ->  | J196: =IFERROR(IF(INDIRECT("'"&$B196&"'!"&"Q13")=0,"","x"),"") ->  | K196: =IFERROR(IF(INDIRECT("'"&$B196&"'!"&"Q14")=0,"","x"),"") ->  | L196: =IFERROR(IF(INDIRECT("'"&$B196&"'!"&"Q15")=0,"","x"),"") ->  | M196: =IFERROR(IF(INDIRECT("'"&$B196&"'!"&"Q23")=0,"","x"),"") ->  | N196: =IFERROR(IF(INDIRECT("'"&$B196&"'!"&"Q24")=0,"","x"),"") ->  | O196: =IFERROR(IF(INDIRECT("'"&$B196&"'!"&"Q25")=0,"","x"),"") ->  | P196: =IFERROR(IF(INDIRECT("'"&$B196&"'!"&"Q26")=0,"","x"),"") ->  | Q196: =IFERROR(IF(INDIRECT("'"&$B196&"'!"&"Q27")=0,"","x"),"") ->  | R196: =IFERROR(IF(INDIRECT("'"&$B196&"'!"&"Q28")=0,"","x"),"") ->  | S196: =IFERROR(IF(INDIRECT("'"&$B196&"'!"&"C29")=0,IF(INDIRECT("'"&$B196&"'!"&"Q29")=0,"","x"),INDIRECT("'"&$B196&"'!"&"C29")),"") ->  | T196: =IFERROR(IF(INDIRECT("'"&$B196&"'!"&"Q33")=0,"","x"),"") ->  | U196: =IFERROR(IF(INDIRECT("'"&$B196&"'!"&"Q34")=0,"","x"),"") ->  | V196: =IFERROR(IF(INDIRECT("'"&$B196&"'!"&"Q35")=0,"","x"),"") ->  | W196: =IFERROR(IF(INDIRECT("'"&$B196&"'!"&"Q36")=0,"","x"),"") ->  | X196: =IFERROR(IF(INDIRECT("'"&$B196&"'!"&"Q37")=0,"","x"),"") ->  | Y196: =IFERROR(IF(INDIRECT("'"&$B196&"'!"&"Q38")=0,"","x"),"") ->  | Z196: =IFERROR(IF(INDIRECT("'"&$B196&"'!"&"C39")=0,IF(INDIRECT("'"&$B196&"'!"&"Q39")=0,"","x"),INDIRECT("'"&$B196&"'!"&"C39")),"") ->  | AA196: =IFERROR(IF(INDIRECT("'"&$B196&"'!"&"D48")=0,"","x"),"") ->  | AB196: =IFERROR(IF(INDIRECT("'"&$B196&"'!"&"E48")=0,"",INDIRECT("'"&$B196&"'!"&"E48")),"") ->  | AC196: =IFERROR(IF(INDIRECT("'"&$B196&"'!"&"F48")=0,"","x"),"") ->  | AD196: =IFERROR(IF(INDIRECT("'"&$B196&"'!"&"G48")=0,"","x"),"") ->  | AE196: =IFERROR(IF(INDIRECT("'"&$B196&"'!"&"H48")=0,"","x"),"") ->  | AF196: =IFERROR(IF(INDIRECT("'"&$B196&"'!"&"I48")=0,"","x"),"") ->  | AG196: =IFERROR(IF(INDIRECT("'"&$B196&"'!"&"J48")=0,"","x"),"") ->  | AH196: =IFERROR(IF(INDIRECT("'"&$B196&"'!"&"K48")=0,"","x"),"") ->  | AI196: =IFERROR(IF(INDIRECT("'"&$B196&"'!"&"L48")=0,"","x"),"") ->  | AJ196: =IFERROR(IF(INDIRECT("'"&$B196&"'!"&"M48")=0,"","x"),"") ->  | AK196: =IFERROR(IF(INDIRECT("'"&$B196&"'!"&"N48")=0,"","x"),"") ->  | AL196: =IFERROR(IF(INDIRECT("'"&$B196&"'!"&"O48")=0,"","x"),"") ->  | AM196: =IFERROR(IF(INDIRECT("'"&$B196&"'!"&"P48")=0,"","x"),"") ->  | AN196: =IFERROR(IF(INDIRECT("'"&$B196&"'!"&"Q48")=0,"",INDIRECT("'"&$B196&"'!"&"Q48")),"") ->  | AO196: =IFERROR(IF(INDIRECT("'"&$B196&"'!"&"D49")=0,"","x"),"") ->  | AP196: =IFERROR(IF(INDIRECT("'"&$B196&"'!"&"E49")=0,"",INDIRECT("'"&$B196&"'!"&"E49")),"") ->  | AQ196: =IFERROR(IF(INDIRECT("'"&$B196&"'!"&"F49")=0,"","x"),"") ->  | AR196: =IFERROR(IF(INDIRECT("'"&$B196&"'!"&"G49")=0,"","x"),"") ->  | AS196: =IFERROR(IF(INDIRECT("'"&$B196&"'!"&"H49")=0,"","x"),"") ->  | AT196: =IFERROR(IF(INDIRECT("'"&$B196&"'!"&"I49")=0,"","x"),"") ->  | AU196: =IFERROR(IF(INDIRECT("'"&$B196&"'!"&"J49")=0,"","x"),"") ->  | AV196: =IFERROR(IF(INDIRECT("'"&$B196&"'!"&"K49")=0,"","x"),"") ->  | AW196: =IFERROR(IF(INDIRECT("'"&$B196&"'!"&"L49")=0,"","x"),"") ->  | AX196: =IFERROR(IF(INDIRECT("'"&$B196&"'!"&"M49")=0,"","x"),"") ->  | AY196: =IFERROR(IF(INDIRECT("'"&$B196&"'!"&"N49")=0,"","x"),"") ->  | AZ196: =IFERROR(IF(INDIRECT("'"&$B196&"'!"&"O49")=0,"","x"),"") ->  | BA196: =IFERROR(IF(INDIRECT("'"&$B196&"'!"&"P49")=0,"","x"),"") ->  | BB196: =IFERROR(IF(INDIRECT("'"&$B196&"'!"&"Q49")=0,"",INDIRECT("'"&$B196&"'!"&"Q49")),"") ->  | BC196: =IFERROR(IF(INDIRECT("'"&$B196&"'!"&"D50")=0,"","x"),"") ->  | BD196: =IFERROR(IF(INDIRECT("'"&$B196&"'!"&"E50")=0,"",INDIRECT("'"&$B196&"'!"&"E50")),"") ->  | BE196: =IFERROR(IF(INDIRECT("'"&$B196&"'!"&"F50")=0,"","x"),"") ->  | BF196: =IFERROR(IF(INDIRECT("'"&$B196&"'!"&"G50")=0,"","x"),"") ->  | BG196: =IFERROR(IF(INDIRECT("'"&$B196&"'!"&"H50")=0,"","x"),"") ->  | BH196: =IFERROR(IF(INDIRECT("'"&$B196&"'!"&"I50")=0,"","x"),"") ->  | BI196: =IFERROR(IF(INDIRECT("'"&$B196&"'!"&"J50")=0,"","x"),"") ->  | BJ196: =IFERROR(IF(INDIRECT("'"&$B196&"'!"&"K50")=0,"","x"),"") ->  | BK196: =IFERROR(IF(INDIRECT("'"&$B196&"'!"&"L50")=0,"","x"),"") ->  | BL196: =IFERROR(IF(INDIRECT("'"&$B196&"'!"&"M50")=0,"","x"),"") ->  | BM196: =IFERROR(IF(INDIRECT("'"&$B196&"'!"&"N50")=0,"","x"),"") ->  | BN196: =IFERROR(IF(INDIRECT("'"&$B196&"'!"&"O50")=0,"","x"),"") ->  | BO196: =IFERROR(IF(INDIRECT("'"&$B196&"'!"&"P50")=0,"","x"),"") ->  | BP196: =IFERROR(IF(INDIRECT("'"&$B196&"'!"&"Q50")=0,"",INDIRECT("'"&$B196&"'!"&"Q50")),"") ->  | BQ196: =IFERROR(IF(INDIRECT("'"&$B196&"'!"&"D51")=0,"","x"),"") ->  | BR196: =IFERROR(IF(INDIRECT("'"&$B196&"'!"&"E51")=0,"",INDIRECT("'"&$B196&"'!"&"E51")),"") ->  | BS196: =IFERROR(IF(INDIRECT("'"&$B196&"'!"&"F51")=0,"","x"),"") ->  | BT196: =IFERROR(IF(INDIRECT("'"&$B196&"'!"&"G51")=0,"","x"),"") ->  | BU196: =IFERROR(IF(INDIRECT("'"&$B196&"'!"&"H51")=0,"","x"),"") ->  | BV196: =IFERROR(IF(INDIRECT("'"&$B196&"'!"&"I51")=0,"","x"),"") ->  | BW196: =IFERROR(IF(INDIRECT("'"&$B196&"'!"&"J51")=0,"","x"),"") ->  | BX196: =IFERROR(IF(INDIRECT("'"&$B196&"'!"&"K51")=0,"","x"),"") ->  | BY196: =IFERROR(IF(INDIRECT("'"&$B196&"'!"&"L51")=0,"","x"),"") ->  | BZ196: =IFERROR(IF(INDIRECT("'"&$B196&"'!"&"M51")=0,"","x"),"") ->  | CA196: =IFERROR(IF(INDIRECT("'"&$B196&"'!"&"N51")=0,"","x"),"") ->  | CB196: =IFERROR(IF(INDIRECT("'"&$B196&"'!"&"O51")=0,"","x"),"") ->  | CC196: =IFERROR(IF(INDIRECT("'"&$B196&"'!"&"P51")=0,"","x"),"") ->  | CD196: =IFERROR(IF(INDIRECT("'"&$B196&"'!"&"Q51")=0,"",INDIRECT("'"&$B196&"'!"&"Q51")),"") ->  | CE196: =IFERROR(IF(INDIRECT("'"&$B196&"'!"&"D52")=0,"","x"),"") ->  | CF196: =IFERROR(IF(INDIRECT("'"&$B196&"'!"&"E52")=0,"",INDIRECT("'"&$B196&"'!"&"E52")),"") ->  | CG196: =IFERROR(IF(INDIRECT("'"&$B196&"'!"&"F52")=0,"","x"),"") ->  | CH196: =IFERROR(IF(INDIRECT("'"&$B196&"'!"&"G52")=0,"","x"),"") ->  | CI196: =IFERROR(IF(INDIRECT("'"&$B196&"'!"&"H52")=0,"","x"),"") ->  | CJ196: =IFERROR(IF(INDIRECT("'"&$B196&"'!"&"I52")=0,"","x"),"") ->  | CK196: =IFERROR(IF(INDIRECT("'"&$B196&"'!"&"J52")=0,"","x"),"") ->  | CL196: =IFERROR(IF(INDIRECT("'"&$B196&"'!"&"K52")=0,"","x"),"") ->  | CM196: =IFERROR(IF(INDIRECT("'"&$B196&"'!"&"L52")=0,"","x"),"") ->  | CN196: =IFERROR(IF(INDIRECT("'"&$B196&"'!"&"M52")=0,"","x"),"") ->  | CO196: =IFERROR(IF(INDIRECT("'"&$B196&"'!"&"N52")=0,"","x"),"") ->  | CP196: =IFERROR(IF(INDIRECT("'"&$B196&"'!"&"O52")=0,"","x"),"") ->  | CQ196: =IFERROR(IF(INDIRECT("'"&$B196&"'!"&"P52")=0,"","x"),"") ->  | CR196: =IFERROR(IF(INDIRECT("'"&$B196&"'!"&"Q52")=0,"",INDIRECT("'"&$B196&"'!"&"Q52")),"") ->  | CS196: =IFERROR(IF(INDIRECT("'"&$B196&"'!"&"D53")=0,"","x"),"") ->  | CT196: =IFERROR(IF(INDIRECT("'"&$B196&"'!"&"E53")=0,"",INDIRECT("'"&$B196&"'!"&"E53")),"") ->  | CU196: =IFERROR(IF(INDIRECT("'"&$B196&"'!"&"F53")=0,"","x"),"") ->  | CV196: =IFERROR(IF(INDIRECT("'"&$B196&"'!"&"G53")=0,"","x"),"") ->  | CW196: =IFERROR(IF(INDIRECT("'"&$B196&"'!"&"H53")=0,"","x"),"") ->  | CX196: =IFERROR(IF(INDIRECT("'"&$B196&"'!"&"I53")=0,"","x"),"") ->  | CY196: =IFERROR(IF(INDIRECT("'"&$B196&"'!"&"J53")=0,"","x"),"") ->  | CZ196: =IFERROR(IF(INDIRECT("'"&$B196&"'!"&"K53")=0,"","x"),"") ->  | DA196: =IFERROR(IF(INDIRECT("'"&$B196&"'!"&"L53")=0,"","x"),"") ->  | DB196: =IFERROR(IF(INDIRECT("'"&$B196&"'!"&"M53")=0,"","x"),"") ->  | DC196: =IFERROR(IF(INDIRECT("'"&$B196&"'!"&"N53")=0,"","x"),"") ->  | DD196: =IFERROR(IF(INDIRECT("'"&$B196&"'!"&"O53")=0,"","x"),"") ->  | DE196: =IFERROR(IF(INDIRECT("'"&$B196&"'!"&"P53")=0,"","x"),"") ->  | DF196: =IFERROR(IF(INDIRECT("'"&$B196&"'!"&"Q53")=0,"",INDIRECT("'"&$B196&"'!"&"Q53")),"") ->  | DG196: =IFERROR(IF(INDIRECT("'"&$B196&"'!"&"D54")=0,"","x"),"") ->  | DH196: =IFERROR(IF(INDIRECT("'"&$B196&"'!"&"E54")=0,"",INDIRECT("'"&$B196&"'!"&"E54")),"") ->  | DI196: =IFERROR(IF(INDIRECT("'"&$B196&"'!"&"F54")=0,"","x"),"") ->  | DJ196: =IFERROR(IF(INDIRECT("'"&$B196&"'!"&"G54")=0,"","x"),"") ->  | DK196: =IFERROR(IF(INDIRECT("'"&$B196&"'!"&"H54")=0,"","x"),"") ->  | DL196: =IFERROR(IF(INDIRECT("'"&$B196&"'!"&"I54")=0,"","x"),"") ->  | DM196: =IFERROR(IF(INDIRECT("'"&$B196&"'!"&"J54")=0,"","x"),"") ->  | DN196: =IFERROR(IF(INDIRECT("'"&$B196&"'!"&"K54")=0,"","x"),"") ->  | DO196: =IFERROR(IF(INDIRECT("'"&$B196&"'!"&"L54")=0,"","x"),"") ->  | DP196: =IFERROR(IF(INDIRECT("'"&$B196&"'!"&"M54")=0,"","x"),"") ->  | DQ196: =IFERROR(IF(INDIRECT("'"&$B196&"'!"&"N54")=0,"","x"),"") ->  | DR196: =IFERROR(IF(INDIRECT("'"&$B196&"'!"&"O54")=0,"","x"),"") ->  | DS196: =IFERROR(IF(INDIRECT("'"&$B196&"'!"&"P54")=0,"","x"),"") ->  | DT196: =IFERROR(IF(INDIRECT("'"&$B196&"'!"&"Q54")=0,"",INDIRECT("'"&$B196&"'!"&"Q54")),"") ->  | DU196: =IFERROR(IF(INDIRECT("'"&$B196&"'!"&"D55")=0,"","x"),"") ->  | DV196: =IFERROR(IF(INDIRECT("'"&$B196&"'!"&"E55")=0,"",INDIRECT("'"&$B196&"'!"&"E55")),"") ->  | DW196: =IFERROR(IF(INDIRECT("'"&$B196&"'!"&"F55")=0,"","x"),"") ->  | DX196: =IFERROR(IF(INDIRECT("'"&$B196&"'!"&"G55")=0,"","x"),"") ->  | DY196: =IFERROR(IF(INDIRECT("'"&$B196&"'!"&"H55")=0,"","x"),"") ->  | DZ196: =IFERROR(IF(INDIRECT("'"&$B196&"'!"&"I55")=0,"","x"),"") ->  | EA196: =IFERROR(IF(INDIRECT("'"&$B196&"'!"&"J55")=0,"","x"),"") ->  | EB196: =IFERROR(IF(INDIRECT("'"&$B196&"'!"&"K55")=0,"","x"),"") ->  | EC196: =IFERROR(IF(INDIRECT("'"&$B196&"'!"&"L55")=0,"","x"),"") ->  | ED196: =IFERROR(IF(INDIRECT("'"&$B196&"'!"&"M55")=0,"","x"),"") ->  | EE196: =IFERROR(IF(INDIRECT("'"&$B196&"'!"&"N55")=0,"","x"),"") ->  | EF196: =IFERROR(IF(INDIRECT("'"&$B196&"'!"&"O55")=0,"","x"),"") ->  | EG196: =IFERROR(IF(INDIRECT("'"&$B196&"'!"&"P55")=0,"","x"),"") ->  | EH196: =IFERROR(IF(INDIRECT("'"&$B196&"'!"&"Q55")=0,"",INDIRECT("'"&$B196&"'!"&"Q55")),"") ->  | EI196: =IFERROR(IF(INDIRECT("'"&$B196&"'!"&"D56")=0,"","x"),"") ->  | EJ196: =IFERROR(IF(INDIRECT("'"&$B196&"'!"&"E56")=0,"",INDIRECT("'"&$B196&"'!"&"E56")),"") ->  | EK196: =IFERROR(IF(INDIRECT("'"&$B196&"'!"&"F56")=0,"","x"),"") ->  | EL196: =IFERROR(IF(INDIRECT("'"&$B196&"'!"&"G56")=0,"","x"),"") ->  | EM196: =IFERROR(IF(INDIRECT("'"&$B196&"'!"&"H56")=0,"","x"),"") ->  | EN196: =IFERROR(IF(INDIRECT("'"&$B196&"'!"&"I56")=0,"","x"),"") ->  | EO196: =IFERROR(IF(INDIRECT("'"&$B196&"'!"&"J56")=0,"","x"),"") ->  | EP196: =IFERROR(IF(INDIRECT("'"&$B196&"'!"&"K56")=0,"","x"),"") ->  | EQ196: =IFERROR(IF(INDIRECT("'"&$B196&"'!"&"L56")=0,"","x"),"") ->  | ER196: =IFERROR(IF(INDIRECT("'"&$B196&"'!"&"M56")=0,"","x"),"") ->  | ES196: =IFERROR(IF(INDIRECT("'"&$B196&"'!"&"N56")=0,"","x"),"") ->  | ET196: =IFERROR(IF(INDIRECT("'"&$B196&"'!"&"O56")=0,"","x"),"") ->  | EU196: =IFERROR(IF(INDIRECT("'"&$B196&"'!"&"P56")=0,"","x"),"") ->  | EV196: =IFERROR(IF(INDIRECT("'"&$B196&"'!"&"Q56")=0,"",INDIRECT("'"&$B196&"'!"&"Q56")),"") -> 
A197: =IF(B197="","",A196+1) -> 
... 10 more rows

Sheet Resultados (hidden)
A1: Autoevaluación Pilares | C1: TURNOVER | D1: PROFITS | E1: MARKET SHARE | F1: PRODUCTIVITY | G1: Nº EMPLOYEES | H1: Nº CLIENTS | I1: Nº EXPORT COUNTRIES | J1: Nº CATALOG PRODUCTS | K1: Nº CLIENT SECTORS | L1: Nº PATENTS | M1: Siguientes pasos
A2: BIG DATA | B2: =_xlfn.SWITCH(Datos!$B51,0.2*1,'Tabla Autoevaluacion'!B2,0.2*2,'Tabla Autoevaluacion'!B5,0.2*3,'Tabla Autoevaluacion'!B8,0.2*4,'Tabla Autoevaluacion'!B11,0.2*5,'Tabla Autoevaluacion'!B14,"No Data") -> Level 1: Primitive | C2: =(Datos!$B15*'Tabla preguntas(ESP)'!I2+Datos!$B16*'Tabla preguntas(ESP)'!I3+Datos!$B17*'Tabla preguntas(ESP)'!I4+Datos!$B18*'Tabla preguntas(ESP)'!I5)*Datos!$B51*'Tabla preguntas(ESP)'!I41 -> 0.0015 | D2: =(Datos!$B15*'Tabla preguntas(ESP)'!J2+Datos!$B16*'Tabla preguntas(ESP)'!J3+Datos!$B17*'Tabla preguntas(ESP)'!J4+Datos!$B18*'Tabla preguntas(ESP)'!J5)*Datos!$B51*'Tabla preguntas(ESP)'!J41 -> 0.003444444444 | E2: =(Datos!$B15*'Tabla preguntas(ESP)'!K2+Datos!$B16*'Tabla preguntas(ESP)'!K3+Datos!$B17*'Tabla preguntas(ESP)'!K4+Datos!$B18*'Tabla preguntas(ESP)'!K5)*Datos!$B51*'Tabla preguntas(ESP)'!K41 -> 0.001857142857 | F2: =(Datos!$B15*'Tabla preguntas(ESP)'!L2+Datos!$B16*'Tabla preguntas(ESP)'!L3+Datos!$B17*'Tabla preguntas(ESP)'!L4+Datos!$B18*'Tabla preguntas(ESP)'!L5)*Datos!$B51*'Tabla preguntas(ESP)'!L41 -> 0.00275 | G2: =(Datos!$B15*'Tabla preguntas(ESP)'!M2+Datos!$B16*'Tabla preguntas(ESP)'!M3+Datos!$B17*'Tabla preguntas(ESP)'!M4+Datos!$B18*'Tabla preguntas(ESP)'!M5)*Datos!$B51*'Tabla preguntas(ESP)'!M41 -> 0.001166666667 | H2: =(Datos!$B15*'Tabla preguntas(ESP)'!N2+Datos!$B16*'Tabla preguntas(ESP)'!N3+Datos!$B17*'Tabla preguntas(ESP)'!N4+Datos!$B18*'Tabla preguntas(ESP)'!N5)*Datos!$B51*'Tabla preguntas(ESP)'!N41 -> 0.002 | I2: =(Datos!$B15*'Tabla preguntas(ESP)'!O2+Datos!$B16*'Tabla preguntas(ESP)'!O3+Datos!$B17*'Tabla preguntas(ESP)'!O4+Datos!$B18*'Tabla preguntas(ESP)'!O5)*Datos!$B51*'Tabla preguntas(ESP)'!O41 -> 0.001571428571 | J2: =(Datos!$B15*'Tabla preguntas(ESP)'!P2+Datos!$B16*'Tabla preguntas(ESP)'!P3+Datos!$B17*'Tabla preguntas(ESP)'!P4+Datos!$B18*'Tabla preguntas(ESP)'!P5)*Datos!$B51*'Tabla preguntas(ESP)'!P41 -> 0.0014 | K2: =(Datos!$B15*'Tabla preguntas(ESP)'!Q2+Datos!$B16*'Tabla preguntas(ESP)'!Q3+Datos!$B17*'Tabla preguntas(ESP)'!Q4+Datos!$B18*'Tabla preguntas(ESP)'!Q5)*Datos!$B51*'Tabla preguntas(ESP)'!Q41 -> 0.001428571429 | L2: =(Datos!$B15*'Tabla preguntas(ESP)'!R2+Datos!$B16*'Tabla preguntas(ESP)'!R3+Datos!$B17*'Tabla preguntas(ESP)'!R4+Datos!$B18*'Tabla preguntas(ESP)'!R5)*Datos!$B51*'Tabla preguntas(ESP)'!R41 -> 0.0015 | M2: =IF((((Datos!$B51*5)+1)*3+1)<5,INDEX('Tabla Autoevaluacion'!$1:$1048576,((Datos!$B51*5+1)*3+1),ROW()),INDEX('Tabla Autoevaluacion'!$1:$1048576,((Datos!$B51*5)*3+1),ROW())) -> • Manage existing data elements and find the capacity constrains • Siloed data store • Focused on bits • Inactive approach • "Don't fix until it breaks" • Inefficient data • Lack of data control • Restricted access
A3: ROBOTICS | B3: =_xlfn.SWITCH(Datos!$B52,0.2*1,'Tabla Autoevaluacion'!C2,0.2*2,'Tabla Autoevaluacion'!C5,0.2*3,'Tabla Autoevaluacion'!C8,0.2*4,'Tabla Autoevaluacion'!C11,0.2*5,'Tabla Autoevaluacion'!C14,"No Data") -> Level 1: Ad Hoc | C3: =(Datos!$B19*'Tabla preguntas(ESP)'!I6+Datos!$B20*'Tabla preguntas(ESP)'!I7+Datos!$B21*'Tabla preguntas(ESP)'!I8+Datos!$B22*'Tabla preguntas(ESP)'!I9)*Datos!$B52*'Tabla preguntas(ESP)'!I41 -> 0.0009 | D3: =(Datos!$B19*'Tabla preguntas(ESP)'!J6+Datos!$B20*'Tabla preguntas(ESP)'!J7+Datos!$B21*'Tabla preguntas(ESP)'!J8+Datos!$B22*'Tabla preguntas(ESP)'!J9)*Datos!$B52*'Tabla preguntas(ESP)'!J41 -> 0.003444444444 | E3: =(Datos!$B19*'Tabla preguntas(ESP)'!K6+Datos!$B20*'Tabla preguntas(ESP)'!K7+Datos!$B21*'Tabla preguntas(ESP)'!K8+Datos!$B22*'Tabla preguntas(ESP)'!K9)*Datos!$B52*'Tabla preguntas(ESP)'!K41 -> 0.001114285714 | F3: =(Datos!$B19*'Tabla preguntas(ESP)'!L6+Datos!$B20*'Tabla preguntas(ESP)'!L7+Datos!$B21*'Tabla preguntas(ESP)'!L8+Datos!$B22*'Tabla preguntas(ESP)'!L9)*Datos!$B52*'Tabla preguntas(ESP)'!L41 -> 0.00275 | G3: =(Datos!$B19*'Tabla preguntas(ESP)'!M6+Datos!$B20*'Tabla preguntas(ESP)'!M7+Datos!$B21*'Tabla preguntas(ESP)'!M8+Datos!$B22*'Tabla preguntas(ESP)'!M9)*Datos!$B52*'Tabla preguntas(ESP)'!M41 -> 0.0007 | H3: =(Datos!$B19*'Tabla preguntas(ESP)'!N6+Datos!$B20*'Tabla preguntas(ESP)'!N7+Datos!$B21*'Tabla preguntas(ESP)'!N8+Datos!$B22*'Tabla preguntas(ESP)'!N9)*Datos!$B52*'Tabla preguntas(ESP)'!N41 -> 0.0012 | I3: =(Datos!$B19*'Tabla preguntas(ESP)'!O6+Datos!$B20*'Tabla preguntas(ESP)'!O7+Datos!$B21*'Tabla preguntas(ESP)'!O8+Datos!$B22*'Tabla preguntas(ESP)'!O9)*Datos!$B52*'Tabla preguntas(ESP)'!O41 -> 0.0009428571429 | J3: =(Datos!$B19*'Tabla preguntas(ESP)'!P6+Datos!$B20*'Tabla preguntas(ESP)'!P7+Datos!$B21*'Tabla preguntas(ESP)'!P8+Datos!$B22*'Tabla preguntas(ESP)'!P9)*Datos!$B52*'Tabla preguntas(ESP)'!P41 -> 0.00084 | K3: =(Datos!$B19*'Tabla preguntas(ESP)'!Q6+Datos!$B20*'Tabla preguntas(ESP)'!Q7+Datos!$B21*'Tabla preguntas(ESP)'!Q8+Datos!$B22*'Tabla preguntas(ESP)'!Q9)*Datos!$B52*'Tabla preguntas(ESP)'!Q41 -> 0.0008571428571 | L3: =(Datos!$B19*'Tabla preguntas(ESP)'!R6+Datos!$B20*'Tabla preguntas(ESP)'!R7+Datos!$B21*'Tabla preguntas(ESP)'!R8+Datos!$B22*'Tabla preguntas(ESP)'!R9)*Datos!$B52*'Tabla preguntas(ESP)'!R41 -> 0.0015 | M3: =IF((((Datos!$B52*5)+1)*3+1)<5,INDEX('Tabla Autoevaluacion'!$1:$1048576,((Datos!$B52*5+1)*3+1),ROW()),INDEX('Tabla Autoevaluacion'!$1:$1048576,((Datos!$B52*5)*3+1),ROW())) -> • Minimal automation • Individual driven • Typically scripts based • Some tools adopted- no formal evaluation
A4: SIMULATION | B4: =_xlfn.SWITCH(Datos!$B53,0.2*1,'Tabla Autoevaluacion'!D2,0.2*2,'Tabla Autoevaluacion'!D5,0.2*3,'Tabla Autoevaluacion'!D8,0.2*4,'Tabla Autoevaluacion'!D11,0.2*5,'Tabla Autoevaluacion'!D14,"No Data") -> Level 2: Managed | C4: =(Datos!$B23*'Tabla preguntas(ESP)'!I10+Datos!$B24*'Tabla preguntas(ESP)'!I11+Datos!$B25*'Tabla preguntas(ESP)'!I12+Datos!$B26*'Tabla preguntas(ESP)'!I13)*Datos!$B53*'Tabla preguntas(ESP)'!I41 -> 0.0018 | D4: =(Datos!$B23*'Tabla preguntas(ESP)'!J10+Datos!$B24*'Tabla preguntas(ESP)'!J11+Datos!$B25*'Tabla preguntas(ESP)'!J12+Datos!$B26*'Tabla preguntas(ESP)'!J13)*Datos!$B53*'Tabla preguntas(ESP)'!J41 -> 0.002755555556 | E4: =(Datos!$B23*'Tabla preguntas(ESP)'!K10+Datos!$B24*'Tabla preguntas(ESP)'!K11+Datos!$B25*'Tabla preguntas(ESP)'!K12+Datos!$B26*'Tabla preguntas(ESP)'!K13)*Datos!$B53*'Tabla preguntas(ESP)'!K41 -> 0.002228571429 | F4: =(Datos!$B23*'Tabla preguntas(ESP)'!L10+Datos!$B24*'Tabla preguntas(ESP)'!L11+Datos!$B25*'Tabla preguntas(ESP)'!L12+Datos!$B26*'Tabla preguntas(ESP)'!L13)*Datos!$B53*'Tabla preguntas(ESP)'!L41 -> 0.0011 | G4: =(Datos!$B23*'Tabla preguntas(ESP)'!M10+Datos!$B24*'Tabla preguntas(ESP)'!M11+Datos!$B25*'Tabla preguntas(ESP)'!M12+Datos!$B26*'Tabla preguntas(ESP)'!M13)*Datos!$B53*'Tabla preguntas(ESP)'!M41 -> 0 | H4: =(Datos!$B23*'Tabla preguntas(ESP)'!N10+Datos!$B24*'Tabla preguntas(ESP)'!N11+Datos!$B25*'Tabla preguntas(ESP)'!N12+Datos!$B26*'Tabla preguntas(ESP)'!N13)*Datos!$B53*'Tabla preguntas(ESP)'!N41 -> 0.0024 | I4: =(Datos!$B23*'Tabla preguntas(ESP)'!O10+Datos!$B24*'Tabla preguntas(ESP)'!O11+Datos!$B25*'Tabla preguntas(ESP)'!O12+Datos!$B26*'Tabla preguntas(ESP)'!O13)*Datos!$B53*'Tabla preguntas(ESP)'!O41 -> 0.001885714286 | J4: =(Datos!$B23*'Tabla preguntas(ESP)'!P10+Datos!$B24*'Tabla preguntas(ESP)'!P11+Datos!$B25*'Tabla preguntas(ESP)'!P12+Datos!$B26*'Tabla preguntas(ESP)'!P13)*Datos!$B53*'Tabla preguntas(ESP)'!P41 -> 0.00168 | K4: =(Datos!$B23*'Tabla preguntas(ESP)'!Q10+Datos!$B24*'Tabla preguntas(ESP)'!Q11+Datos!$B25*'Tabla preguntas(ESP)'!Q12+Datos!$B26*'Tabla preguntas(ESP)'!Q13)*Datos!$B53*'Tabla preguntas(ESP)'!Q41 -> 0.001714285714 | L4: =(Datos!$B23*'Tabla preguntas(ESP)'!R10+Datos!$B24*'Tabla preguntas(ESP)'!R11+Datos!$B25*'Tabla preguntas(ESP)'!R12+Datos!$B26*'Tabla preguntas(ESP)'!R13)*Datos!$B53*'Tabla preguntas(ESP)'!R41 -> 0.0012 | M4: =IF((((Datos!$B53*5)+1)*3+1)<5,INDEX('Tabla Autoevaluacion'!$1:$1048576,((Datos!$B53*5+1)*3+1),ROW()),INDEX('Tabla Autoevaluacion'!$1:$1048576,((Datos!$B53*5)*3+1),ROW())) -> • Characterize the process for the projects, often reactive • Written but always formatted (Consistent templates in Excel or Word) • Has to be ccessible. Security and version control are essential. • May use RM tool • Key projects need to use integration, others may not • Some linkage to other processes •Structure does not need to be formal • External training is recommended • People should start to "belive" in the process
A5: INTEGRATION | B5: =_xlfn.SWITCH(Datos!$B54,0.2*1,'Tabla Autoevaluacion'!E2,0.2*2,'Tabla Autoevaluacion'!E5,0.2*3,'Tabla Autoevaluacion'!E8,0.2*4,'Tabla Autoevaluacion'!E11,0.2*5,'Tabla Autoevaluacion'!E14,"No Data") -> Level 2: Digital Siloes - "Islands of automation" | C5: =(Datos!$B27*'Tabla preguntas(ESP)'!I14+Datos!$B28*'Tabla preguntas(ESP)'!I15+Datos!$B29*'Tabla preguntas(ESP)'!I16+Datos!$B30*'Tabla preguntas(ESP)'!I17)*Datos!$B54*'Tabla preguntas(ESP)'!I41 -> 0 | D5: =(Datos!$B27*'Tabla preguntas(ESP)'!J14+Datos!$B28*'Tabla preguntas(ESP)'!J15+Datos!$B29*'Tabla preguntas(ESP)'!J16+Datos!$B30*'Tabla preguntas(ESP)'!J17)*Datos!$B54*'Tabla preguntas(ESP)'!J41 -> 0.004822222222 | E5: =(Datos!$B27*'Tabla preguntas(ESP)'!K14+Datos!$B28*'Tabla preguntas(ESP)'!K15+Datos!$B29*'Tabla preguntas(ESP)'!K16+Datos!$B30*'Tabla preguntas(ESP)'!K17)*Datos!$B54*'Tabla preguntas(ESP)'!K41 -> 0 | F5: =(Datos!$B27*'Tabla preguntas(ESP)'!L14+Datos!$B28*'Tabla preguntas(ESP)'!L15+Datos!$B29*'Tabla preguntas(ESP)'!L16+Datos!$B30*'Tabla preguntas(ESP)'!L17)*Datos!$B54*'Tabla preguntas(ESP)'!L41 -> 0.00385 | G5: =(Datos!$B27*'Tabla preguntas(ESP)'!M14+Datos!$B28*'Tabla preguntas(ESP)'!M15+Datos!$B29*'Tabla preguntas(ESP)'!M16+Datos!$B30*'Tabla preguntas(ESP)'!M17)*Datos!$B54*'Tabla preguntas(ESP)'!M41 -> 0 | H5: =(Datos!$B27*'Tabla preguntas(ESP)'!N14+Datos!$B28*'Tabla preguntas(ESP)'!N15+Datos!$B29*'Tabla preguntas(ESP)'!N16+Datos!$B30*'Tabla preguntas(ESP)'!N17)*Datos!$B54*'Tabla preguntas(ESP)'!N41 -> 0 | I5: =(Datos!$B27*'Tabla preguntas(ESP)'!O14+Datos!$B28*'Tabla preguntas(ESP)'!O15+Datos!$B29*'Tabla preguntas(ESP)'!O16+Datos!$B30*'Tabla preguntas(ESP)'!O17)*Datos!$B54*'Tabla preguntas(ESP)'!O41 -> 0 | J5: =(Datos!$B27*'Tabla preguntas(ESP)'!P14+Datos!$B28*'Tabla preguntas(ESP)'!P15+Datos!$B29*'Tabla preguntas(ESP)'!P16+Datos!$B30*'Tabla preguntas(ESP)'!P17)*Datos!$B54*'Tabla preguntas(ESP)'!P41 -> 0 | K5: =(Datos!$B27*'Tabla preguntas(ESP)'!Q14+Datos!$B28*'Tabla preguntas(ESP)'!Q15+Datos!$B29*'Tabla preguntas(ESP)'!Q16+Datos!$B30*'Tabla preguntas(ESP)'!Q17)*Datos!$B54*'Tabla preguntas(ESP)'!Q41 -> 0 | L5: =(Datos!$B27*'Tabla preguntas(ESP)'!R14+Datos!$B28*'Tabla preguntas(ESP)'!R15+Datos!$B29*'Tabla preguntas(ESP)'!R16+Datos!$B30*'Tabla preguntas(ESP)'!R17)*Datos!$B54*'Tabla preguntas(ESP)'!R41 -> 0 | M5: =IF((((Datos!$B54*5)+1)*3+1)<5,INDEX('Tabla Autoevaluacion'!$1:$1048576,((Datos!$B54*5+1)*3+1),ROW()),INDEX('Tabla Autoevaluacion'!$1:$1048576,((Datos!$B54*5)*3+1),ROW())) -> • Manual processes should be gradually removed • Batch records has to be recorded on computer, "paper on glass". • Local batch-recipe systems interfaced to PLCs • Site-specific systems; limited integration across functional siloes • Analytics are done on demand, "Why did it happened?" • Start to implement little "real time" supply chain process analytics, evenvthough plants operate independently
A6: INTERNET OF THINGS | B6: =_xlfn.SWITCH(Datos!$B55,0.2*1,'Tabla Autoevaluacion'!F2,0.2*2,'Tabla Autoevaluacion'!F5,0.2*3,'Tabla Autoevaluacion'!F8,0.2*4,'Tabla Autoevaluacion'!F11,0.2*5,'Tabla Autoevaluacion'!F14,"No Data") -> Level 2: Tentative | C6: =(Datos!$B31*'Tabla preguntas(ESP)'!I18+Datos!$B32*'Tabla preguntas(ESP)'!I19+Datos!$B33*'Tabla preguntas(ESP)'!I20+Datos!$B34*'Tabla preguntas(ESP)'!I21)*Datos!$B55*'Tabla preguntas(ESP)'!I41 -> 0.0018 | D6: =(Datos!$B31*'Tabla preguntas(ESP)'!J18+Datos!$B32*'Tabla preguntas(ESP)'!J19+Datos!$B33*'Tabla preguntas(ESP)'!J20+Datos!$B34*'Tabla preguntas(ESP)'!J21)*Datos!$B55*'Tabla preguntas(ESP)'!J41 -> 0.004133333333 | E6: =(Datos!$B31*'Tabla preguntas(ESP)'!K18+Datos!$B32*'Tabla preguntas(ESP)'!K19+Datos!$B33*'Tabla preguntas(ESP)'!K20+Datos!$B34*'Tabla preguntas(ESP)'!K21)*Datos!$B55*'Tabla preguntas(ESP)'!K41 -> 0.002723809524 | F6: =(Datos!$B31*'Tabla preguntas(ESP)'!L18+Datos!$B32*'Tabla preguntas(ESP)'!L19+Datos!$B33*'Tabla preguntas(ESP)'!L20+Datos!$B34*'Tabla preguntas(ESP)'!L21)*Datos!$B55*'Tabla preguntas(ESP)'!L41 -> 0.0033 | G6: =(Datos!$B31*'Tabla preguntas(ESP)'!M18+Datos!$B32*'Tabla preguntas(ESP)'!M19+Datos!$B33*'Tabla preguntas(ESP)'!M20+Datos!$B34*'Tabla preguntas(ESP)'!M21)*Datos!$B55*'Tabla preguntas(ESP)'!M41 -> 0.0014 | H6: =(Datos!$B31*'Tabla preguntas(ESP)'!N18+Datos!$B32*'Tabla preguntas(ESP)'!N19+Datos!$B33*'Tabla preguntas(ESP)'!N20+Datos!$B34*'Tabla preguntas(ESP)'!N21)*Datos!$B55*'Tabla preguntas(ESP)'!N41 -> 0.002933333333 | I6: =(Datos!$B31*'Tabla preguntas(ESP)'!O18+Datos!$B32*'Tabla preguntas(ESP)'!O19+Datos!$B33*'Tabla preguntas(ESP)'!O20+Datos!$B34*'Tabla preguntas(ESP)'!O21)*Datos!$B55*'Tabla preguntas(ESP)'!O41 -> 0.001885714286 | J6: =(Datos!$B31*'Tabla preguntas(ESP)'!P18+Datos!$B32*'Tabla preguntas(ESP)'!P19+Datos!$B33*'Tabla preguntas(ESP)'!P20+Datos!$B34*'Tabla preguntas(ESP)'!P21)*Datos!$B55*'Tabla preguntas(ESP)'!P41 -> 0.00168 | K6: =(Datos!$B31*'Tabla preguntas(ESP)'!Q18+Datos!$B32*'Tabla preguntas(ESP)'!Q19+Datos!$B33*'Tabla preguntas(ESP)'!Q20+Datos!$B34*'Tabla preguntas(ESP)'!Q21)*Datos!$B55*'Tabla preguntas(ESP)'!Q41 -> 0.001714285714 | L6: =(Datos!$B31*'Tabla preguntas(ESP)'!R18+Datos!$B32*'Tabla preguntas(ESP)'!R19+Datos!$B33*'Tabla preguntas(ESP)'!R20+Datos!$B34*'Tabla preguntas(ESP)'!R21)*Datos!$B55*'Tabla preguntas(ESP)'!R41 -> 0 | M6: =IF((((Datos!$B55*5)+1)*3+1)<5,INDEX('Tabla Autoevaluacion'!$1:$1048576,((Datos!$B55*5+1)*3+1),ROW()),INDEX('Tabla Autoevaluacion'!$1:$1048576,((Datos!$B55*5)*3+1),ROW())) -> • Implement a platfomr to connect the devices (e.g. AllJoyn,) • Units have to be inter-communicated (KAA, ThingsSpeak, ) • Start to create protocols, even lightweight ones (e.g. MQTT, XMPP, Zigbee) • Wearables, Contiki OS, etc.
A7: CLOUD | B7: =_xlfn.SWITCH(Datos!$B56,0.2*1,'Tabla Autoevaluacion'!G2,0.2*2,'Tabla Autoevaluacion'!G5,0.2*3,'Tabla Autoevaluacion'!G8,0.2*4,'Tabla Autoevaluacion'!G11,0.2*5,'Tabla Autoevaluacion'!G14,"No Data") -> Level 2: Repeatable, Opportunistic | C7: =(Datos!$B35*'Tabla preguntas(ESP)'!I22+Datos!$B36*'Tabla preguntas(ESP)'!I23+Datos!$B37*'Tabla preguntas(ESP)'!I24+Datos!$B38*'Tabla preguntas(ESP)'!I25)*Datos!$B56*'Tabla preguntas(ESP)'!I41 -> 0 | D7: =(Datos!$B35*'Tabla preguntas(ESP)'!J22+Datos!$B36*'Tabla preguntas(ESP)'!J23+Datos!$B37*'Tabla preguntas(ESP)'!J24+Datos!$B38*'Tabla preguntas(ESP)'!J25)*Datos!$B56*'Tabla preguntas(ESP)'!J41 -> 0.006888888889 | E7: =(Datos!$B35*'Tabla preguntas(ESP)'!K22+Datos!$B36*'Tabla preguntas(ESP)'!K23+Datos!$B37*'Tabla preguntas(ESP)'!K24+Datos!$B38*'Tabla preguntas(ESP)'!K25)*Datos!$B56*'Tabla preguntas(ESP)'!K41 -> 0.003714285714 | F7: =(Datos!$B35*'Tabla preguntas(ESP)'!L22+Datos!$B36*'Tabla preguntas(ESP)'!L23+Datos!$B37*'Tabla preguntas(ESP)'!L24+Datos!$B38*'Tabla preguntas(ESP)'!L25)*Datos!$B56*'Tabla preguntas(ESP)'!L41 -> 0.0033 | G7: =(Datos!$B35*'Tabla preguntas(ESP)'!M22+Datos!$B36*'Tabla preguntas(ESP)'!M23+Datos!$B37*'Tabla preguntas(ESP)'!M24+Datos!$B38*'Tabla preguntas(ESP)'!M25)*Datos!$B56*'Tabla preguntas(ESP)'!M41 -> 0.0014 | H7: =(Datos!$B35*'Tabla preguntas(ESP)'!N22+Datos!$B36*'Tabla preguntas(ESP)'!N23+Datos!$B37*'Tabla preguntas(ESP)'!N24+Datos!$B38*'Tabla preguntas(ESP)'!N25)*Datos!$B56*'Tabla preguntas(ESP)'!N41 -> 0.004 | I7: =(Datos!$B35*'Tabla preguntas(ESP)'!O22+Datos!$B36*'Tabla preguntas(ESP)'!O23+Datos!$B37*'Tabla preguntas(ESP)'!O24+Datos!$B38*'Tabla preguntas(ESP)'!O25)*Datos!$B56*'Tabla preguntas(ESP)'!O41 -> 0.003142857143 | J7: =(Datos!$B35*'Tabla preguntas(ESP)'!P22+Datos!$B36*'Tabla preguntas(ESP)'!P23+Datos!$B37*'Tabla preguntas(ESP)'!P24+Datos!$B38*'Tabla preguntas(ESP)'!P25)*Datos!$B56*'Tabla preguntas(ESP)'!P41 -> 0 | K7: =(Datos!$B35*'Tabla preguntas(ESP)'!Q22+Datos!$B36*'Tabla preguntas(ESP)'!Q23+Datos!$B37*'Tabla preguntas(ESP)'!Q24+Datos!$B38*'Tabla preguntas(ESP)'!Q25)*Datos!$B56*'Tabla preguntas(ESP)'!Q41 -> 0.002857142857 | L7: =(Datos!$B35*'Tabla preguntas(ESP)'!R22+Datos!$B36*'Tabla preguntas(ESP)'!R23+Datos!$B37*'Tabla preguntas(ESP)'!R24+Datos!$B38*'Tabla preguntas(ESP)'!R25)*Datos!$B56*'Tabla preguntas(ESP)'!R41 -> 0 | M7: =IF((((Datos!$B56*5)+1)*3+1)<5,INDEX('Tabla Autoevaluacion'!$1:$1048576,((Datos!$B56*5+1)*3+1),ROW()),INDEX('Tabla Autoevaluacion'!$1:$1048576,((Datos!$B56*5)*3+1),ROW())) -> • Define an specific processes for cloud adoption • An approach has been decided upon and is applied opportunistically • May exist redundant or overlapping approaches • Informally defined or exist as "shelfware" • Initial benefits realized from leveraged infrastructure
A8: ADDITIVE MANUFACTURING | B8: =_xlfn.SWITCH(Datos!$B57,0.2*1,'Tabla Autoevaluacion'!H2,0.2*2,'Tabla Autoevaluacion'!H5,0.2*3,'Tabla Autoevaluacion'!H8,0.2*4,'Tabla Autoevaluacion'!H11,0.2*5,'Tabla Autoevaluacion'!H14,"No Data") -> Level 3: Functional Prototyping | C8: =(Datos!$B39*'Tabla preguntas(ESP)'!I26+Datos!$B40*'Tabla preguntas(ESP)'!I27+Datos!$B41*'Tabla preguntas(ESP)'!I28+Datos!$B42*'Tabla preguntas(ESP)'!I29)*Datos!$B57*'Tabla preguntas(ESP)'!I41 -> 0.0009 | D8: =(Datos!$B39*'Tabla preguntas(ESP)'!J26+Datos!$B40*'Tabla preguntas(ESP)'!J27+Datos!$B41*'Tabla preguntas(ESP)'!J28+Datos!$B42*'Tabla preguntas(ESP)'!J29)*Datos!$B57*'Tabla preguntas(ESP)'!J41 -> 0.002066666667 | E8: =(Datos!$B39*'Tabla preguntas(ESP)'!K26+Datos!$B40*'Tabla preguntas(ESP)'!K27+Datos!$B41*'Tabla preguntas(ESP)'!K28+Datos!$B42*'Tabla preguntas(ESP)'!K29)*Datos!$B57*'Tabla preguntas(ESP)'!K41 -> 0.001671428571 | F8: =(Datos!$B39*'Tabla preguntas(ESP)'!L26+Datos!$B40*'Tabla preguntas(ESP)'!L27+Datos!$B41*'Tabla preguntas(ESP)'!L28+Datos!$B42*'Tabla preguntas(ESP)'!L29)*Datos!$B57*'Tabla preguntas(ESP)'!L41 -> 0 | G8: =(Datos!$B39*'Tabla preguntas(ESP)'!M26+Datos!$B40*'Tabla preguntas(ESP)'!M27+Datos!$B41*'Tabla preguntas(ESP)'!M28+Datos!$B42*'Tabla preguntas(ESP)'!M29)*Datos!$B57*'Tabla preguntas(ESP)'!M41 -> 0.0007 | H8: =(Datos!$B39*'Tabla preguntas(ESP)'!N26+Datos!$B40*'Tabla preguntas(ESP)'!N27+Datos!$B41*'Tabla preguntas(ESP)'!N28+Datos!$B42*'Tabla preguntas(ESP)'!N29)*Datos!$B57*'Tabla preguntas(ESP)'!N41 -> 0.0018 | I8: =(Datos!$B39*'Tabla preguntas(ESP)'!O26+Datos!$B40*'Tabla preguntas(ESP)'!O27+Datos!$B41*'Tabla preguntas(ESP)'!O28+Datos!$B42*'Tabla preguntas(ESP)'!O29)*Datos!$B57*'Tabla preguntas(ESP)'!O41 -> 0.001571428571 | J8: =(Datos!$B39*'Tabla preguntas(ESP)'!P26+Datos!$B40*'Tabla preguntas(ESP)'!P27+Datos!$B41*'Tabla preguntas(ESP)'!P28+Datos!$B42*'Tabla preguntas(ESP)'!P29)*Datos!$B57*'Tabla preguntas(ESP)'!P41 -> 0.00084 | K8: =(Datos!$B39*'Tabla preguntas(ESP)'!Q26+Datos!$B40*'Tabla preguntas(ESP)'!Q27+Datos!$B41*'Tabla preguntas(ESP)'!Q28+Datos!$B42*'Tabla preguntas(ESP)'!Q29)*Datos!$B57*'Tabla preguntas(ESP)'!Q41 -> 0.001714285714 | L8: =(Datos!$B39*'Tabla preguntas(ESP)'!R26+Datos!$B40*'Tabla preguntas(ESP)'!R27+Datos!$B41*'Tabla preguntas(ESP)'!R28+Datos!$B42*'Tabla preguntas(ESP)'!R29)*Datos!$B57*'Tabla preguntas(ESP)'!R41 -> 0.0009 | M8: =IF((((Datos!$B57*5)+1)*3+1)<5,INDEX('Tabla Autoevaluacion'!$1:$1048576,((Datos!$B57*5+1)*3+1),ROW()),INDEX('Tabla Autoevaluacion'!$1:$1048576,((Datos!$B57*5)*3+1),ROW())) -> • Rapid prototyping is a widely-used strategy in the design area. • Increase machines' capacity to enable be true size prototyping. • Start to handle different materials/finishes • Many parts even assemblies can be fabricated; joints, mechanisms, etc. • Parts are manufactured for different objectives; problems beside design, for customers, etc. • Collaboration with AM machine suppliers and use of their services.
A9: AR & VR | B9: =_xlfn.SWITCH(Datos!$B58,0.2*1,'Tabla Autoevaluacion'!I2,0.2*2,'Tabla Autoevaluacion'!I5,0.2*3,'Tabla Autoevaluacion'!I8,0.2*4,'Tabla Autoevaluacion'!I11,0.2*5,'Tabla Autoevaluacion'!I14,"No Data") -> Level 3: Maintenance | C9: =(Datos!$B43*'Tabla preguntas(ESP)'!I30+Datos!$B44*'Tabla preguntas(ESP)'!I31+Datos!$B45*'Tabla preguntas(ESP)'!I32+Datos!$B46*'Tabla preguntas(ESP)'!I33)*Datos!$B58*'Tabla preguntas(ESP)'!I41 -> 0.0009 | D9: =(Datos!$B43*'Tabla preguntas(ESP)'!J30+Datos!$B44*'Tabla preguntas(ESP)'!J31+Datos!$B45*'Tabla preguntas(ESP)'!J32+Datos!$B46*'Tabla preguntas(ESP)'!J33)*Datos!$B58*'Tabla preguntas(ESP)'!J41 -> 0.002066666667 | E9: =(Datos!$B43*'Tabla preguntas(ESP)'!K30+Datos!$B44*'Tabla preguntas(ESP)'!K31+Datos!$B45*'Tabla preguntas(ESP)'!K32+Datos!$B46*'Tabla preguntas(ESP)'!K33)*Datos!$B58*'Tabla preguntas(ESP)'!K41 -> 0.001114285714 | F9: =(Datos!$B43*'Tabla preguntas(ESP)'!L30+Datos!$B44*'Tabla preguntas(ESP)'!L31+Datos!$B45*'Tabla preguntas(ESP)'!L32+Datos!$B46*'Tabla preguntas(ESP)'!L33)*Datos!$B58*'Tabla preguntas(ESP)'!L41 -> 0.00165 | G9: =(Datos!$B43*'Tabla preguntas(ESP)'!M30+Datos!$B44*'Tabla preguntas(ESP)'!M31+Datos!$B45*'Tabla preguntas(ESP)'!M32+Datos!$B46*'Tabla preguntas(ESP)'!M33)*Datos!$B58*'Tabla preguntas(ESP)'!M41 -> 0.0007 | H9: =(Datos!$B43*'Tabla preguntas(ESP)'!N30+Datos!$B44*'Tabla preguntas(ESP)'!N31+Datos!$B45*'Tabla preguntas(ESP)'!N32+Datos!$B46*'Tabla preguntas(ESP)'!N33)*Datos!$B58*'Tabla preguntas(ESP)'!N41 -> 0.0012 | I9: =(Datos!$B43*'Tabla preguntas(ESP)'!O30+Datos!$B44*'Tabla preguntas(ESP)'!O31+Datos!$B45*'Tabla preguntas(ESP)'!O32+Datos!$B46*'Tabla preguntas(ESP)'!O33)*Datos!$B58*'Tabla preguntas(ESP)'!O41 -> 0.0009428571429 | J9: =(Datos!$B43*'Tabla preguntas(ESP)'!P30+Datos!$B44*'Tabla preguntas(ESP)'!P31+Datos!$B45*'Tabla preguntas(ESP)'!P32+Datos!$B46*'Tabla preguntas(ESP)'!P33)*Datos!$B58*'Tabla preguntas(ESP)'!P41 -> 0 | K9: =(Datos!$B43*'Tabla preguntas(ESP)'!Q30+Datos!$B44*'Tabla preguntas(ESP)'!Q31+Datos!$B45*'Tabla preguntas(ESP)'!Q32+Datos!$B46*'Tabla preguntas(ESP)'!Q33)*Datos!$B58*'Tabla preguntas(ESP)'!Q41 -> 0.0008571428571 | L9: =(Datos!$B43*'Tabla preguntas(ESP)'!R30+Datos!$B44*'Tabla preguntas(ESP)'!R31+Datos!$B45*'Tabla preguntas(ESP)'!R32+Datos!$B46*'Tabla preguntas(ESP)'!R33)*Datos!$B58*'Tabla preguntas(ESP)'!R41 -> 0 | M9: =IF((((Datos!$B58*5)+1)*3+1)<5,INDEX('Tabla Autoevaluacion'!$1:$1048576,((Datos!$B58*5+1)*3+1),ROW()),INDEX('Tabla Autoevaluacion'!$1:$1048576,((Datos!$B58*5)*3+1),ROW())) -> • Start to use QR with machinery. Real time machine situation regarding to maintenance: last maintenance date, last incidences (solved & unsolved), next scheduled inspection, etc. • Holographic (on screen) representation of parts using warehouse QRs to improve warehouse management efficiency. Allows to "see" 3D real-size image of the part without actually need find the part in the warehouse.
A10: CYBERSECURITY | B10: =_xlfn.SWITCH(Datos!$B59,0.2*1,'Tabla Autoevaluacion'!J2,0.2*2,'Tabla Autoevaluacion'!J5,0.2*3,'Tabla Autoevaluacion'!J8,0.2*4,'Tabla Autoevaluacion'!J11,0.2*5,'Tabla Autoevaluacion'!J14,"No Data") -> Level 4: Managed | C10: =(Datos!$B47*'Tabla preguntas(ESP)'!I34+Datos!$B48*'Tabla preguntas(ESP)'!I35+Datos!$B49*'Tabla preguntas(ESP)'!I36+Datos!$B50*'Tabla preguntas(ESP)'!I37)*Datos!$B59*'Tabla preguntas(ESP)'!I41 -> 0 | D10: =(Datos!$B47*'Tabla preguntas(ESP)'!J34+Datos!$B48*'Tabla preguntas(ESP)'!J35+Datos!$B49*'Tabla preguntas(ESP)'!J36+Datos!$B50*'Tabla preguntas(ESP)'!J37)*Datos!$B59*'Tabla preguntas(ESP)'!J41 -> 0.01102222222 | E10: =(Datos!$B47*'Tabla preguntas(ESP)'!K34+Datos!$B48*'Tabla preguntas(ESP)'!K35+Datos!$B49*'Tabla preguntas(ESP)'!K36+Datos!$B50*'Tabla preguntas(ESP)'!K37)*Datos!$B59*'Tabla preguntas(ESP)'!K41 -> 0 | F10: =(Datos!$B47*'Tabla preguntas(ESP)'!L34+Datos!$B48*'Tabla preguntas(ESP)'!L35+Datos!$B49*'Tabla preguntas(ESP)'!L36+Datos!$B50*'Tabla preguntas(ESP)'!L37)*Datos!$B59*'Tabla preguntas(ESP)'!L41 -> 0.0088 | G10: =(Datos!$B47*'Tabla preguntas(ESP)'!M34+Datos!$B48*'Tabla preguntas(ESP)'!M35+Datos!$B49*'Tabla preguntas(ESP)'!M36+Datos!$B50*'Tabla preguntas(ESP)'!M37)*Datos!$B59*'Tabla preguntas(ESP)'!M41 -> 0 | H10: =(Datos!$B47*'Tabla preguntas(ESP)'!N34+Datos!$B48*'Tabla preguntas(ESP)'!N35+Datos!$B49*'Tabla preguntas(ESP)'!N36+Datos!$B50*'Tabla preguntas(ESP)'!N37)*Datos!$B59*'Tabla preguntas(ESP)'!N41 -> 0 | I10: =(Datos!$B47*'Tabla preguntas(ESP)'!O34+Datos!$B48*'Tabla preguntas(ESP)'!O35+Datos!$B49*'Tabla preguntas(ESP)'!O36+Datos!$B50*'Tabla preguntas(ESP)'!O37)*Datos!$B59*'Tabla preguntas(ESP)'!O41 -> 0 | J10: =(Datos!$B47*'Tabla preguntas(ESP)'!P34+Datos!$B48*'Tabla preguntas(ESP)'!P35+Datos!$B49*'Tabla preguntas(ESP)'!P36+Datos!$B50*'Tabla preguntas(ESP)'!P37)*Datos!$B59*'Tabla preguntas(ESP)'!P41 -> 0 | K10: =(Datos!$B47*'Tabla preguntas(ESP)'!Q34+Datos!$B48*'Tabla preguntas(ESP)'!Q35+Datos!$B49*'Tabla preguntas(ESP)'!Q36+Datos!$B50*'Tabla preguntas(ESP)'!Q37)*Datos!$B59*'Tabla preguntas(ESP)'!Q41 -> 0 | L10: =(Datos!$B47*'Tabla preguntas(ESP)'!R34+Datos!$B48*'Tabla preguntas(ESP)'!R35+Datos!$B49*'Tabla preguntas(ESP)'!R36+Datos!$B50*'Tabla preguntas(ESP)'!R37)*Datos!$B59*'Tabla preguntas(ESP)'!R41 -> 0 | M10: =IF((((Datos!$B59*5)+1)*3+1)<5,INDEX('Tabla Autoevaluacion'!$1:$1048576,((Datos!$B59*5+1)*3+1),ROW()),INDEX('Tabla Autoevaluacion'!$1:$1048576,((Datos!$B59*5)*3+1),ROW())) -> • Leaders and orgs promote awareness; citizens aware of cybersecurity issues • Formal info sharing/analysis, internal and external to community; formal local fusion and metrics, initial external efforts • Autonomous cyber exercises with assessments of formal info sharing/local fusion; exercises involve live play/metrics assessments • Integrate cyber in COOP; mentor externals on COOP integration; formal blended incident response and recovery
A11: Incremento total | C11: =SUM(C2:C10) -> 0.0078 | D11: =SUM(D2:D10) -> 0.04064444444 | E11: 0.01442380952 | F11: 0.0275 | G11: 0.006066666667 | H11: 0.01553333333 | I11: 0.01194285714 | J11: 0.00644 | K11: 0.01114285714 | L11: 0.0051
A12: Interés | C12: =IF(Datos!B5=1,"Yes","No") -> Yes | D12: =IF(Datos!B6=1,"Yes","No") -> Yes | E12: =IF(Datos!B7=1,"Yes","No") -> Yes | F12: =IF(Datos!B8=1,"Yes","No") -> Yes | G12: =IF(Datos!B9=1,"Yes","No") -> Yes | H12: =IF(Datos!B10=1,"Yes","No") -> Yes | I12: =IF(Datos!B11=1,"Yes","No") -> Yes | J12: =IF(Datos!B12=1,"Yes","No") -> Yes | K12: =IF(Datos!B13=1,"Yes","No") -> Yes | L12: =IF(Datos!B14=1,"Yes","No") -> Yes
C13: =IF(C12="Yes",1,"") -> 1 | D13: =IF(D12="No","",MAX($C$13:C13)+1) -> 2 | E13: =IF(E12="No","",MAX($C$13:D13)+1) -> 3 | F13: =IF(F12="No","",MAX($C$13:E13)+1) -> 4 | G13: =IF(G12="No","",MAX($C$13:F13)+1) -> 5 | H13: =IF(H12="No","",MAX($C$13:G13)+1) -> 6 | I13: =IF(I12="No","",MAX($C$13:H13)+1) -> 7 | J13: =IF(J12="No","",MAX($C$13:I13)+1) -> 8 | K13: =IF(K12="No","",MAX($C$13:J13)+1) -> 9 | L13: =IF(L12="No","",MAX($C$13:K13)+1) -> 10
B14: Mejora | C14: =IF(C12="Yes",C11,"") -> 0.0078 | D14: =IF(D12="Yes",D11,"") -> 0.04064444444 | E14: 0.01442380952 | F14: 0.0275 | G14: 0.006066666667 | H14: 0.01553333333 | I14: 0.01194285714 | J14: 0.00644 | K14: 0.01114285714 | L14: 0.0051
B15: Objetivos con interés | C15: =IF(C13<>"",C1,"") -> TURNOVER | D15: PROFITS | E15: MARKET SHARE | F15: PRODUCTIVITY | G15: Nº EMPLOYEES | H15: Nº CLIENTS | I15: Nº EXPORT COUNTRIES | J15: Nº CATALOG PRODUCTS | K15: Nº CLIENT SECTORS | L15: Nº PATENTS
B16: Ranking | C16: =IF(C12="yes",_xlfn.RANK.EQ(C14,$C$14:$L$14,0),"") -> 7 | D16: =IF(D12="yes",_xlfn.RANK.EQ(D14,$C$14:$L$14,0),"") -> 1 | E16: 4 | F16: 2 | G16: 9 | H16: 3 | I16: 5 | J16: 8 | K16: 6 | L16: 10
C17: =COUNTIF($C$13:C13,C13)-1 -> 0 | D17: =COUNTIF($C$16:D16,D16)-1 -> 0 | E17: =COUNTIF($C$16:E16,E16)-1 -> 0 | F17: =COUNTIF($C$16:F16,F16)-1 -> 0 | G17: =COUNTIF($C$16:G16,G16)-1 -> 0 | H17: =COUNTIF($C$16:H16,H16)-1 -> 0 | I17: =COUNTIF($C$16:I16,I16)-1 -> 0 | J17: =COUNTIF($C$16:J16,J16)-1 -> 0 | K17: =COUNTIF($C$16:K16,K16)-1 -> 0 | L17: =COUNTIF($C$16:L16,L16)-1 -> 0
B18: Ranking Top 5 | C18: =IFERROR(C16+C17,"") -> 7 | D18: =IFERROR(D16+D17,"") -> 1 | E18: 4 | F18: 2 | G18: 9 | H18: 3 | I18: 5 | J18: 8 | K18: 6 | L18: 10
B19: Top 5 objetivos con interés | C19: =C15 -> TURNOVER | D19: PROFITS | E19: MARKET SHARE | F19: PRODUCTIVITY | G19: Nº EMPLOYEES | H19: Nº CLIENTS | I19: Nº EXPORT COUNTRIES | J19: Nº CATALOG PRODUCTS | K19: Nº CLIENT SECTORS | L19: Nº PATENTS | M19: =10-COUNTBLANK(C19:L19) -> 10
C20: =IF(C19="","",C14) -> 0.0078 | D20: 0.04064444444 | E20: 0.01442380952 | F20: 0.0275 | G20: 0.006066666667 | H20: 0.01553333333 | I20: 0.01194285714 | J20: 0.00644 | K20: 0.01114285714 | L20: 0.0051
A21: =A2 -> BIG DATA | B21: Level 1: Primitive | C21: =IF(C20="","",C2) -> 0.0015 | D21: =IF(D20="","",D2) -> 0.003444444444 | E21: =IF(E20="","",E2) -> 0.001857142857 | F21: =IF(F20="","",F2) -> 0.00275 | G21: =IF(G20="","",G2) -> 0.001166666667 | H21: =IF(H20="","",H2) -> 0.002 | I21: =IF(I20="","",I2) -> 0.001571428571 | J21: =IF(J20="","",J2) -> 0.0014 | K21: =IF(K20="","",K2) -> 0.001428571429 | L21: =IF(L20="","",L2) -> 0.0015 | M21: =SUM(C21:L21) -> 0.01861825397 | N21: =IFERROR(_xlfn.RANK.EQ(M21,M$21:M$29,0)+COUNTIF(M$21:M21,M21)-1,"") -> 4 | O21: =Datos!B51*5 -> 1 | P21: =O21/5 -> 0.2
A22: ROBOTICS | B22: Level 1: Ad Hoc | C22: 0.0009 | D22: 0.003444444444 | E22: 0.001114285714 | F22: 0.00275 | G22: 0.0007 | H22: 0.0012 | I22: 0.0009428571429 | J22: 0.00084 | K22: 0.0008571428571 | L22: 0.0015 | M22: =SUM(C22:L22) -> 0.01424873016 | N22: =IFERROR(_xlfn.RANK.EQ(M22,M$21:M$29,0)+COUNTIF(M$21:M22,M22)-1,"") -> 6 | O22: =Datos!B52*5 -> 1 | P22: =O22/5 -> 0.2
A23: SIMULATION | B23: Level 2: Managed | C23: 0.0018 | D23: 0.002755555556 | E23: 0.002228571429 | F23: 0.0011 | G23: 0 | H23: 0.0024 | I23: 0.001885714286 | J23: 0.00168 | K23: 0.001714285714 | L23: 0.0012 | M23: 0.01676412698 | N23: =IFERROR(_xlfn.RANK.EQ(M23,M$21:M$29,0)+COUNTIF(M$21:M23,M23)-1,"") -> 5 | O23: =Datos!B53*5 -> 2 | P23: 0.4
A24: INTEGRATION | B24: Level 2: Digital Siloes - "Islands of automation" | C24: 0 | D24: 0.004822222222 | E24: 0 | F24: 0.00385 | G24: 0 | H24: 0 | I24: 0 | J24: 0 | K24: 0 | L24: 0 | M24: 0.008672222222 | N24: =IFERROR(_xlfn.RANK.EQ(M24,M$21:M$29,0)+COUNTIF(M$21:M24,M24)-1,"") -> 9 | O24: =Datos!B54*5 -> 2 | P24: 0.4
A25: INTERNET OF THINGS | B25: Level 2: Tentative | C25: 0.0018 | D25: 0.004133333333 | E25: 0.002723809524 | F25: 0.0033 | G25: 0.0014 | H25: 0.002933333333 | I25: 0.001885714286 | J25: 0.00168 | K25: 0.001714285714 | L25: 0 | M25: 0.02157047619 | N25: =IFERROR(_xlfn.RANK.EQ(M25,M$21:M$29,0)+COUNTIF(M$21:M25,M25)-1,"") -> 2 | O25: =Datos!B55*5 -> 2 | P25: 0.4
A26: CLOUD | B26: Level 2: Repeatable, Opportunistic | C26: 0 | D26: 0.006888888889 | E26: 0.003714285714 | F26: 0.0033 | G26: 0.0014 | H26: 0.004 | I26: 0.003142857143 | J26: 0 | K26: 0.002857142857 | L26: 0 | M26: 0.0253031746 | N26: =IFERROR(_xlfn.RANK.EQ(M26,M$21:M$29,0)+COUNTIF(M$21:M26,M26)-1,"") -> 1 | O26: =Datos!B56*5 -> 2 | P26: 0.4
A27: ADDITIVE MANUFACTURING | B27: Level 3: Functional Prototyping | C27: 0.0009 | D27: 0.002066666667 | E27: 0.001671428571 | F27: 0 | G27: 0.0007 | H27: 0.0018 | I27: 0.001571428571 | J27: 0.00084 | K27: 0.001714285714 | L27: 0.0009 | M27: 0.01216380952 | N27: =IFERROR(_xlfn.RANK.EQ(M27,M$21:M$29,0)+COUNTIF(M$21:M27,M27)-1,"") -> 7 | O27: =Datos!B57*5 -> 3 | P27: 0.6 | R27: Same region | S27: Same size | T27: Same sector
A28: AR & VR | B28: Level 3: Maintenance | C28: 0.0009 | D28: 0.002066666667 | E28: 0.001114285714 | F28: 0.00165 | G28: 0.0007 | H28: 0.0012 | I28: 0.0009428571429 | J28: 0 | K28: 0.0008571428571 | L28: 0 | M28: 0.009430952381 | N28: =IFERROR(_xlfn.RANK.EQ(M28,M$21:M$29,0)+COUNTIF(M$21:M28,M28)-1,"") -> 8 | O28: =Datos!B58*5 -> 3 | P28: 0.6 | Q28: Ranking | R28: =Datos!B3 -> France | S28: =Datos!B2 -> SME | T28: =Datos!B4 -> Subcontractor
A29: CYBERSECURITY | B29: Level 4: Managed | C29: 0 | D29: 0.01102222222 | E29: 0 | F29: 0.0088 | G29: 0 | H29: 0 | I29: 0 | J29: 0 | K29: 0 | L29: 0 | M29: 0.01982222222 | N29: =IFERROR(_xlfn.RANK.EQ(M29,M$21:M$29,0)+COUNTIF(M$21:M29,M29)-1,"") -> 3 | O29: =Datos!B59*5 -> 4 | P29: 0.8 | R29: =COUNTIF(Survey!$E$3:$E$300,Resultados!R28) -> 0 | S29: =COUNTIF(Survey!$D$3:$D$300,Resultados!S28) -> 17 | T29: =COUNTIF(Survey!$H$3:$H$300,Resultados!T28) -> 5
A30: =A21 -> BIG DATA | B30: =B2 -> Level 1: Primitive | C30: =IFERROR(_xlfn.RANK.EQ(C21,C$21:C$29,0)+COUNTIF(C$21:C21,C21)-1,"") -> 3 | D30: =IFERROR(_xlfn.RANK.EQ(D21,D$21:D$29,0)+COUNTIF(D$21:D21,D21)-1,"") -> 5 | E30: =IFERROR(_xlfn.RANK.EQ(E21,E$21:E$29,0)+COUNTIF(E$21:E21,E21)-1,"") -> 4 | F30: =IFERROR(_xlfn.RANK.EQ(F21,F$21:F$29,0)+COUNTIF(F$21:F21,F21)-1,"") -> 5 | G30: =IFERROR(_xlfn.RANK.EQ(G21,G$21:G$29,0)+COUNTIF(G$21:G21,G21)-1,"") -> 3 | H30: =IFERROR(_xlfn.RANK.EQ(H21,H$21:H$29,0)+COUNTIF(H$21:H21,H21)-1,"") -> 4 | I30: =IFERROR(_xlfn.RANK.EQ(I21,I$21:I$29,0)+COUNTIF(I$21:I21,I21)-1,"") -> 4 | J30: =IFERROR(_xlfn.RANK.EQ(J21,J$21:J$29,0)+COUNTIF(J$21:J21,J21)-1,"") -> 3 | K30: =IFERROR(_xlfn.RANK.EQ(K21,K$21:K$29,0)+COUNTIF(K$21:K21,K21)-1,"") -> 5 | L30: =IFERROR(_xlfn.RANK.EQ(L21,L$21:L$29,0)+COUNTIF(L$21:L21,L21)-1,"") -> 1 | M30: =IF(N21<=5,A30,"") -> BIG DATA | N30: =IF(M30="","",M21) -> 0.01861825397 | Q30: =IFERROR(_xlfn.RANK.EQ(N30,$N$30:$N$38,0)+COUNTIF(N$30:N30,N30)-1,"") -> 4 | R30: =IF(M30="","",IFERROR(COUNTIFS(Survey!$AA$3:$AA$30,"x",Survey!E3:E30,Resultados!R$28)/COUNTIF(Survey!E3:E30,Resultados!R$28),"")) ->  | S30: =IF(M30="","",IFERROR(COUNTIFS(Survey!$AA$3:$AA$30,"x",Survey!$D$3:$D$30,Resultados!S$28)/COUNTIF(Survey!$D$3:$D$30,Resultados!S$28),"")) -> 0.2941176471 | T30: =IF(M30="","",IFERROR(COUNTIFS(Survey!$AA$3:$AA$30,"x",Survey!$H$3:$H$30,Resultados!T$28)/COUNTIF(Survey!$H$3:$H$30,Resultados!T$28),"")) -> 0.4
A31: =A22 -> ROBOTICS | B31: Level 1: Ad Hoc | C31: =IFERROR(_xlfn.RANK.EQ(C22,C$21:C$29,0)+COUNTIF(C$21:C22,C22)-1,"") -> 4 | D31: =IFERROR(_xlfn.RANK.EQ(D22,D$21:D$29,0)+COUNTIF(D$21:D22,D22)-1,"") -> 6 | E31: =IFERROR(_xlfn.RANK.EQ(E22,E$21:E$29,0)+COUNTIF(E$21:E22,E22)-1,"") -> 6 | F31: =IFERROR(_xlfn.RANK.EQ(F22,F$21:F$29,0)+COUNTIF(F$21:F22,F22)-1,"") -> 6 | G31: =IFERROR(_xlfn.RANK.EQ(G22,G$21:G$29,0)+COUNTIF(G$21:G22,G22)-1,"") -> 4 | H31: =IFERROR(_xlfn.RANK.EQ(H22,H$21:H$29,0)+COUNTIF(H$21:H22,H22)-1,"") -> 6 | I31: =IFERROR(_xlfn.RANK.EQ(I22,I$21:I$29,0)+COUNTIF(I$21:I22,I22)-1,"") -> 6 | J31: =IFERROR(_xlfn.RANK.EQ(J22,J$21:J$29,0)+COUNTIF(J$21:J22,J22)-1,"") -> 4 | K31: =IFERROR(_xlfn.RANK.EQ(K22,K$21:K$29,0)+COUNTIF(K$21:K22,K22)-1,"") -> 6 | L31: =IFERROR(_xlfn.RANK.EQ(L22,L$21:L$29,0)+COUNTIF(L$21:L22,L22)-1,"") -> 2 | M31: =IF(N22<=5,A31,"") ->  | N31: =IF(M31="","",M22) ->  | Q31: =IFERROR(_xlfn.RANK.EQ(N31,$N$30:$N$38,0)+COUNTIF(N$30:N31,N31)-1,"") ->  | R31: =IF(M31="","",IFERROR(COUNTIFS(Survey!$AO$3:$AO$30,"x",Survey!E3:E30,Resultados!R$28)/COUNTIF(Survey!E3:E30,Resultados!R$28),"")) ->  | S31: =IF(M31="","",IFERROR(COUNTIFS(Survey!$AO$3:$AO$30,"x",Survey!$D$3:$D$30,Resultados!S$28)/COUNTIF(Survey!$D$3:$D$30,Resultados!S$28),"")) ->  | T31: =IF(M31="","",IFERROR(COUNTIFS(Survey!$AO$3:$AO$30,"x",Survey!$H$3:$H$30,Resultados!T$28)/COUNTIF(Survey!$H$3:$H$30,Resultados!T$28),"")) -> 
A32: SIMULATION | B32: Level 2: Managed | C32: =IFERROR(_xlfn.RANK.EQ(C23,C$21:C$29,0)+COUNTIF(C$21:C23,C23)-1,"") -> 1 | D32: =IFERROR(_xlfn.RANK.EQ(D23,D$21:D$29,0)+COUNTIF(D$21:D23,D23)-1,"") -> 7 | E32: =IFERROR(_xlfn.RANK.EQ(E23,E$21:E$29,0)+COUNTIF(E$21:E23,E23)-1,"") -> 3 | F32: =IFERROR(_xlfn.RANK.EQ(F23,F$21:F$29,0)+COUNTIF(F$21:F23,F23)-1,"") -> 8 | G32: =IFERROR(_xlfn.RANK.EQ(G23,G$21:G$29,0)+COUNTIF(G$21:G23,G23)-1,"") -> 7 | H32: =IFERROR(_xlfn.RANK.EQ(H23,H$21:H$29,0)+COUNTIF(H$21:H23,H23)-1,"") -> 3 | I32: =IFERROR(_xlfn.RANK.EQ(I23,I$21:I$29,0)+COUNTIF(I$21:I23,I23)-1,"") -> 2 | J32: =IFERROR(_xlfn.RANK.EQ(J23,J$21:J$29,0)+COUNTIF(J$21:J23,J23)-1,"") -> 1 | K32: =IFERROR(_xlfn.RANK.EQ(K23,K$21:K$29,0)+COUNTIF(K$21:K23,K23)-1,"") -> 2 | L32: =IFERROR(_xlfn.RANK.EQ(L23,L$21:L$29,0)+COUNTIF(L$21:L23,L23)-1,"") -> 3 | M32: SIMULATION | N32: 0.01676412698 | Q32: =IFERROR(_xlfn.RANK.EQ(N32,$N$30:$N$38,0)+COUNTIF(N$30:N32,N32)-1,"") -> 5 | R32: =IF(M32="","",IFERROR(COUNTIFS(Survey!$BC$3:$BC$30,"x",Survey!E3:E30,Resultados!R$28)/COUNTIF(Survey!E3:E30,Resultados!R$28),"")) ->  | S32: =IF(M32="","",IFERROR(COUNTIFS(Survey!$BC$3:$BC$30,"x",Survey!$D$3:$D$30,Resultados!S$28)/COUNTIF(Survey!$D$3:$D$30,Resultados!S$28),"")) -> 0.4117647059 | T32: =IF(M32="","",IFERROR(COUNTIFS(Survey!$BC$3:$BC$30,"x",Survey!$H$3:$H$30,Resultados!T$28)/COUNTIF(Survey!$H$3:$H$30,Resultados!T$28),"")) -> 0.4
A33: INTEGRATION | B33: Level 2: Digital Siloes - "Islands of automation" | C33: =IFERROR(_xlfn.RANK.EQ(C24,C$21:C$29,0)+COUNTIF(C$21:C24,C24)-1,"") -> 7 | D33: =IFERROR(_xlfn.RANK.EQ(D24,D$21:D$29,0)+COUNTIF(D$21:D24,D24)-1,"") -> 3 | E33: =IFERROR(_xlfn.RANK.EQ(E24,E$21:E$29,0)+COUNTIF(E$21:E24,E24)-1,"") -> 8 | F33: =IFERROR(_xlfn.RANK.EQ(F24,F$21:F$29,0)+COUNTIF(F$21:F24,F24)-1,"") -> 2 | G33: =IFERROR(_xlfn.RANK.EQ(G24,G$21:G$29,0)+COUNTIF(G$21:G24,G24)-1,"") -> 8 | H33: =IFERROR(_xlfn.RANK.EQ(H24,H$21:H$29,0)+COUNTIF(H$21:H24,H24)-1,"") -> 8 | I33: =IFERROR(_xlfn.RANK.EQ(I24,I$21:I$29,0)+COUNTIF(I$21:I24,I24)-1,"") -> 8 | J33: =IFERROR(_xlfn.RANK.EQ(J24,J$21:J$29,0)+COUNTIF(J$21:J24,J24)-1,"") -> 6 | K33: =IFERROR(_xlfn.RANK.EQ(K24,K$21:K$29,0)+COUNTIF(K$21:K24,K24)-1,"") -> 8 | L33: =IFERROR(_xlfn.RANK.EQ(L24,L$21:L$29,0)+COUNTIF(L$21:L24,L24)-1,"") -> 5 | Q33: =IFERROR(_xlfn.RANK.EQ(N33,$N$30:$N$38,0)+COUNTIF(N$30:N33,N33)-1,"") ->  | R33: =IF(M33="","",IFERROR(COUNTIFS(Survey!$BQ$3:$BQ$30,"x",Survey!E3:E30,Resultados!R$28)/COUNTIF(Survey!E3:E30,Resultados!R$28),"")) ->  | S33: =IF(M33="","",IFERROR(COUNTIFS(Survey!$BQ$3:$BQ$30,"x",Survey!$D$3:$D$30,Resultados!S$28)/COUNTIF(Survey!$D$3:$D$30,Resultados!S$28),"")) ->  | T33: =IF(M33="","",IFERROR(COUNTIFS(Survey!$BQ$3:$BQ$30,"x",Survey!$H$3:$H$30,Resultados!T$28)/COUNTIF(Survey!$H$3:$H$30,Resultados!T$28),"")) -> 
A34: INTERNET OF THINGS | B34: Level 2: Tentative | C34: =IFERROR(_xlfn.RANK.EQ(C25,C$21:C$29,0)+COUNTIF(C$21:C25,C25)-1,"") -> 2 | D34: =IFERROR(_xlfn.RANK.EQ(D25,D$21:D$29,0)+COUNTIF(D$21:D25,D25)-1,"") -> 4 | E34: =IFERROR(_xlfn.RANK.EQ(E25,E$21:E$29,0)+COUNTIF(E$21:E25,E25)-1,"") -> 2 | F34: =IFERROR(_xlfn.RANK.EQ(F25,F$21:F$29,0)+COUNTIF(F$21:F25,F25)-1,"") -> 3 | G34: =IFERROR(_xlfn.RANK.EQ(G25,G$21:G$29,0)+COUNTIF(G$21:G25,G25)-1,"") -> 1 | H34: =IFERROR(_xlfn.RANK.EQ(H25,H$21:H$29,0)+COUNTIF(H$21:H25,H25)-1,"") -> 2 | I34: =IFERROR(_xlfn.RANK.EQ(I25,I$21:I$29,0)+COUNTIF(I$21:I25,I25)-1,"") -> 3 | J34: =IFERROR(_xlfn.RANK.EQ(J25,J$21:J$29,0)+COUNTIF(J$21:J25,J25)-1,"") -> 2 | K34: =IFERROR(_xlfn.RANK.EQ(K25,K$21:K$29,0)+COUNTIF(K$21:K25,K25)-1,"") -> 3 | L34: =IFERROR(_xlfn.RANK.EQ(L25,L$21:L$29,0)+COUNTIF(L$21:L25,L25)-1,"") -> 6 | M34: INTERNET OF THINGS | N34: 0.02157047619 | Q34: =IFERROR(_xlfn.RANK.EQ(N34,$N$30:$N$38,0)+COUNTIF(N$30:N34,N34)-1,"") -> 2 | R34: =IF(M34="","",IFERROR(COUNTIFS(Survey!$AA$3:$AA$30,"x",Survey!E3:E30,Resultados!R$28)/COUNTIF(Survey!E3:E30,Resultados!R$28),"")) ->  | S34: =IF(M34="","",IFERROR(COUNTIFS(Survey!$CE$3:$CE$30,"x",Survey!$D$3:$D$30,Resultados!S$28)/COUNTIF(Survey!$D$3:$D$30,Resultados!S$28),"")) -> 0.1764705882 | T34: =IF(M34="","",IFERROR(COUNTIFS(Survey!$CE$3:$CE$30,"x",Survey!$H$3:$H$30,Resultados!T$28)/COUNTIF(Survey!$H$3:$H$30,Resultados!T$28),"")) -> 0
A35: CLOUD | B35: Level 2: Repeatable, Opportunistic | C35: =IFERROR(_xlfn.RANK.EQ(C26,C$21:C$29,0)+COUNTIF(C$21:C26,C26)-1,"") -> 8 | D35: =IFERROR(_xlfn.RANK.EQ(D26,D$21:D$29,0)+COUNTIF(D$21:D26,D26)-1,"") -> 2 | E35: =IFERROR(_xlfn.RANK.EQ(E26,E$21:E$29,0)+COUNTIF(E$21:E26,E26)-1,"") -> 1 | F35: =IFERROR(_xlfn.RANK.EQ(F26,F$21:F$29,0)+COUNTIF(F$21:F26,F26)-1,"") -> 4 | G35: =IFERROR(_xlfn.RANK.EQ(G26,G$21:G$29,0)+COUNTIF(G$21:G26,G26)-1,"") -> 2 | H35: =IFERROR(_xlfn.RANK.EQ(H26,H$21:H$29,0)+COUNTIF(H$21:H26,H26)-1,"") -> 1 | I35: =IFERROR(_xlfn.RANK.EQ(I26,I$21:I$29,0)+COUNTIF(I$21:I26,I26)-1,"") -> 1 | J35: =IFERROR(_xlfn.RANK.EQ(J26,J$21:J$29,0)+COUNTIF(J$21:J26,J26)-1,"") -> 7 | K35: =IFERROR(_xlfn.RANK.EQ(K26,K$21:K$29,0)+COUNTIF(K$21:K26,K26)-1,"") -> 1 | L35: =IFERROR(_xlfn.RANK.EQ(L26,L$21:L$29,0)+COUNTIF(L$21:L26,L26)-1,"") -> 7 | M35: CLOUD | N35: 0.0253031746 | Q35: =IFERROR(_xlfn.RANK.EQ(N35,$N$30:$N$38,0)+COUNTIF(N$30:N35,N35)-1,"") -> 1 | R35: =IF(M35="","",IFERROR(COUNTIFS(Survey!$CS$3:$CS$30,"x",Survey!E3:E30,Resultados!R$28)/COUNTIF(Survey!E3:E30,Resultados!R$28),"")) ->  | S35: =IF(M35="","",IFERROR(COUNTIFS(Survey!$CS$3:$CS$30,"x",Survey!$D$3:$D$30,Resultados!S$28)/COUNTIF(Survey!$D$3:$D$30,Resultados!S$28),"")) -> 0.4705882353 | T35: =IF(M35="","",IFERROR(COUNTIFS(Survey!$CS$3:$CS$30,"x",Survey!$H$3:$H$30,Resultados!T$28)/COUNTIF(Survey!$H$3:$H$30,Resultados!T$28),"")) -> 0.4
A36: ADDITIVE MANUFACTURING | B36: Level 3: Functional Prototyping | C36: =IFERROR(_xlfn.RANK.EQ(C27,C$21:C$29,0)+COUNTIF(C$21:C27,C27)-1,"") -> 5 | D36: =IFERROR(_xlfn.RANK.EQ(D27,D$21:D$29,0)+COUNTIF(D$21:D27,D27)-1,"") -> 8 | E36: =IFERROR(_xlfn.RANK.EQ(E27,E$21:E$29,0)+COUNTIF(E$21:E27,E27)-1,"") -> 5 | F36: =IFERROR(_xlfn.RANK.EQ(F27,F$21:F$29,0)+COUNTIF(F$21:F27,F27)-1,"") -> 9 | G36: =IFERROR(_xlfn.RANK.EQ(G27,G$21:G$29,0)+COUNTIF(G$21:G27,G27)-1,"") -> 5 | H36: =IFERROR(_xlfn.RANK.EQ(H27,H$21:H$29,0)+COUNTIF(H$21:H27,H27)-1,"") -> 5 | I36: =IFERROR(_xlfn.RANK.EQ(I27,I$21:I$29,0)+COUNTIF(I$21:I27,I27)-1,"") -> 6 | J36: =IFERROR(_xlfn.RANK.EQ(J27,J$21:J$29,0)+COUNTIF(J$21:J27,J27)-1,"") -> 5 | K36: =IFERROR(_xlfn.RANK.EQ(K27,K$21:K$29,0)+COUNTIF(K$21:K27,K27)-1,"") -> 4 | L36: =IFERROR(_xlfn.RANK.EQ(L27,L$21:L$29,0)+COUNTIF(L$21:L27,L27)-1,"") -> 4 | Q36: =IFERROR(_xlfn.RANK.EQ(N36,$N$30:$N$38,0)+COUNTIF(N$30:N36,N36)-1,"") ->  | R36: =IF(M36="","",IFERROR(COUNTIFS(Survey!$DG$3:$DG$30,"x",Survey!E3:E30,Resultados!R$28)/COUNTIF(Survey!E3:E30,Resultados!R$28),"")) ->  | S36: =IF(M36="","",IFERROR(COUNTIFS(Survey!$DG$3:$DG$30,"x",Survey!$D$3:$D$30,Resultados!S$28)/COUNTIF(Survey!$D$3:$D$30,Resultados!S$28),"")) ->  | T36: =IF(M36="","",IFERROR(COUNTIFS(Survey!$DG$3:$DG$30,"x",Survey!$H$3:$H$30,Resultados!T$28)/COUNTIF(Survey!$H$3:$H$30,Resultados!T$28),"")) -> 
A37: AR & VR | B37: Level 3: Maintenance | C37: =IFERROR(_xlfn.RANK.EQ(C28,C$21:C$29,0)+COUNTIF(C$21:C28,C28)-1,"") -> 6 | D37: =IFERROR(_xlfn.RANK.EQ(D28,D$21:D$29,0)+COUNTIF(D$21:D28,D28)-1,"") -> 9 | E37: =IFERROR(_xlfn.RANK.EQ(E28,E$21:E$29,0)+COUNTIF(E$21:E28,E28)-1,"") -> 7 | F37: =IFERROR(_xlfn.RANK.EQ(F28,F$21:F$29,0)+COUNTIF(F$21:F28,F28)-1,"") -> 7 | G37: =IFERROR(_xlfn.RANK.EQ(G28,G$21:G$29,0)+COUNTIF(G$21:G28,G28)-1,"") -> 6 | H37: =IFERROR(_xlfn.RANK.EQ(H28,H$21:H$29,0)+COUNTIF(H$21:H28,H28)-1,"") -> 7 | I37: =IFERROR(_xlfn.RANK.EQ(I28,I$21:I$29,0)+COUNTIF(I$21:I28,I28)-1,"") -> 7 | J37: =IFERROR(_xlfn.RANK.EQ(J28,J$21:J$29,0)+COUNTIF(J$21:J28,J28)-1,"") -> 8 | K37: =IFERROR(_xlfn.RANK.EQ(K28,K$21:K$29,0)+COUNTIF(K$21:K28,K28)-1,"") -> 7 | L37: =IFERROR(_xlfn.RANK.EQ(L28,L$21:L$29,0)+COUNTIF(L$21:L28,L28)-1,"") -> 8 | Q37: =IFERROR(_xlfn.RANK.EQ(N37,$N$30:$N$38,0)+COUNTIF(N$30:N37,N37)-1,"") ->  | R37: =IF(M37="","",IFERROR(COUNTIFS(Survey!$DU$3:$DU$30,"x",Survey!E3:E30,Resultados!R$28)/COUNTIF(Survey!E3:E30,Resultados!R$28),"")) ->  | S37: =IF(M37="","",IFERROR(COUNTIFS(Survey!$DU$3:$DU$30,"x",Survey!$D$3:$D$30,Resultados!S$28)/COUNTIF(Survey!$D$3:$D$30,Resultados!S$28),"")) ->  | T37: =IF(M37="","",IFERROR(COUNTIFS(Survey!$DU$3:$DU$30,"x",Survey!$H$3:$H$30,Resultados!T$28)/COUNTIF(Survey!$H$3:$H$30,Resultados!T$28),"")) -> 
A38: =A29 -> CYBERSECURITY | B38: Level 4: Managed | C38: =IFERROR(_xlfn.RANK.EQ(C29,C$21:C$29,0)+COUNTIF(C$21:C29,C29)-1,"") -> 9 | D38: =IFERROR(_xlfn.RANK.EQ(D29,D$21:D$29,0)+COUNTIF(D$21:D29,D29)-1,"") -> 1 | E38: =IFERROR(_xlfn.RANK.EQ(E29,E$21:E$29,0)+COUNTIF(E$21:E29,E29)-1,"") -> 9 | F38: =IFERROR(_xlfn.RANK.EQ(F29,F$21:F$29,0)+COUNTIF(F$21:F29,F29)-1,"") -> 1 | G38: =IFERROR(_xlfn.RANK.EQ(G29,G$21:G$29,0)+COUNTIF(G$21:G29,G29)-1,"") -> 9 | H38: =IFERROR(_xlfn.RANK.EQ(H29,H$21:H$29,0)+COUNTIF(H$21:H29,H29)-1,"") -> 9 | I38: =IFERROR(_xlfn.RANK.EQ(I29,I$21:I$29,0)+COUNTIF(I$21:I29,I29)-1,"") -> 9 | J38: =IFERROR(_xlfn.RANK.EQ(J29,J$21:J$29,0)+COUNTIF(J$21:J29,J29)-1,"") -> 9 | K38: =IFERROR(_xlfn.RANK.EQ(K29,K$21:K$29,0)+COUNTIF(K$21:K29,K29)-1,"") -> 9 | L38: =IFERROR(_xlfn.RANK.EQ(L29,L$21:L$29,0)+COUNTIF(L$21:L29,L29)-1,"") -> 9 | M38: CYBERSECURITY | N38: 0.01982222222 | Q38: =IFERROR(_xlfn.RANK.EQ(N38,$N$30:$N$38,0)+COUNTIF(N$30:N38,N38)-1,"") -> 3 | R38: =IF(M38="","",IFERROR(COUNTIFS(Survey!$EI$3:$EI$30,"x",Survey!E3:E30,Resultados!R$28)/COUNTIF(Survey!E3:E30,Resultados!R$28),"")) ->  | S38: =IF(M38="","",IFERROR(COUNTIFS(Survey!$EI$3:$EI$30,"x",Survey!$D$3:$D$30,Resultados!S$28)/COUNTIF(Survey!$D$3:$D$30,Resultados!S$28),"")) -> 0.1764705882 | T38: =IF(M38="","",IFERROR(COUNTIFS(Survey!$EI$3:$EI$30,"x",Survey!$H$3:$H$30,Resultados!T$28)/COUNTIF(Survey!$H$3:$H$30,Resultados!T$28),"")) -> 0
B39: 1 | C39: =IFERROR(INDEX($C$21:$L$29,MATCH($B39,C$30:C$38,0),COLUMN()-2),"") -> 0.0018 | D39: =IFERROR(INDEX($C$21:$L$29,MATCH($B39,D$30:D$38,0),COLUMN()-2),"") -> 0.01102222222 | E39: 0.003714285714 | F39: 0.0088 | G39: 0.0014 | H39: 0.004 | I39: 0.003142857143 | J39: 0.00168 | K39: 0.002857142857 | L39: 0.0015
B40: 2 | C40: =IFERROR(INDEX($C$21:$L$29,MATCH($B40,C$30:C$38,0),COLUMN()-2),"") -> 0.0018 | D40: 0.006888888889 | E40: 0.002723809524 | F40: 0.00385 | G40: 0.0014 | H40: 0.002933333333 | I40: 0.001885714286 | J40: 0.00168 | K40: 0.001714285714 | L40: 0.0015
B41: 3 | C41: 0.0015 | D41: 0.004822222222 | E41: 0.002228571429 | F41: 0.0033 | G41: 0.001166666667 | H41: 0.0024 | I41: 0.001885714286 | J41: 0.0014 | K41: 0.001714285714 | L41: 0.0012
B42: 4 | C42: 0.0009 | D42: 0.004133333333 | E42: 0.001857142857 | F42: 0.0033 | G42: 0.0007 | H42: 0.002 | I42: 0.001571428571 | J42: 0.00084 | K42: 0.001714285714 | L42: 0.0009
B43: 5 | C43: 0.0009 | D43: 0.003444444444 | E43: 0.001671428571 | F43: 0.00275 | G43: 0.0007 | H43: 0.0018 | J43: 0.00084 | K43: 0.001428571429 | L43: 0
B44: 1 | C44: =IFERROR(VLOOKUP($B44,CHOOSE({2,1},$A$30:$A$38,C$30:C$38),2,0),"") -> SIMULATION | D44: =IFERROR(VLOOKUP($B44,CHOOSE({2,1},$A$30:$A$38,D$30:D$38),2,0),"") -> CYBERSECURITY | E44: =IFERROR(VLOOKUP($B44,CHOOSE({2,1},$A$30:$A$38,E$30:E$38),2,0),"") -> CLOUD | F44: =IFERROR(VLOOKUP($B44,CHOOSE({2,1},$A$30:$A$38,F$30:F$38),2,0),"") -> CYBERSECURITY | G44: =IFERROR(VLOOKUP($B44,CHOOSE({2,1},$A$30:$A$38,G$30:G$38),2,0),"") -> INTERNET OF THINGS | H44: =IFERROR(VLOOKUP($B44,CHOOSE({2,1},$A$30:$A$38,H$30:H$38),2,0),"") -> CLOUD | I44: =IFERROR(VLOOKUP($B44,CHOOSE({2,1},$A$30:$A$38,I$30:I$38),2,0),"") -> CLOUD | J44: =IFERROR(VLOOKUP($B44,CHOOSE({2,1},$A$30:$A$38,J$30:J$38),2,0),"") -> SIMULATION | K44: =IFERROR(VLOOKUP($B44,CHOOSE({2,1},$A$30:$A$38,K$30:K$38),2,0),"") -> CLOUD | L44: =IFERROR(VLOOKUP($B44,CHOOSE({2,1},$A$30:$A$38,L$30:L$38),2,0),"") -> BIG DATA
B45: 2 | C45: =IFERROR(VLOOKUP($B45,CHOOSE({2,1},$A$30:$A$38,C$30:C$38),2,0),"") -> INTERNET OF THINGS | D45: =IFERROR(VLOOKUP($B45,CHOOSE({2,1},$A$30:$A$38,D$30:D$38),2,0),"") -> CLOUD | E45: =IFERROR(VLOOKUP($B45,CHOOSE({2,1},$A$30:$A$38,E$30:E$38),2,0),"") -> INTERNET OF THINGS | F45: =IFERROR(VLOOKUP($B45,CHOOSE({2,1},$A$30:$A$38,F$30:F$38),2,0),"") -> INTEGRATION | G45: =IFERROR(VLOOKUP($B45,CHOOSE({2,1},$A$30:$A$38,G$30:G$38),2,0),"") -> CLOUD | H45: =IFERROR(VLOOKUP($B45,CHOOSE({2,1},$A$30:$A$38,H$30:H$38),2,0),"") -> INTERNET OF THINGS | I45: =IFERROR(VLOOKUP($B45,CHOOSE({2,1},$A$30:$A$38,I$30:I$38),2,0),"") -> SIMULATION | J45: =IFERROR(VLOOKUP($B45,CHOOSE({2,1},$A$30:$A$38,J$30:J$38),2,0),"") -> INTERNET OF THINGS | K45: =IFERROR(VLOOKUP($B45,CHOOSE({2,1},$A$30:$A$38,K$30:K$38),2,0),"") -> SIMULATION | L45: =IFERROR(VLOOKUP($B45,CHOOSE({2,1},$A$30:$A$38,L$30:L$38),2,0),"") -> ROBOTICS
B46: 3 | C46: =IFERROR(VLOOKUP($B46,CHOOSE({2,1},$A$30:$A$38,C$30:C$38),2,0),"") -> BIG DATA | D46: =IFERROR(VLOOKUP($B46,CHOOSE({2,1},$A$30:$A$38,D$30:D$38),2,0),"") -> INTEGRATION | E46: =IFERROR(VLOOKUP($B46,CHOOSE({2,1},$A$30:$A$38,E$30:E$38),2,0),"") -> SIMULATION | F46: =IFERROR(VLOOKUP($B46,CHOOSE({2,1},$A$30:$A$38,F$30:F$38),2,0),"") -> INTERNET OF THINGS | G46: =IFERROR(VLOOKUP($B46,CHOOSE({2,1},$A$30:$A$38,G$30:G$38),2,0),"") -> BIG DATA | H46: =IFERROR(VLOOKUP($B46,CHOOSE({2,1},$A$30:$A$38,H$30:H$38),2,0),"") -> SIMULATION | I46: =IFERROR(VLOOKUP($B46,CHOOSE({2,1},$A$30:$A$38,I$30:I$38),2,0),"") -> INTERNET OF THINGS | J46: =IFERROR(VLOOKUP($B46,CHOOSE({2,1},$A$30:$A$38,J$30:J$38),2,0),"") -> BIG DATA | K46: =IFERROR(VLOOKUP($B46,CHOOSE({2,1},$A$30:$A$38,K$30:K$38),2,0),"") -> INTERNET OF THINGS | L46: =IFERROR(VLOOKUP($B46,CHOOSE({2,1},$A$30:$A$38,L$30:L$38),2,0),"") -> SIMULATION
B47: 4 | C47: =IFERROR(VLOOKUP($B47,CHOOSE({2,1},$A$30:$A$38,C$30:C$38),2,0),"") -> ROBOTICS | D47: =IFERROR(VLOOKUP($B47,CHOOSE({2,1},$A$30:$A$38,D$30:D$38),2,0),"") -> INTERNET OF THINGS | E47: =IFERROR(VLOOKUP($B47,CHOOSE({2,1},$A$30:$A$38,E$30:E$38),2,0),"") -> BIG DATA | F47: =IFERROR(VLOOKUP($B47,CHOOSE({2,1},$A$30:$A$38,F$30:F$38),2,0),"") -> CLOUD | G47: =IFERROR(VLOOKUP($B47,CHOOSE({2,1},$A$30:$A$38,G$30:G$38),2,0),"") -> ROBOTICS | H47: =IFERROR(VLOOKUP($B47,CHOOSE({2,1},$A$30:$A$38,H$30:H$38),2,0),"") -> BIG DATA | I47: =IFERROR(VLOOKUP($B47,CHOOSE({2,1},$A$30:$A$38,I$30:I$38),2,0),"") -> BIG DATA | J47: =IFERROR(VLOOKUP($B47,CHOOSE({2,1},$A$30:$A$38,J$30:J$38),2,0),"") -> ROBOTICS | K47: =IFERROR(VLOOKUP($B47,CHOOSE({2,1},$A$30:$A$38,K$30:K$38),2,0),"") -> ADDITIVE MANUFACTURING | L47: =IFERROR(VLOOKUP($B47,CHOOSE({2,1},$A$30:$A$38,L$30:L$38),2,0),"") -> ADDITIVE MANUFACTURING
B48: 5 | C48: =IFERROR(VLOOKUP($B48,CHOOSE({2,1},$A$30:$A$38,C$30:C$38),2,0),"") -> ADDITIVE MANUFACTURING | D48: =IFERROR(VLOOKUP($B48,CHOOSE({2,1},$A$30:$A$38,D$30:D$38),2,0),"") -> BIG DATA | E48: =IFERROR(VLOOKUP($B48,CHOOSE({2,1},$A$30:$A$38,E$30:E$38),2,0),"") -> ADDITIVE MANUFACTURING | F48: =IFERROR(VLOOKUP($B48,CHOOSE({2,1},$A$30:$A$38,F$30:F$38),2,0),"") -> BIG DATA | G48: =IFERROR(VLOOKUP($B48,CHOOSE({2,1},$A$30:$A$38,G$30:G$38),2,0),"") -> ADDITIVE MANUFACTURING | H48: =IFERROR(VLOOKUP($B48,CHOOSE({2,1},$A$30:$A$38,H$30:H$38),2,0),"") -> ADDITIVE MANUFACTURING | I48: =IFERROR(VLOOKUP($B48,CHOOSE({2,1},$A$30:$A$38,I$30:I$38),2,0),"") ->  | J48: =IFERROR(VLOOKUP($B48,CHOOSE({2,1},$A$30:$A$38,J$30:J$38),2,0),"") -> ADDITIVE MANUFACTURING | K48: =IFERROR(VLOOKUP($B48,CHOOSE({2,1},$A$30:$A$38,K$30:K$38),2,0),"") -> BIG DATA | L48: =IFERROR(VLOOKUP($B48,CHOOSE({2,1},$A$30:$A$38,L$30:L$38),2,0),"") -> INTEGRATION
C49: =IFERROR(_xlfn.RANK.EQ(C20,$C$20:$L$20,0)+COUNTIF($C20:C20,C20)-1,"") -> 7 | D49: =IFERROR(_xlfn.RANK.EQ(D20,$C$20:$L$20,0)+COUNTIF($C20:D20,D20)-1,"") -> 1 | E49: =IFERROR(_xlfn.RANK.EQ(E20,$C$20:$L$20,0)+COUNTIF($C20:E20,E20)-1,"") -> 4 | F49: =IFERROR(_xlfn.RANK.EQ(F20,$C$20:$L$20,0)+COUNTIF($C20:F20,F20)-1,"") -> 2 | G49: =IFERROR(_xlfn.RANK.EQ(G20,$C$20:$L$20,0)+COUNTIF($C20:G20,G20)-1,"") -> 9 | H49: =IFERROR(_xlfn.RANK.EQ(H20,$C$20:$L$20,0)+COUNTIF($C20:H20,H20)-1,"") -> 3 | I49: =IFERROR(_xlfn.RANK.EQ(I20,$C$20:$L$20,0)+COUNTIF($C20:I20,I20)-1,"") -> 5 | J49: =IFERROR(_xlfn.RANK.EQ(J20,$C$20:$L$20,0)+COUNTIF($C20:J20,J20)-1,"") -> 8 | K49: =IFERROR(_xlfn.RANK.EQ(K20,$C$20:$L$20,0)+COUNTIF($C20:K20,K20)-1,"") -> 6 | L49: =IFERROR(_xlfn.RANK.EQ(L20,$C$20:$L$20,0)+COUNTIF($C20:L20,L20)-1,"") -> 10
C50: =C19 -> TURNOVER | D50: =D19 -> PROFITS | E50: MARKET SHARE | F50: PRODUCTIVITY | G50: Nº EMPLOYEES | H50: Nº CLIENTS | I50: Nº EXPORT COUNTRIES | J50: Nº CATALOG PRODUCTS | K50: Nº CLIENT SECTORS | L50: Nº PATENTS
C56: 1 | D56: 2 | E56: 3 | F56: 4 | G56: 5 | H56: 6 | I56: 7 | J56: 8 | K56: 9 | L56: 10
C57: =IFERROR(HLOOKUP(C56,$C$49:$L$50,2,FALSE),"") -> PROFITS | D57: =IFERROR(HLOOKUP(D56,$C$49:$L$50,2,FALSE),"") -> PRODUCTIVITY | E57: Nº CLIENTS | F57: MARKET SHARE | G57: Nº EXPORT COUNTRIES | H57: Nº CLIENT SECTORS | I57: TURNOVER | J57: Nº CATALOG PRODUCTS | K57: Nº EMPLOYEES | L57: Nº PATENTS | M57: TOTAL | Q57: =Q1 -> 0
A58: 3 | B58: =A21 -> BIG DATA | C58: =HLOOKUP(C$57,$C$19:$L$29,$A58,FALSE) -> 0.003444444444 | D58: =HLOOKUP(D$57,$C$19:$L$29,$A58,FALSE) -> 0.00275 | E58: 0.002 | F58: 0.001857142857 | G58: 0.001571428571 | H58: 0.001428571429 | I58: 0.0015 | J58: 0.0014 | K58: 0.001166666667 | L58: 0.0015 | M58: =SUM(C58:L58) -> 0.01861825397 | N58: =IFERROR(_xlfn.RANK.EQ(M58,M$58:M$66,0)+COUNTIF(M$58:M58,M58)-1,"") -> 4 | O58: =M58 -> 0.01861825397 | P58: =B58 -> BIG DATA
A59: 4 | B59: ROBOTICS | C59: =HLOOKUP(C$57,$C$19:$L$29,$A59,FALSE) -> 0.003444444444 | D59: 0.00275 | E59: 0.0012 | F59: 0.001114285714 | G59: 0.0009428571429 | H59: 0.0008571428571 | I59: 0.0009 | J59: 0.00084 | K59: 0.0007 | L59: 0.0015 | M59: =SUM(C59:L59) -> 0.01424873016 | N59: =IFERROR(_xlfn.RANK.EQ(M59,M$58:M$66,0)+COUNTIF(M$58:M59,M59)-1,"") -> 6 | O59: =M59 -> 0.01424873016 | P59: =B59 -> ROBOTICS
A60: 5 | B60: SIMULATION | C60: 0.002755555556 | D60: 0.0011 | E60: 0.0024 | F60: 0.002228571429 | G60: 0.001885714286 | H60: 0.001714285714 | I60: 0.0018 | J60: 0.00168 | K60: 0 | L60: 0.0012 | M60: 0.01676412698 | N60: =IFERROR(_xlfn.RANK.EQ(M60,M$58:M$66,0)+COUNTIF(M$58:M60,M60)-1,"") -> 5 | O60: 0.01676412698 | P60: SIMULATION
A61: 6 | B61: INTEGRATION | C61: 0.004822222222 | D61: 0.00385 | E61: 0 | F61: 0 | G61: 0 | H61: 0 | I61: 0 | J61: 0 | K61: 0 | L61: 0 | M61: 0.008672222222 | N61: =IFERROR(_xlfn.RANK.EQ(M61,M$58:M$66,0)+COUNTIF(M$58:M61,M61)-1,"") -> 9 | O61: 0.008672222222 | P61: INTEGRATION
A62: 7 | B62: INTERNET OF THINGS | C62: 0.004133333333 | D62: 0.0033 | E62: 0.002933333333 | F62: 0.002723809524 | G62: 0.001885714286 | H62: 0.001714285714 | I62: 0.0018 | J62: 0.00168 | K62: 0.0014 | L62: 0 | M62: 0.02157047619 | N62: =IFERROR(_xlfn.RANK.EQ(M62,M$58:M$66,0)+COUNTIF(M$58:M62,M62)-1,"") -> 2 | O62: 0.02157047619 | P62: INTERNET OF THINGS
A63: 8 | B63: CLOUD | C63: 0.006888888889 | D63: 0.0033 | E63: 0.004 | F63: 0.003714285714 | G63: 0.003142857143 | H63: 0.002857142857 | I63: 0 | J63: 0 | K63: 0.0014 | L63: 0 | M63: 0.0253031746 | N63: =IFERROR(_xlfn.RANK.EQ(M63,M$58:M$66,0)+COUNTIF(M$58:M63,M63)-1,"") -> 1 | O63: 0.0253031746 | P63: CLOUD
A64: 9 | B64: ADDITIVE MANUFACTURING | C64: 0.002066666667 | D64: 0 | E64: 0.0018 | F64: 0.001671428571 | G64: 0.001571428571 | H64: 0.001714285714 | I64: 0.0009 | J64: 0.00084 | K64: 0.0007 | L64: 0.0009 | M64: 0.01216380952 | N64: =IFERROR(_xlfn.RANK.EQ(M64,M$58:M$66,0)+COUNTIF(M$58:M64,M64)-1,"") -> 7 | O64: 0.01216380952 | P64: ADDITIVE MANUFACTURING
A65: 10 | B65: AR & VR | C65: 0.002066666667 | D65: 0.00165 | E65: 0.0012 | F65: 0.001114285714 | G65: 0.0009428571429 | H65: 0.0008571428571 | I65: 0.0009 | J65: 0 | K65: 0.0007 | L65: 0 | M65: 0.009430952381 | N65: =IFERROR(_xlfn.RANK.EQ(M65,M$58:M$66,0)+COUNTIF(M$58:M65,M65)-1,"") -> 8 | O65: 0.009430952381 | P65: AR & VR
A66: 11 | B66: CYBERSECURITY | C66: 0.01102222222 | D66: 0.0088 | E66: 0 | F66: 0 | G66: 0 | H66: 0 | I66: 0 | J66: 0 | K66: 0 | L66: 0 | M66: 0.01982222222 | N66: =IFERROR(_xlfn.RANK.EQ(M66,M$58:M$66,0)+COUNTIF(M$58:M66,M66)-1,"") -> 3 | O66: 0.01982222222 | P66: CYBERSECURITY
C67: =IF(SUM(C58:C66)=0,"",SUM(C58:C66)) -> 0.04064444444 | D67: =SUM(D58:D66) -> 0.0275 | E67: 0.01553333333 | F67: 0.01442380952 | G67: 0.01194285714 | H67: 0.01114285714 | I67: 0.0078 | J67: 0.00644 | K67: 0.006066666667 | L67: =IF(SUM(L58:L66)=0,"",SUM(L58:L66)) -> 0.0051
C69: =IFERROR(C57&" "&ROUND(C67*100,2)&"%","") -> PROFITS 4,06% | D69: =IFERROR(D57&" "&ROUND(D67*100,2)&"%","") -> PRODUCTIVITY 2,75% | E69: Nº CLIENTS 1,55% | F69: MARKET SHARE 1,44% | G69: Nº EXPORT COUNTRIES 1,19% | H69: Nº CLIENT SECTORS 1,11% | I69: TURNOVER 0,78% | J69: Nº CATALOG PRODUCTS 0,64% | K69: Nº EMPLOYEES 0,61% | L69: Nº PATENTS 0,51%
